Workbook

Sheet formato (hidden)
A1: MATRIZ DE FORMULACIÓN Y SEGUIMIENTO DEL POAIV
A2: Tema | G2: ¿Se ejecutará en 2022? | I2: Si respondió NO, ¿Por qué no se ejecutará? | K2: Número de EE (meta) | M2: Número de EE (logro) | N2: % DE LOGRO DE LA META (LOGRO / META) | O2: Medidas o acciones de mejora implementadas (Decisiones de carácter general tomadas. Actos administrativos: resoluciones, directivas, circulares, etc. Traslados por competencia ordenados a otras entidades u organismos)
N3: =IFERROR(M3/K3,"") ->  | Q3: =VLOOKUP(A3,H!P4:Q58,2,0) -> 
A4: VISITAS, ACTUACIONES O INTERVENCIONES PROGRAMADAS | M4: RESULTADOS DE LAS ACTUACIONES REALIZADAS -Informes de Ejecución-
A5: NÚMERO DE ORDEN | B5: DEPARTAMENTO | C5: MUNICIPIO | D5: NOMBRE DEL ESTABLECIMIENTO | E5: SEDE ATENDIDA | F5: TIPO DE ESTABLECIMIENTO | G5: SI SELECCIONÓ NO OFICIAL | H5: FECHA PROGRAMADA | I5: ACTIVIDAD A DESARROLLAR | J5: ¿CUÁL OTRA? | K5: FUNCIONARIO RESPONSABLE | L5: ÁREA | M5: FECHA REAL DE LA ACTUACIÓN | N5: SITUACIÓN ENCONTRADA O ACTUACIÓN REALIZADA | O5: CONCLUSIONES Y/O COMPROMISOS ADQUIRIDOS | P5: ACTIVIDADES DE SEGUIMIENTO Y VERIFICACIÓN
A8: Enumere los EE que serán atendidos en el período. | B8: Incluya el nombre del departamento a la que pertenece el EE objeto de la actuación. | C8: Incluya el nombre del municipio al que pertenece el EE objeto de la actuación. | D8: Identifique el EE priorizado para visitar o para ejecutar otro tipo de actuación según los criterios aplicados para elaborar el POAIV. | E8: Indique el nombre de la sede del EE en donde se ejecutará la visita y/o actuación | F8: Oficial/No oficial | G8: Lista desplegable: Colegio privado EDTH Educación inicial Educación de adultos | H8: Agregue la fecha prevista para la realización de la actuación. | I8: Seleccione la actividad a desarrollar de acuerdo con el tema diligenciado | J8: Si seleccionó la opción OTRA, indique cuál | K8: Incluya los nombres y apellidos de los funcionarios encargados de realizar la actuación. | L8: Incluya el nombre del área de los funcionarios encargados de realizar la actuación. | M8: Indique la fecha real en que se llevó a cabo la visita o actuación. | N8: Haga un resumen sucinto de la situación encontrada o de la actuación realizada en el EE | O8: Relacione las acciones de mejora acordadas o los compromisos adquiridos por el EE y por la SE en aras de resolver la situación tratada. | P8: Informe qué acciones de seguimiento o de verificación ha adelantado la SE para verificar el cumplimiento de los compromisos adquiridos
A9: 1
A10: =A9+1 -> 2
A11: =A10+1 -> 3
A12: 4
A13: 5
A14: 6
A15: 7
A16: 8
A17: 9
A18: 10
A19: 11
A20: 12
A21: 13
A22: 14
A23: 15
A24: 16
A25: 17
A26: 18
A27: 19
A28: 20
A29: 21
A30: 22
A31: 23
A32: 24
A33: 25
A34: 26
A35: 27
A36: 28
A37: 29
A38: 30
A39: 31
A40: 32
A41: 33
A42: 34
A43: 35
A44: 36
A45: 37
A46: 38
A47: 39
A48: 40
A49: 41
A50: 42
A51: 43
A52: 44
A53: 45
A54: 46
A55: 47
A56: 48
A57: 49
A58: 50
A59: 51
A60: 52
A61: 53
A62: 54
A63: 55
A64: 56
A65: 57
A66: 58
A67: 59
A68: 60
A69: 61
A70: 62
A71: 63
A72: 64
A73: 65
A74: 66
A75: 67
A76: 68
A77: 69
A78: 70
A79: 71
A80: 72
A81: 73
A82: 74
A83: 75
A84: 76
A85: 77
A86: 78
A87: 79
A88: 80
A89: 81
A90: 82
A91: 83
A92: 84
A93: 85
A94: 86
A95: 87
A96: 88
A97: 89
A98: 90
A99: 91
A100: 92
A101: 93
A102: 94
A103: 95
A104: 96
A105: 97
A106: 98
A107: 99
A108: 100
A109: 101
A110: 102
A111: 103
A112: 104
A113: 105
A114: 106
A115: 107
A116: 108
A117: 109
A118: 110
A119: 111
A120: 112
A121: 113
A122: 114
A123: 115
A124: 116
A125: 117
A126: 118
A127: 119
A128: 120
A129: 121
A130: 122
A131: 123
A132: 124
A133: 125
A134: 126
A135: 127
A136: 128
A137: 129
A138: 130
A139: 131
A140: 132
A141: 133
A142: 134
A143: 135
A144: 136
A145: 137
A146: 138
A147: 139
A148: 140
A149: 141
A150: 142
A151: 143
A152: 144
A153: 145
A154: 146
A155: 147
A156: 148
A157: 149
A158: 150
A159: 151
A160: 152
A161: 153
A162: 154
A163: 155
A164: 156
A165: 157
A166: 158
A167: 159
A168: 160
A169: 161
A170: 162
A171: 163
A172: 164
A173: 165
A174: 166
A175: =A174+1 -> 167
A176: 168
A177: 169
A178: 170
A179: 171
A180: 172
A181: 173
A182: 174
A183: 175
A184: 176
A185: 177
A186: 178
A187: 179
A188: 180
A189: 181
A190: 182
A191: 183
A192: 184
A193: 185
A194: 186
A195: 187
A196: 188
A197: 189
A198: 190
A199: 191
A200: 192
A201: 193
A202: 194
... 2048 more rows

Sheet H (hidden)
A3: DPTO | B3: MPIO | U3: ACTIVIDADES | X3: TIPO | Z3: EPBM_CN | AB3: EDTH_CN | AD3: EI_CN | AF3: EJA_CN | AJ3: EPBM_AP | AL3: EDTH_AP | AN3: EI_AP | AP3: EJA_AP | AV3: EPBM_CP | AX3: EDTH_CP | AZ3: EI_CP | BB3: EJA_CP | BF3: EPBM_EI | BI3: EI_EI | BM3: EPBM_CE | BO3: EI_CE | BQ3: EDTH_CE | BS3: EJA_CE | BW3: EPBM_GD | CA3: SISTEMAS_INFORM | CE3: EPBM_EP | CG3: EI_EP | CH3: Columna1 | CI3: EDTH_EP | CK3: EJA_EP | CO3: EPBM_CYP | CQ3: EDTH_CYP | CS3: EJA_CYP | CW3: EPBM_QDR | CY3: EI_QDR | DA3: EDTH_QDR | DC3: EJA_QDR | DG3: EPBM_AGP | DI3: EI_AGP | DK3: EDTH_AGP | DM3: EJA_AGP | DQ3: ASOPADRES | DT3: Prestadores_EI | DW3: Cual | ET3: Ejercer control normativo verificando los actos administrativos de reconocimiento oficial o la licencia de funcionamiento del EE, legalización de novedades, autorización de jornadas, sedes, ciclos y programas, y, en general, la legalidad de la oferta educativa. | EU3: 1. Los actos administrativos mediante los cuales se expidió el reconocimiento oficial o la licencia de funcionamiento del EE cumplen con la normatividad vigente.
A4: Antioquia | B4: Medellín | D4: Antioquia | F4: CONTROL NORMATIVO | G4: CONTROL NORMATIVO | H4: CONTROL NORMATIVO | I4: CONTROL NORMATIVO | J4: RUPEI | K4: EDUCACIÓN INICIAL | L4: ASOCIACIONES DE PADRES DE FAMILIA | M4: Sí | N4: Oficial | P4: RETORNO A LA PRESENCIALIDAD PLENA | Q4: tema1 | R4: Verificar el avance de los planes de acción de las sedes educativas que no han dado cumplimiento las condiciones mínimas de seguridad. | S4: =LEN(P4) -> 33 | U4: Ejercer control normativo verificando los actos administrativos de reconocimiento oficial o la licencia de funcionamiento del EE, legalización de novedades, autorización de jornadas, sedes, ciclos y programas, y, en general, la legalidad de la oferta educativa. | X4: Educación Preescolar, Básica Y Media - EPBM | Z4: Ejercer control normativo verificando los actos administrativos de reconocimiento oficial o la licencia de funcionamiento del EE, legalización de novedades, autorización de jornadas, sedes, ciclos y programas, y, en general, la legalidad de la oferta educativa. | AB4: Ejercer control normativo verificando los actos administrativos de reconocimiento oficial o la licencia de funcionamiento del EE, legalización de novedades, autorización de jornadas, sedes, ciclos y programas, y, en general, la legalidad de la oferta educativa. | AD4: Ejercer control normativo verificando los actos administrativos de reconocimiento oficial o la licencia de funcionamiento del EE, legalización de novedades, autorización de jornadas, sedes, ciclos y programas, y, en general, la legalidad de la oferta educativa. | AF4: Ejercer control normativo verificando los actos administrativos de reconocimiento oficial o la licencia de funcionamiento del EE, legalización de novedades, autorización de jornadas, sedes, ciclos y programas, y, en general, la legalidad de la oferta educativa. | AJ4: Verificar la asignación de la planta de personal docente y directivo-docente destinado a los EE Oficiales, teniendo en cuenta el PEI, las relaciones técnicas vigentes y sus perfiles o áreas de desempeño, incluyendo a los profesionales de apoyo. | AL4: Verificar los perfiles de desempeño del personal docente vinculado a los EE No Oficiales y garatizar su idoneidad. | AN4: Verificar los perfiles de desempeño del personal docente vinculado a los EE No Oficiales y garatizar su idoneidad. | AP4: Verificar los perfiles de desempeño del personal docente vinculado a los EE Oficiales y garatizar su idoneidad. | AV4: Ejercer control sobre la cobertura escolar y garantizar el registro adecuado y oportuno de la matrícula en el SIMAT. | AX4: Ejercer control sobre la cobertura escolar y garantizar el registro adecuado y oportuno de la matrícula en el aplicativo dispuesto para tal fin. | AZ4: Ejercer control sobre la cobertura escolar y garantizar el registro adecuado y oportuno de la matrícula en el aplicativo dispuesto para tal fin. | BB4: Ejercer control sobre la cobertura escolar y garantizar el registro adecuado y oportuno de la matrícula en el SIMAT. | BI4: Requerir y apoyar el registro de los prestadores de servicios no oficiales de Educación Inicial y de atención a la primera infancia que por su naturaleza no cuentan con licencia de funcionamiento para la atención de niños y niñas menores de 5 años, en el sistema de información que defina el MEN. | BM4: Verificar la conformación y el funcionamiento de los Comités Escolares de Convivencia e impulsar la revisión y la actualización de los manuales de convivencia escolar. | BO4: Promover la implementación de las estrategias preventivas del abuso sexual y del acoso en los entornos escolares, en cumplimiento de la Directiva Ministerial No. 1 de 2022. | BQ4: Promover la implementación de las estrategias preventivas del abuso sexual y del acoso en los entornos escolares, en cumplimiento de la Directiva Ministerial No. 1 de 2022. | BS4: Verificar la conformación y el funcionamiento de los Comités Escolares de Convivencia e impulsar la revisión y la actualización de los manuales de convivencia escolar. | BW4: Evaluar la gestión directiva y el direccionamiento estratégico de los establecimientos educativos mediante la revisión de los instrumentosde planeación institucional. | CA4: Verificar los reportes hechos por los EE en los sistemas de información y garantizar el registro, la depuración y la actualización permanente de los datos en las plataformas del DUE, EVI, SIET, SIPI, SIMAT,SIFSE, etc.. | CE4: Verificar el procedimiento aplicado en los EE No Oficiales para la aprobación de los costos educativos, los reportes de la autoevaluación institucional (EVI) y los procesos seguidos para la fijación de listas de útiles, textos, materiales y uniformes escolares. | CG4: Trámite de quejas por la presunta violación al régimen establecido para la fijación de los costos educativos y/o para la adopción de las listas de útiles, textos, materiales y uniformes escolares | CI4: Trámite de quejas por la presunta violación al régimen establecido para la fijación de los costos educativos y/o para la adopción de las listas de útiles, textos, materiales y uniformes escolares | CK4: Trámite de quejas por la presunta violación al régimen establecido para la fijación de los costos educativos y/o para la adopción de las listas de útiles, textos, materiales y uniformes escolares | CO4: Apoyar la implantación de los programas de ampliación de la jornada escolar como factor determinante para el mejoramiento de la calidad, en los EE oficiales priorizados para este fin. | CQ4: Efectuar la revisión periódica de los contenidos básicos de formación y demás componentes de los programas de Educación para el Trabajo y el Desarrollo Humano, garantizando su pertinencia, mejora y actualización constante. | CS4: Verificar las edades de ingreso a los programas de Educación para Adultos, el tiempo de duración, la aplicación de las pruebas externas de evaluación, el cumplimiento del servicio social estudiantil, entre otros aspectos, que favorezcan la calidad de la formación ofertada en este nivel. | CW4: Atender y trámitar oportunamente las quejas, denuncias y demás requerimientos formulados por los integrantes de la comunidad educativa siempre que guarden relación con la garantía del derecho fundamental a la educación y la debida prestación del servicio. | CY4: Atender y trámitar oportunamente las quejas, denuncias y demás requerimientos formulados por los integrantes de la comunidad educativa siempre que guarden relación con la garantía del derecho fundamental a la educación y la debida prestación del servicio. | DA4: Atender y trámitar oportunamente las quejas, denuncias y demás requerimientos formulados por los integrantes de la comunidad educativa siempre que guarden relación con la garantía del derecho fundamental a la educación y la debida prestación del servicio. | DC4: Atender y trámitar oportunamente las quejas, denuncias y demás requerimientos formulados por los integrantes de la comunidad educativa siempre que guarden relación con la garantía del derecho fundamental a la educación y la debida prestación del servicio. | DG4: Realizar seguimiento a la atención educativa brindada a la población con capacidades o talentos excepcionales donde se garantice el acceso, la permanencia, la calidad, los apoyos y los ajustes razonables requeridos. | DI4: Realizar seguimiento a la atención educativa brindada a la población con capacidades o talentos excepcionales donde se garantice el acceso, la permanencia, la calidad, los apoyos y los ajustes razonables requeridos. | DK4: Realizar seguimiento a la atención educativa brindada a la población con capacidades o talentos excepcionales donde se garantice el acceso, la permanencia, la calidad, los apoyos y los ajustes razonables requeridos. | DM4: Realizar seguimiento a la atención educativa brindada a la población con capacidades o talentos excepcionales donde se garantice el acceso, la permanencia, la calidad, los apoyos y los ajustes razonables requeridos. | DQ4: Exigir el registro en las Cámaras de Comercio de las asociaciones, ligas, federaciones o confederaciones de padres de familia de los establecimientos educativos de su jurisdicción, las cuales también son sujetos de Inspección y Vigilancia. (Artículo 2.3.4.16 del Decreto 1075 del 26 de mayo de 2015). | DT4: EE con preescolar | EU4: 2. Los actos administrativos mediante los cuales se expidió el reconocimiento oficial o la licencia de funcionamiento del EE presentan inconsistencias y no cumplen con la normatividad vigente.
A5: Antioquia | B5: Abejorral | D5: Atlántico | F5: TRAYECTORIAS COMPLETAS | G5: COSTOS EDUCATIVOS | H5: SIET | I5: CALIDAD DEL SERVICIO | J5: APOYO TÉCNICO A PRESTADORES | K5: APOYO A LA EDUCACIÓN RURAL | L5: ASOCIACIONES DE PADRES DE FAMILIA | M5: No | N5: No_oficial | P5: RETORNO A LA PRESENCIALIDAD PLENA | Q5: tema1 | R5: Hacer seguimiento a la ejecución de los recursos FOME. | S5: =LEN(P5) -> 33 | U5: Verificar las condiciones de infraestructura, servicios públicos, mobiliario, laboratorios y demás bienes y equipos apropiados para el desarrollo de los programas académicos ofertados, incluyendo los apoyos comunicativos, tecnológicos o educativos específicos destinados para la atención de estudiantes con discapacidad. | X5: Establecimientos de Educación para el Trabajo y el Desarrollo Humano - EDTH | Z5: Verificar las condiciones de infraestructura, servicios públicos, mobiliario, laboratorios y demás bienes y equipos apropiados para el desarrollo de los programas académicos ofertados, incluyendo los apoyos comunicativos, tecnológicos o educativos específicos destinados para la atención de estudiantes con discapacidad. | AB5: Verificar las condiciones de infraestructura, servicios públicos, mobiliario, laboratorios y demás bienes y equipos apropiados para el desarrollo de los programas académicos ofertados, incluyendo los apoyos comunicativos, tecnológicos o educativos específicos destinados para la atención de estudiantes con discapacidad. | AD5: Verificar las condiciones de infraestructura, servicios públicos, mobiliario, laboratorios y demás bienes y equipos apropiados para el desarrollo de los programas académicos ofertados, incluyendo los apoyos comunicativos, tecnológicos o educativos específicos destinados para la atención de estudiantes con discapacidad. | AF5: Verificar las condiciones de infraestructura, servicios públicos, mobiliario, laboratorios y demás bienes y equipos apropiados para el desarrollo de los programas académicos ofertados, incluyendo los apoyos comunicativos, tecnológicos o educativos específicos destinados para la atención de estudiantes con discapacidad. | AJ5: Verificar el funcionamiento de los mecanismos de control establecidos sobre el cumplimiento de la jornada, el reporte oportuno de las novedades del personal y el ausentismo laboral. | AL5: Otra | AN5: Otra | AP5: Ejercer control sobre la asignación y el desempeño efectivo de las horas extras autorizadas para garantizar la atención en los diferentes niveles ofertados por el EE. | AV5: Hacer seguimiento a la implementación de los programas de apoyo para el acceso y la permanencia escolar y disminuir los índices de deserción y repitencia escolar. | AX5: Otra | AZ5: Hacer seguimiento a la implementación de los programas de apoyo para el acceso y la permanencia escolar en la educación inicial. | BB5: Brindar apoyo a las instituciones educativas urbanas y rurales en el diseño de estrategias que favorezcan la trayectoria escolar completa garantizando a cada estudiante la culminación de su ciclo de formación. | BI5: Aprobar y actualizar la información de los prestadores no oficiales del servicio de Educación Inicial que hayan iniciado su registro en el sistema de información dispuesto por el MEN y caracterizar la oferta oficial y no oficial de la Educación Inicial (en sus dos ciclos) en su territorio. | BM5: Verificar el cumplimiento de lo ordenado por la Ley 1732 de 2014 “Por la cual se establece la Cátedra de la Paz en todas las instituciones educativas del país”. | BO5: Verificar los mecanismos de activación de las Rutas de Atención Integral de las situaciones de convivencia | BQ5: Verificar los mecanismos de activación de las Rutas de Atención Integral de las situaciones de convivencia | BS5: Promover la implementación de las estrategias preventivas del abuso sexual y del acoso en los entornos escolares, en cumplimiento de la Directiva Ministerial No. 1 de 2022. | BW5: Verificar la participación de la comunidad educativa en la gestión del establecimiento y la debida conformación de las instancias de gobierno escolar. | CA5: Otra | CE5: Trámite de quejas por la presunta violación al régimen establecido para la fijación de los costos educativos y/o para la adopción de las listas de útiles, textos, materiales y uniformes escolares | CG5: Verificar los perfiles de desempeño del personal docente vinculado a los EE No Oficiales y garatizar su idoneidad. | CI5: Verificar los perfiles de desempeño del personal docente vinculado a los EE No Oficiales y garatizar su idoneidad. | CK5: Verificar los perfiles de desempeño del personal docente vinculado a los EE No Oficiales y garatizar su idoneidad. | CO5: Apoyar la implementación de los programas de articulación y de mejoramiento de la educación media, garantizar la trayectoria hacia las modalidades de formación posmedia y garantizar la doble titulación. | CQ5: Otra | CS5: Impulsar estrategias de mejoramiento de la calidad de la educación desde el punto de vista de la pertinencia y de su relacionamiento con la vocación productiva regional, promoviendo la resignificación del PEI. | CW5: Establecimientos Educativos priorizados para hacer seguimiento a las quejas o reportes de negación de cupos o de cualquier otra conducta que viole el derecho fundamental a la educación. | CY5: Establecimientos Educativos priorizados para hacer seguimiento a las quejas o reportes de negación de cupos o de cualquier otra conducta que viole el derecho fundamental a la educación. | DA5: Establecimientos Educativos priorizados para hacer seguimiento a las quejas o reportes de negación de cupos o de cualquier otra conducta que viole el derecho fundamental a la educación. | DC5: Establecimientos Educativos priorizados para hacer seguimiento a las quejas o reportes de negación de cupos o de cualquier otra conducta que viole el derecho fundamental a la educación. | DG5: Fortalecer los modelos de atención dirigidos a los grupos de población que gozan de protección especial en virtud de la Constitución Política y apoyar a las comunidades étnicas en la implementación de la educación propia. | DI5: Fortalecer los modelos de atención dirigidos a los grupos de población que gozan de protección especial en virtud de la Constitución Política y apoyar a las comunidades étnicas en la implementación de la educación propia. | DK5: Fortalecer los modelos de atención dirigidos a los grupos de población que gozan de protección especial en virtud de la Constitución Política y apoyar a las comunidades étnicas en la implementación de la educación propia. | DM5: Fortalecer los modelos de atención dirigidos a los grupos de población que gozan de protección especial en virtud de la Constitución Política y apoyar a las comunidades étnicas en la implementación de la educación propia. | DQ5: Llevar un registro actualizado de las Asociaciones de Padres de Familia, exigirles la entrega oportuna de los estatutos y los reportes sobre las reformas hechas a los mismos y sobre la elección periódica de sus dignatarios. | DT5: Prestadores privados con oferta en segundo ciclo de educación y inicial (3 y 4 años) | EU5: 3. El EE ha legalizado sedes, niveles, grados y los programas ofertados. Se observa que el EE opera legalmente.
A6: Antioquia | B6: Abriaquí | D6: Bogotá | F6: JORNADA LABORAL | G6: DUE | H6: CALIDAD DE LOS PROGRAMAS | I6: BACHILLERATO EXPRESS | J6: PQRS | K6: EDUCACIÓN MEDIA | L6: ASOCIACIONES DE PADRES DE FAMILIA | P6: RETORNO A LA PRESENCIALIDAD PLENA | Q6: tema1 | R6: Verficar el número de estudiantes que asisten presencialmente a los establecimientos educativos. | S6: =LEN(P6) -> 33 | U6: Establecimientos Educativos priorizados por haber obtenido su licencia de funcionamiento o su reconocimiento oficial durante el último año lectivo. | X6: Educación Inicial | Z6: Establecimientos Educativos priorizados por haber obtenido su licencia de funcionamiento o su reconocimiento oficial durante el último año lectivo. | AB6: Instituciones de ETDH priorizadas por no haber sido objeto de visitas de control durante los dos últimos años o que obtuvieron su licencia de funcionamiento en el último año. | AD6: Establecimientos Educativos priorizados por haber obtenido su licencia de funcionamiento o su reconocimiento oficial durante el último año lectivo. | AF6: Establecimientos de educación para jóvenes y adultos que -presuntamente- vienen operando sin el lleno de los requisitos legales exigidos para su funcionamiento o cuya oferta no se ajusta a los lineamientos legales vigentes. | AJ6: Verificar los perfiles de desempeño del personal docente vinculado a los EE Oficiales y garatizar su idoneidad. | AP6: Verificar los perfiles de desempeño del personal docente vinculado a los EE No Oficiales y garatizar su idoneidad. | AV6: Brindar apoyo a las instituciones educativas urbanas y rurales en el diseño de estrategias que favorezcan la trayectoria escolar completa garantizando a cada estudiante la culminación de su ciclo de formación. | AZ6: Brindar apoyo a las instituciones educativas urbanas y rurales en el diseño de estrategias que favorezcan la trayectoria escolar completa garantizando a cada estudiante la culminación de su ciclo de formación. | BB6: Otra | BI6: Realizar visitas a los prestadores no oficiales de Educación Inicial registrados y aplicar cuando fuere pertinente las sanciones previstas en los artículos 196 y 197 de la Ley 1801 de 2016 "Por la cual se expide el Código Nacional de Seguridad y Convivencia Ciudadana" o las normas que los modifiquen o sustituyan. | BM6: Promover la implementación de las estrategias preventivas del abuso sexual y del acoso en los entornos escolares, en cumplimiento de la Directiva Ministerial No. 1 de 2022. | BO6: Verificar que los prestadores privados implementen en sus procesos de selección y vinculación del personal, el mecanismo de consulta del sistema de registro de inhabilidades por delitos sexuales contra la libertad e integridad de niños, niñas y adolescente; y que efectúen las consultas periódicas, de conformidad con lo establecido en el Decreto 753 de 2019 | BQ6: Verificar que los prestadores privados implementen en sus procesos de selección y vinculación del personal, el mecanismo de consulta del sistema de registro de inhabilidades por delitos sexuales contra la libertad e integridad de niños, niñas y adolescente; y que efectúen las consultas periódicas, de conformidad con lo establecido en el Decreto 753 de 2019 | BS6: Verificar los reportes de las situaciones tipo II y tipo III en el SIUCE. | BW6: Evaluar la gestión administrativa, el manejo de los Fondos de Servicios Educativos y acompañar los procesos de rendición de cuentas que deben adelantar los EE oficiales. | CE6: Realizar visitas de verificación que complementen la autoevaluación institucional y garantizar la idoneidad de la información registrada por los Colegios Privados en la aplicación EVI. | CG6: Prestar asistencia tecnica a los EE privados en temas de legalización de la oferta de servicios educativos, expedición de licencias de funcionamiento, aprobación de programas, registro de novedades y ampliación de la jornada, entre otros. | CI6: Prestar asistencia tecnica a los EE privados en temas de legalización de la oferta de servicios educativos, expedición de licencias de funcionamiento, aprobación de programas, registro de novedades y ampliación de la jornada, entre otros. | CK6: Prestar asistencia tecnica a los EE privados en temas de legalización de la oferta de servicios educativos, expedición de licencias de funcionamiento, aprobación de programas, registro de novedades y ampliación de la jornada, entre otros. | CO6: Hacer seguimiento y evaluar el cumplimiento de los Planes de Mejoramiento Institucional en desarrollo de las estrategias de acompañamiento definidas en el -PAM- de la ETC. | CS6: Verificar la debida adopción y la divulgación del Sistema Institucional de Evaluación de los Estudiantes. | CW6: Otra | CY6: Otra | DA6: Otra | DC6: Otra | DG6: Otra | DI6: Otra | DK6: Otra | DM6: Otra | DQ6: Exigir a las Asociaciones de Padres de Familia la entrega anual de la información relacionada con su presupuesto de ingresos y gastos y los estados financieros de cada ejercicio. | DT6: Prestadores privados con oferta en primer ciclo de educación inicial (0 a 3 años) | EU6: 4. El EE no ha legalizado sedes, niveles, grados y/o programas ofertados. Se observa que el EE no opera legalmente.
A7: Antioquia | B7: Alejandría | D7: Bolívar | F7: PLANTA DE PERSONAL DOCENTE | G7: EVI | H7: AUTO-EVALUACIÓN | I7: HABILITACIÓN DE PRESTADORES | J7: OTRA | K7: CONVIVENCIA ESCOLAR | L7: OTRA | P7: RETORNO A LA PRESENCIALIDAD PLENA | Q7: tema1 | R7: Verificar, en lo de su competencia, el cumplimiento de los protocolos de bioseguridad establecidos por el Gobierno Nacional. | S7: 33 | U7: Instituciones de ETDH priorizadas por no haber sido objeto de visitas de control durante los dos últimos años o que obtuvieron su licencia de funcionamiento en el último año. | X7: Educación para Jóvenes y Adultos | Z7: Prestadores de Educación Inicial priorizados porque -presuntamente- no cumplen los requisitos legales establecidos para operar en este nivel. | AB7: Verificar el uso de las TIC como estrategia de apoyo pedagógico, disponibilidad de equipos, conectividad, soporte técnico, mantenimiento y reposición de equipos. | AD7: Prestadores de Educación Inicial priorizados porque -presuntamente- no cumplen los requisitos legales establecidos para operar en este nivel. | AF7: Ejercer control sobre la oferta de servicios educativos en modalidad virtual en los niveles educativos en que ésta no se encuentra autorizada. | AJ7: Ejercer control sobre la asignación y el desempeño efectivo de las horas extras autorizadas para garantizar la atención en los diferentes niveles ofertados por el EE. | AP7: Otra | AV7: Garantizar el cumplimiento del principio de gratuidad del servicio educativo en los EE Oficiales cobijados por este beneficio. | AZ7: Otra | BI7: Brindar asistencia técnica a los prestadores oficiales y no oficiales a partir de los referentes técnicos de la Educación Inicial establecidos por el MEN. | BM7: Verificar los reportes de las situaciones tipo II y tipo III en el SIUCE. | BO7: Verificar que los prestadores privados tengan previsto el procedimiento a seguir en caso de que una persona vinculada al establecimiento educativo resulte involucrada en una investigación judicial por delitos de violencia sexual contra NNAJ; evento en el cual deben prevalecer los derechos de estos últimos evitando la interacción directa del involucrado con los estudiantes, mientras se surte el debido proceso. | BQ7: Verificar que los prestadores privados tengan previsto el procedimiento a seguir en caso de que una persona vinculada al establecimiento educativo resulte involucrada en una investigación judicial por delitos de violencia sexual contra NNAJ; evento en el cual deben prevalecer los derechos de estos últimos evitando la interacción directa del involucrado con los estudiantes, mientras se surte el debido proceso. | BS7: Verificar que los prestadores privados implementen en sus procesos de selección y vinculación del personal, el mecanismo de consulta del sistema de registro de inhabilidades por delitos sexuales contra la libertad e integridad de niños, niñas y adolescente; y que efectúen las consultas periódicas, de conformidad con lo establecido en el Decreto 753 de 2019 | BW7: Verificar la actualización y el ajuste normativo del Manual de Convivencia de los EE Oficiales y No Oficiales | CE7: Verificar los perfiles de desempeño del personal docente vinculado a los EE No Oficiales y garatizar su idoneidad. | CG7: Verificar el procedimiento aplicado en los EE No Oficiales para la aprobación de los costos educativos, los reportes de la autoevaluación institucional (EVI) y los procesos seguidos para la fijación de listas de útiles, textos, materiales y uniformes escolares. | CI7: Otra | CK7: Otra | CO7: Impulsar estrategias de mejoramiento de la calidad de la educación desde el punto de vista de la pertinencia y de su relacionamiento con la vocación productiva regional, promoviendo la resignificación del PEI. | CS7: Verificar el uso adecuado y los registros de las plataformas de calificaciones y las evidencias de los procesos de evaluación del aprendizaje de los estudiantes. (Libros Reglamentarios) | DQ7: Ejercer el control sobre las acciones que las Asociaciones de Padres de Familia realizan en cumplimiento de su objeto social para lo cual deben atender las prohibiciones legalmente establecidas. ( Ley 1269 de 2008 y artículos 2.3.4.12, y 2.3.4.15 del Decreto 1075 de 2015). | DT7: Prestadores públicos con oferta en segundo ciclo de educación inicial (3 y 4 años) | EU7: 5. EL EE ejecuta adecuadamente el Proyecto Educativo Institucional autorizado.
A8: Antioquia | B8: Amagá | D8: Boyacá | F8: MODELOS EDUCATIVOS FLEXIBLES | G8: RÉGIMEN SANCIONATORIO | H8: HABILITACIÓN DE PRESTADORES | I8: DUE | K8: PERTINENCIA Y MEJORAMIENTO DE LA CALIDAD | P8: RETORNO A LA PRESENCIALIDAD PLENA | Q8: tema1 | R8: Verificar los planes de fortalecimiento académico, flexibilidad curricular y valoración formativa, que reconozcan el estado de desarrollo de los estudiantes en donde se prioricen aprendizajes esenciales que acojan estrategias de interacción y retroalimentación que respondan a las necesidades de niñas, niños, adolescentes y jóvenes. | S8: 33 | U8: Establecimientos de educación para jóvenes y adultos que -presuntamente- vienen operando sin el lleno de los requisitos legales exigidos para su funcionamiento o cuya oferta no se ajusta a los lineamientos legales vigentes. | Z8: Ejercer control sobre la oferta de servicios educativos en modalidad virtual en los niveles educativos en que ésta no se encuentra autorizada. | AB8: Constatar las condiciones de accesibilidad de los establecimientos educativos, en particular, las requeridas por las personas que hacen parte de los grupos poblacionales de especial protección. (Corte Constitucional - Sentencia T-736 de 2013). | AD8: Constatar las condiciones de accesibilidad de los establecimientos educativos, en particular, las requeridas por las personas que hacen parte de los grupos poblacionales de especial protección. (Corte Constitucional - Sentencia T-736 de 2013). | AF8: Verificar el uso de las TIC como estrategia de apoyo pedagógico, disponibilidad de equipos, conectividad, soporte técnico, mantenimiento y reposición de equipos. | AJ8: Otra | AV8: Otra | BI8: Hacer seguimiento a la matrícula de la población atendida por los prestadores de Educación Inicial que sea registrada en el sistema de información dispuesto para este fin por el MEN. | BM8: Verificar que los prestadores privados implementen en sus procesos de selección y vinculación del personal, el mecanismo de consulta del sistema de registro de inhabilidades por delitos sexuales contra la libertad e integridad de niños, niñas y adolescente; y que efectúen las consultas periódicas, de conformidad con lo establecido en el Decreto 753 de 2019 | BO8: Verificar la actualización y el ajuste normativo del Manual de Convivencia de los EE Oficiales y No Oficiales | BQ8: Verificar la actualización y el ajuste normativo del Manual de Convivencia de los EE Oficiales y No Oficiales | BS8: Verificar que los prestadores privados tengan previsto el procedimiento a seguir en caso de que una persona vinculada al establecimiento educativo resulte involucrada en una investigación judicial por delitos de violencia sexual contra NNAJ; evento en el cual deben prevalecer los derechos de estos últimos evitando la interacción directa del involucrado con los estudiantes, mientras se surte el debido proceso. | BW8: Otra | CE8: Adelantar, en coordinación con el área Jurídica, las actuaciones previstas en el régimen sancionatorio, cuando los EE No Oficiales hayan incurrido presuntamente en conductas violatorias del régimen legal aplicable a la prestación del servicio. | CG8: Otra | CO8: Hacer seguimiento a los resultados obtenidos por los EE en las Pruebas de Estado aplicadas en los grados 3, 5, 7, 9 y 11; y promover la adopción de los planes de mejoramiento respectivos. | CS8: Otra | DQ8: Otra | DT8: Prestadores públicos con oferta en primer ciclo de educación inicial (0 a 3 años) | EU8: 6. EL EE no ejecuta adecuadamente el Proyecto Educativo Institucional autorizado.
A9: Antioquia | B9: Amalfi | D9: Caldas | F9: CONDICIONES DE PRESTACIÓN DEL SERVICIO | G9: RÉGIMEN CONTROLADO | H9: CONDICIONES DE PRESTACIÓN DEL SERVICIO | I9: PQRS | K9: ASOCIACIONES DE PADRES DE FAMILIA | P9: RETORNO A LA PRESENCIALIDAD PLENA | Q9: tema1 | R9: Otra | S9: 33 | U9: Prestadores de Educación Inicial priorizados porque -presuntamente- no cumplen los requisitos legales establecidos para operar en este nivel. | Z9: Verificar el uso de las TIC como estrategia de apoyo pedagógico, disponibilidad de equipos, conectividad, soporte técnico, mantenimiento y reposición de equipos. | AB9: Otra | AD9: Otra | AF9: Constatar las condiciones de accesibilidad de los establecimientos educativos, en particular, las requeridas por las personas que hacen parte de los grupos poblacionales de especial protección. (Corte Constitucional - Sentencia T-736 de 2013). | BI9: Otra | BM9: Verificar que los prestadores privados tengan previsto el procedimiento a seguir en caso de que una persona vinculada al establecimiento educativo resulte involucrada en una investigación judicial por delitos de violencia sexual contra NNAJ; evento en el cual deben prevalecer los derechos de estos últimos evitando la interacción directa del involucrado con los estudiantes, mientras se surte el debido proceso. | BO9: Otra | BQ9: Otra | BS9: Verificar la actualización y el ajuste normativo del Manual de Convivencia de los EE Oficiales y No Oficiales | CE9: Hacer seguimiento especial a los establecimientos clasificados en régimen controlado y verificar el cumplimiento de los planes de mejoramiento acordados para superar las circunstancia que originaron esta clasificación. | CO9: Verificar la debida adopción y la divulgación del Sistema Institucional de Evaluación de los Estudiantes. | EU9: Otra
A10: Antioquia | B10: Andes | D10: Caquetá | F10: COBERTURA ESCOLAR | G10: HABILITACIÓN DE PRESTADORES | H10: VISITAS PRIORITARIAS | I10: OTRA | K10: OTRA | P10: CONTROL NORMATIVO Y VERIFICACIÓN DE CONDICIONES | Q10: tema2 | R10: Ejercer control normativo y verificar los actos administrativos de creación o de reconocimiento oficial del EE, legalización de novedades, autorización de jornadas, sedes, ciclos y programas y la aprobación o resignificación del PEI. | S10: =LEN(P10) -> 47 | U10: Ejercer control sobre la oferta de servicios educativos en modalidad virtual en los niveles educativos en que ésta no se encuentra autorizada. | Z10: Constatar las condiciones de accesibilidad de los establecimientos educativos, en particular, las requeridas por las personas que hacen parte de los grupos poblacionales de especial protección. (Corte Constitucional - Sentencia T-736 de 2013). | AF10: Otra | BM10: Verificar que los EE no oficiales, contemplen en los reglamentos internos de los Comités Escolares de Convivencia los conflictos de interés, las casuales de impedimento y de recusación, así como el procedimiento para resolverlos, de tal forma que se garantice la imparcialidad en las actuaciones de los integrantes de los referidos comités. | BS10: Otra | CE10: Prestar asistencia tecnica a los EE privados en temas de legalización de la oferta de servicios educativos, expedición de licencias de funcionamiento, aprobación de programas, registro de novedades y ampliación de la jornada, entre otros. | CO10: Verificar el uso adecuado y los registros de las plataformas de calificaciones y las evidencias de los procesos de evaluación del aprendizaje de los estudiantes. (Libros Reglamentarios) | ET10: Verificar las condiciones de infraestructura, servicios públicos, mobiliario, laboratorios y demás bienes y equipos apropiados para el desarrollo de los programas académicos ofertados, incluyendo los apoyos comunicativos, tecnológicos o educativos específicos destinados para la atención de estudiantes con discapacidad. | EU10: 1. El EE no dispone de infraestructura apropiada para el desarrollo de los programas académicos ofertados
A11: Antioquia | B11: Angelópolis | D11: Cauca | F11: GRATUIDAD EDUCATIVA | G11: CONVIVENCIA ESCOLAR | H11: PQRS | P11: CONTROL NORMATIVO Y VERIFICACIÓN DE CONDICIONES | Q11: tema2 | R11: Verificar la disponibilidad de infraestructura, mobiliario, laboratorios y demás elementos apropiados para el desarrollo de los programas académicos ofertados por los prestadores en los distintos niveles de formación, incluyendo los apoyos específicos destinados para la atención de los estudiantes con discapacidad. | S11: 47 | U11: Verificar el uso de las TIC como estrategia de apoyo pedagógico, disponibilidad de equipos, conectividad, soporte técnico, mantenimiento y reposición de equipos. | Z11: Otra | BM11: Verificar la actualización y el ajuste normativo del Manual de Convivencia de los EE Oficiales y No Oficiales | CE11: Otra | CO11: Verificar la existencia de los Planes Individuales de Ajustes Razonables en los casos en que se requiera su implementación. Decreto 1421 de 2017. | EU11: 2. El EE no dispone de mobiliario apropiado para el desarrollo de los programas académicos ofertados
A12: Antioquia | B12: Angostura | D12: Cesar | F12: PIAR | G12: CONDICIONES DE PRESTACIÓN DEL SERVICIO | H12: OTRA | P12: CONTROL NORMATIVO Y VERIFICACIÓN DE CONDICIONES | Q12: tema2 | R12: Otra | S12: 47 | U12: Constatar las condiciones de accesibilidad de los establecimientos educativos, en particular, las requeridas por las personas que hacen parte de los grupos poblacionales de especial protección. (Corte Constitucional - Sentencia T-736 de 2013). | BM12: Otra | CG12: SI($G5=H!$X$4;INDIRECTO(H!$AJ$3);SI($G5=H!$X$5;INDIRECTO(H!$AL$3);SI($G5=H!$X$6;INDIRECTO(H!$AN$3);SI($G5=H!$X$7;INDIRECTO(H!$AP$3);0)))) | CO12: Otra | EU12: 3. El EE no dispone de laboratorios apropiados para el desarrollo de los programas académicos ofertados
A13: Antioquia | B13: Anorí | D13: Córdoba | F13: EDUCACIÓN INICIAL | G13: COBERTURA ESCOLAR | P13: PLANTA DE PERSONAL, JORNADA LABORAL Y PERFILES DE DESEMPEÑO | Q13: tema3 | R13: Verificar la asignación de la planta de personal docente y directivo-docente destinado a los EE Oficiales, teniendo en cuenta el PEI, las relaciones técnicas vigentes y sus perfiles o áreas de desempeño, incluyendo a los profesionales de apoyo. | S13: 59 | U13: Verificar la asignación de la planta de personal docente y directivo-docente destinado a los EE Oficiales, teniendo en cuenta el PEI, las relaciones técnicas vigentes y sus perfiles o áreas de desempeño, incluyendo a los profesionales de apoyo. | EU13: 4. El EE no dispone de bienes y equipos apropiados para el desarrollo de los programas académicos ofertados, incluyendo los apoyos comunicativos, tecnológicos o educativosrequeridos para la atención de estudiantes con discapacidad.
A14: Antioquia | B14: Santa Fé de Antioquia | D14: Cundinamarca | F14: TRAYECTORIAS COMPLETAS | G14: PIAR | P14: PLANTA DE PERSONAL, JORNADA LABORAL Y PERFILES DE DESEMPEÑO | Q14: tema3 | R14: Controlar el cumplimiento de la jornada y adopatar mecanismos de control sobre el ausentismo laboral. | S14: =LEN(P14) -> 59 | U14: Verificar el funcionamiento de los mecanismos de control establecidos sobre el cumplimiento de la jornada, el reporte oportuno de las novedades del personal y el ausentismo laboral. | EU14: 5. El EE dispone de infraestructura apropiada para el desarrollo de los programas académicos ofertados.
A15: Antioquia | B15: Anzá | D15: Chocó | F15: CONVIVENCIA ESCOLAR | G15: ALTERNANCIA EDUCATIVA | P15: PLANTA DE PERSONAL, JORNADA LABORAL Y PERFILES DE DESEMPEÑO | Q15: tema3 | R15: Verificar los perfiles del personal docente vinculado a los establecimientos educativos No Oficiales y garatizar su idoneidad. | S15: 59 | U15: Verificar los perfiles de desempeño del personal docente vinculado a los EE Oficiales y garatizar su idoneidad. | EU15: 6. El EE dispone del mobiliario apropiado para el desarrollo de los programas académicos ofertados
A16: Antioquia | B16: Apartadó | D16: Huila | F16: CONVIVENCIA ESCOLAR | G16: PLANES DE MEJORAMIENTO | P16: PLANTA DE PERSONAL, JORNADA LABORAL Y PERFILES DE DESEMPEÑO | Q16: tema3 | R16: Otra | S16: =LEN(P16) -> 59 | U16: Ejercer control sobre la asignación y el desempeño efectivo de las horas extras autorizadas para garantizar la atención en los diferentes niveles ofertados por el EE. | EU16: 7. El EE dispone de laboratorios apropiados para el desarrollo de los programas académicos ofertados
A17: Antioquia | B17: Arboletes | D17: La_Guajira | F17: CONVIVENCIA ESCOLAR | G17: PQRS | P17: COBERTURA Y PERMANENCIA ESCOLAR | Q17: tema4 | R17: Ejercer control sobre la cobertura escolar y garantizar el registro adecuado y oportuno de la matrícula en el SIMAT. | S17: 31 | U17: Verificar los perfiles de desempeño del personal docente vinculado a los EE No Oficiales y garatizar su idoneidad. | EU17: 8. El EE dispone de los bienes y equipos apropiados para el desarrollo de los programas académicos ofertados, incluyendo los apoyos comunicativos tecnológicos o educativos requeridos para la atención de estudiantes con discapacidad.
A18: Antioquia | B18: Argelia | D18: Magdalena | F18: JORNADA ÚNICA | G18: ASISTENCIA TECNICA A LOS EE | P18: COBERTURA Y PERMANENCIA ESCOLAR | Q18: tema4 | R18: Hacer seguimiento a los programas de acceso y permanencia e implementar estrategias dirigidas a disminuir la deserción y la reprobación escolar. | S18: 31 | U18: Ejercer control sobre la cobertura escolar y garantizar el registro adecuado y oportuno de la matrícula en el SIMAT. | EU18: 9. El EE cuenta con los servicios públicos básicos para la atención a la población escolar.
A19: Antioquia | B19: Armenia | D19: Meta | F19: GOBIERNO ESCOLAR | G19: COSTOS EDUCATIVOS | P19: COBERTURA Y PERMANENCIA ESCOLAR | Q19: tema4 | R19: Garantizar el cumplimiento del principio de gratuidad de la prestación del servicio en los niveles educativos cobijados por este beneficio. | S19: 31 | U19: Ejercer control sobre la cobertura escolar y garantizar el registro adecuado y oportuno de la matrícula en el aplicativo dispuesto para tal fin. | EU19: 10. El EE tiene deficiencias en el suministro y/o en la infraestructura asociada a los servicios públicos básicos.
A20: Antioquia | B20: Barbosa | D20: Nariño | F20: GESTIÓN ACADÉMICA | G20: OTRA | P20: COBERTURA Y PERMANENCIA ESCOLAR | Q20: tema4 | R20: Otra | S20: =LEN(P20) -> 31 | U20: Hacer seguimiento a la implementación de los programas de apoyo para el acceso y la permanencia escolar y disminuir los índices de deserción y repitencia escolar. | EU20: 11. El EE ofrece condiciones adecuadas para la atención a la población en situación de discapacidad.
A21: Antioquia | B21: Belmira | D21: Norte_de_Santander | F21: RENDICIÓN DE CUENTAS | P21: MODELO DE GESTIÓN DE LA EDUCACIÓN INICIAL | Q21: tema5 | R21: Apoyar el proceso de implementación en la ETC del Modelo de Gestión de la Educación Inicial en todos sus componentes, profundizando en la conformación del Registro Único de Prestadores de Educación Inicial – RUPEI – y en las labores de seguimiento y de acompañamiento técnico a las unidades de servicio existentes en su jurisdicción. | S21: 41 | U21: Brindar apoyo a las instituciones educativas urbanas y rurales en el diseño de estrategias que favorezcan la trayectoria escolar completa garantizando a cada estudiante la culminación de su ciclo de formación. | EU21: 12. El EE no ofrece condiciones adecuadas para la atención a la población en situación de discapacidad.
A22: Antioquia | B22: Bello | D22: Quindío | F22: ALTERNANCIA EDUCATIVA | P22: MODELO DE GESTIÓN DE LA EDUCACIÓN INICIAL | Q22: tema5 | R22: Otra | S22: 41 | U22: Garantizar el cumplimiento del principio de gratuidad del servicio educativo en los EE Oficiales cobijados por este beneficio. | EU22: Otra
A23: Antioquia | B23: Betania | D23: Risaralda | F23: ALTERNANCIA EDUCATIVA | P23: CONVIVENCIA ESCOLAR | Q23: tema6 | R23: Verificar el funcionamiento del comité escolar de convivencia y el cumplimiento de sus funciones y revisar anualmente las condiciones de convivencia escolar de los EE identificando los factores de riesgo y los factores protectores que incidan en la convivencia escolar y en la protección de los derechos humanos, sexuales y reproductivos. | S23: =LEN(P23) -> 19 | U23: Brindar asesoría y acompañamiento técnico a los prestadores del servicio de educación inicial, apoyar la implementación de los lineamientos técnicos establecidos y verificar su articulación con los establecimientos de EPBM. | ET23: Establecimientos Educativos priorizados por haber obtenido su licencia de funcionamiento o su reconocimiento oficial durante el último año lectivo. | EU23: 1. El EE se encuentra funcionando con normalidad y cumple con los lineamientos fijados en la normatividad vigente.
A24: Antioquia | B24: Betulia | D24: Santander | F24: ALTERNANCIA EDUCATIVA | P24: CONVIVENCIA ESCOLAR | Q24: tema6 | R24: Verificar los mecanismos de activación de la Ruta de Atención Integral para la Convivencia Escolar y el reportes de las situaciones tipo II y tipo III y verificar los reportes en el SIUCE. | S24: 19 | U24: Ejercer control sobre los prestadores de Educación Inicial y verificar su articulación con los establecimientos educativos oficiales, en los términos en que lo dispongan las normas aplicables a esta materia. | EU24: 2. El EE no se encuentra funcionando con normalidad e incumple los lineamientos fijados en la normatividad vigente.
A25: Antioquia | B25: Ciudad Bolívar | D25: Sucre | F25: PLANES DE MEJORAMIENTO | P25: CONVIVENCIA ESCOLAR | Q25: tema6 | R25: Fortalecer los sistemas de gobierno y de convivencia escolar bajo la perspectiva de hacer de los establecimientos educativos entornos protectores para la población escolar en ellos atendida. | S25: 19 | U25: Verificar los registros de los prestadores de servicios de educación incial en los sistemas de información dispuestos para este fin y hacer seguimiento a la matrícula de la población escolar atendida en estos niveles. | EU25: Otra
A26: Antioquia | B26: Briceño | D26: Tolima | F26: DUE | P26: CONVIVENCIA ESCOLAR | Q26: tema6 | R26: Verificar la aprobación y divulgación del manual de convivencia escolar. | S26: =LEN(P26) -> 19 | U26: Verificar la conformación y el funcionamiento de los Comités Escolares de Convivencia e impulsar la revisión y la actualización de los manuales de convivencia escolar. | ET26: Instituciones de ETDH priorizadas por no haber sido objeto de visitas de control durante los dos últimos años o que obtuvieron su licencia de funcionamiento en el último año. | EU26: 1. La información disponible de la IETDH permite identificar la pertinencia de los programas ofertados y la capacidad institucional para responder a la demanda de los estudiantes, cumpliendo con los términos contenidos en la propuesta presentada para la aprobación de programas.
A27: Antioquia | B27: Buriticá | D27: Valle_del_Cauca | F27: PQRS | P27: CONVIVENCIA ESCOLAR | Q27: tema6 | R27: Otra | S27: 19 | U27: Verificar el cumplimiento de lo ordenado por la Ley 1732 de 2014 “Por la cual se establece la Cátedra de la Paz en todas las instituciones educativas del país”. | EU27: 2. La información disponible de la institución de ETDH no permite identificar la pertinencia de los programas ofertados y/o no cuenta con la capacidad institucional requerida para responder a la demanda e incumple los términos contenidos en la propuesta presentada para la aprobación de programas.
A28: Antioquia | B28: Cáceres | D28: Arauca | F28: POBLACION CON DISCAPACIDAD EN SIMAT | P28: GESTIÓN DIRECTIVA Y GOBIERNO ESCOLAR | Q28: tema7 | R28: Evaluar la gestión directiva y el direccionamiento estratégico de los establecimientos educativos, propiciar la participación de las comunidades educativas en las instancias de gobierno escolar y verificar su adecuada conformación y funcionamiento. | S28: =LEN(P28) -> 36 | U28: Promover la implementación de las estrategias preventivas del abuso sexual y del acoso en los entornos escolares, en cumplimiento de la Directiva Ministerial No. 1 de 2022. | EU28: Otra
A29: Antioquia | B29: Caicedo | D29: Casanare | F29: CAPACIDADES O TALENTOS EXCEPCIONALES | P29: GESTIÓN DIRECTIVA Y GOBIERNO ESCOLAR | Q29: tema7 | R29: Acompañar los procesos de rendición de cuentas que deben efectuar periódicamente los establecimientos oficiales y evaluar la gestión administrativa, financiera y contable de los Fondos de Servicios Educativos. | S29: 36 | U29: Verificar los mecanismos de activación de las Rutas de Atención Integral y los reportes de las situaciones tipo II y tipo III en el SIUCE. | ET29: Establecimientos de educación para jóvenes y adultos que -presuntamente- vienen operando sin el lleno de los requisitos legales exigidos para su funcionamiento o cuya oferta no se ajusta a los lineamientos legales vigentes. | EU29: 1. El EE cumple con las condiciones establecidas para la prestación del servicio educativo para jóvenes y adultos en ciclos lectivos especiales del 1 al 6, conforme a la normatividad vigente, particularmente, en las edades exigidas para el ingreso de los estudiantes.
A30: Antioquia | B30: Caldas | D30: Putumayo | F30: OTRA | P30: GESTIÓN DIRECTIVA Y GOBIERNO ESCOLAR | Q30: tema7 | R30: Otra | S30: 36 | U30: Verificar los mecanismos de activación de las Rutas de Atención Integral de las situaciones de convivencia | EU30: 2. El EE no cumple con las condiciones establecidas para la prestación del servicio educativo para jóvenes y adultos en ciclos lectivos especiales del 1 al 6, conforme a la normatividad vigente y/o incumple las normas que regulan las edades exigidas para el ingreso de los estudiantes.
A31: Antioquia | B31: Campamento | D31: Archipiélago_de_San_Andrés_Providencia_y_Santa_Catalina | P31: SISTEMAS DE INFORMACIÓN DEL SECTOR | Q31: tema8 | R31: Verificar el funcionamiento de los establecimientos educativos a partir de los reportes arrojados por los sistemas de información y garantizarel registro, la depuración y la actualización permanente de los datos reportados en las plataformas del sector -DUE, EVI, SIET, SIMAT, etc.- | S31: 34 | U31: Verificar que los prestadores privados implementen en sus procesos de selección y vinculación del personal, el mecanismo de consulta del sistema de registro de inhabilidades por delitos sexuales contra la libertad e integridad de niños, niñas y adolescente; y que efectúen las consultas periódicas, de conformidad con lo establecido en el Decreto 753 de 2019 | EU31: Otra
A32: Antioquia | B32: Cañasgordas | D32: Amazonas | P32: SISTEMAS DE INFORMACIÓN DEL SECTOR | Q32: tema8 | R32: Otra | S32: 34 | U32: Verificar que los prestadores privados tengan previsto el procedimiento a seguir en caso de que una persona vinculada al establecimiento educativo resulte involucrada en una investigación judicial por delitos de violencia sexual contra NNAJ; evento en el cual deben prevalecer los derechos de estos últimos evitando la interacción directa del involucrado con los estudiantes, mientras se surte el debido proceso. | ET32: Prestadores de Educación Inicial priorizados porque -presuntamente- no cumplen los requisitos legales establecidos para operar en este nivel. | EU32: 1. La unidad/sede de servicio de Educación Inicial opera de conformidad con los referentes técnicos definidos por el MEN.
A33: Antioquia | B33: Caracolí | D33: Guainía | P33: EDUCACIÓN PRIVADA | Q33: tema9 | R33: Verificar el procedimiento aplicado en los EE No Oficiales para la aprobación de los costos educativos, el reporte de la autoevaluación institucional y los procesos seguidos para la fijación de listas de útiles, textos y materiales escolares. | S33: 17 | U33: Verificar que los EE no oficiales, contemplen en los reglamentos internos de los Comités Escolares de Convivencia los conflictos de interés, las casuales de impedimento y de recusación, así como el procedimiento para resolverlos, de tal forma que se garantice la imparcialidad en las actuaciones de los integrantes de los referidos comités. | EU33: 2. La unidad/sede de servicio de Educación Inicial no opera de conformidad con los referentes técnicos definidos por el MEN.
A34: Antioquia | B34: Caramanta | D34: Guaviare | P34: EDUCACIÓN PRIVADA | Q34: tema9 | R34: Realizar visitas de evaluación externa que complementen la evaluación institucional y garantizar la idoneidad de la información registrada por los Colegios Privados en la aplicación EVI. | S34: =LEN(P34) -> 17 | U34: Evaluar la gestión directiva y el direccionamiento estratégico de los establecimientos educativos mediante la revisión de los instrumentosde planeación institucional. | EU34: 3. Otra
A35: Antioquia | B35: Carepa | D35: Vaupés | P35: EDUCACIÓN PRIVADA | Q35: tema9 | R35: Apoyar los procesos sancionatorios que deban adelantarse cuando se reciban quejas y se demuestre que los EE han incurrido en conductas irregulares, en el marco del debido proceso. | S35: 17 | U35: Verificar la participación de la comunidad educativa en la gestión del establecimiento y la debida conformación de las instancias de gobierno escolar. | ET35: Ejercer control sobre la oferta de servicios educativos en modalidad virtual en los niveles educativos en que ésta no se encuentra autorizada. | EU35: 1. El EE se encuentra funcionando con normalidad y la oferta educativa cumple con los lineamientos fijados en la normatividad vigente.
A36: Antioquia | B36: El Carmen de Viboral | D36: Vichada | P36: EDUCACIÓN PRIVADA | Q36: tema9 | R36: Hacer seguimiento a los EE clasificados en régimen controlado con el propósito de asegurar que superen las causas que motivaron esta clasificación. | S36: 17 | U36: Evaluar la gestión administrativa, el manejo de los Fondos de Servicios Educativos y acompañar los procesos de rendición de cuentas que deben adelantar los EE oficiales. | EU36: 2. El EE no se encuentra funcionando con normalidad y la oferta educativa incumple los lineamientos fijados en la normatividad vigente.
A37: Antioquia | B37: Carolina | P37: EDUCACIÓN PRIVADA | Q37: tema9 | R37: Prestar asistencia tecnica a los EE privados en temas legalización de la oferta de servicios educativos, expedición de licencias de funcionamiento, aprobación de programas, registro de novedades, calendario escolar e intensidades horarias mínimas, jornada única, entre otros. | S37: 17 | U37: Verificar los reportes hechos por los EE en los sistemas de información y garantizar el registro, la depuración y la actualización permanente de los datos en las plataformas del DUE, EVI, SIET, SIPI, SIMAT,SIFSE, etc.. | EU37: Otra
A38: Antioquia | B38: Caucasia | P38: EDUCACIÓN PRIVADA | Q38: tema9 | R38: Otra | S38: 17 | U38: Verificar el procedimiento aplicado en los EE No Oficiales para la aprobación de los costos educativos, los reportes de la autoevaluación institucional (EVI) y los procesos seguidos para la fijación de listas de útiles, textos, materiales y uniformes escolares. | ET38: Verificar el uso de las TIC como estrategia de apoyo pedagógico, disponibilidad de equipos, conectividad, soporte técnico, mantenimiento y reposición de equipos. | EU38: 1. EL EE contempla el uso de las TIC como estrategia de apoyo pedagógico a la educación. Para ello cuenta con el hardware y el software requerido, conectividad, soporte técnico, mantenimiento y plan de reposición de equipos.
A39: Antioquia | B39: Chigorodó | P39: CALIDAD Y PERTINENCIA DE LA EDUCACION | Q39: tema10 | R39: Brindar apoyo a las instituciones educativas urbanas y rurales en el diseño de estrategias que favorezcan la trayectoria escolar completa garantizando a cada estudiante la culminación de su ciclo de formación. | S39: 37 | U39: Trámite de quejas por la presunta violación al régimen establecido para la fijación de los costos educativos y/o para la adopción de las listas de útiles, textos, materiales y uniformes escolares | EU39: 2. EL EE no contempla el uso de las TIC como estrategia de apoyo pedagógico a la educación y/o presenta deficiencias en el hardware, software, conectividad, soporte técnico, mantenimiento y en el plan de reposición de equipos.
A40: Antioquia | B40: Cisneros | P40: CALIDAD Y PERTINENCIA DE LA EDUCACION | Q40: tema10 | R40: Apoyar la implantación del programa de Jornada Única como factor determinante para el mejoramiento de la calidad, en los EE oficiales priorizados para este fin. | S40: 37 | U40: Realizar visitas de verificación que complementen la autoevaluación institucional y garantizar la idoneidad de la información registrada por los Colegios Privados en la aplicación EVI. | EU40: Otra
A41: Antioquia | B41: Cocorná | P41: CALIDAD Y PERTINENCIA DE LA EDUCACION | Q41: tema10 | R41: Apoyar la implementación de los programas de articulación y de mejoramiento de la educación media, en especial los dirigidos a garantizar las trayectorias educativas hacia las modalidades de formación técnica profesional, con el fin de garantizar la doble titulación. | S41: 37 | U41: Verificar los perfiles de desempeño del personal docente vinculado a los EE No Oficiales y garatizar su idoneidad. | ET41: Constatar las condiciones de accesibilidad de los establecimientos educativos, en particular, las requeridas por las personas que hacen parte de los grupos poblacionales de especial protección. (Corte Constitucional - Sentencia T-736 de 2013). | EU41: 1. El EE requiere adecuar su infraestructura y/o sus programas de aprendizaje para garantizar la atención adecuada a los estudiantes que hacen parte de los grupos poblacionales de especial protección. (Corte Constitucional - Sentencia T-736 de 2013).
A42: Antioquia | B42: Concepción | P42: CALIDAD Y PERTINENCIA DE LA EDUCACION | Q42: tema10 | R42: Hacer seguimiento y evaluar el cumplimiento de los Planes de Mejoramiento acordados en las visitas de control realizadas a los EE, acompañarlos en la elaboración de los PMI y tenerlos como insumos para la formulación del PAM. | S42: =LEN(P42) -> 37 | U42: Adelantar, en coordinación con el área Jurídica, las actuaciones previstas en el régimen sancionatorio, cuando los EE No Oficiales hayan incurrido presuntamente en conductas violatorias del régimen legal aplicable a la prestación del servicio. | EU42: 2. El EE cuenta con las condiciones y los programas de aprendizaje adecuados para garantizar la prestación del servicio educativo a los estudiantes que hacen parte de grupos poblacionales de especial protección. (Corte Constitucional - Sentencia T-736 de 2013).
A43: Antioquia | B43: Concordia | P43: CALIDAD Y PERTINENCIA DE LA EDUCACION | Q43: tema10 | R43: Verificar las edades de ingreso a los programas de Educación para Adultos, el tiempo de duración, la aplicación de las pruebas externas de evaluación, el cumplimiento del servicio social estudiantil, entre otros aspectos; que favorecen la calidad de la formación. | S43: 37 | U43: Hacer seguimiento especial a los establecimientos clasificados en régimen controlado y verificar el cumplimiento de los planes de mejoramiento acordados para superar las circunstancia que originaron esta clasificación. | EU43: Otra
A44: Antioquia | B44: Copacabana | P44: CALIDAD Y PERTINENCIA DE LA EDUCACION | Q44: tema10 | R44: Impulsar estrategias de mejoramiento de la calidad de la educación desde el punto de vista de la pertinencia y de su relacionamiento con la vocación productiva regional y hacer seguimiento a los resultados obtenidos por los EE en las pruebas de estado promoviendo la adopción de los planes de mejoramiento respectivos. | S44: =LEN(P44) -> 37 | U44: Prestar asistencia tecnica a los EE privados en temas de legalización de la oferta de servicios educativos, expedición de licencias de funcionamiento, aprobación de programas, registro de novedades y ampliación de la jornada, entre otros. | ET44: Verificar la asignación de la planta de personal docente y directivo-docente destinado a los EE Oficiales, teniendo en cuenta el PEI, las relaciones técnicas vigentes y sus perfiles o áreas de desempeño, incluyendo a los profesionales de apoyo. | EU44: 1. Se evidencia que la planta de personal docente y directivo-docente asignada es la requerida para garantizar la prestacion del servicio en el EE y cumple los perfiles de desempeño fijados para cada área del conocimiento.
A45: Antioquia | B45: Dabeiba | P45: CALIDAD Y PERTINENCIA DE LA EDUCACION | Q45: tema10 | R45: Efectuar la revisión periódica de los contenidos básicos de formación y demás componentes de los programas de Educación para el Trabajo y el Desarrollo Humano, garantizando su pertinencia, mejora y actualización constante. | S45: 37 | U45: Apoyar la implantación de los programas de ampliación de la jornada escolar como factor determinante para el mejoramiento de la calidad, en los EE oficiales priorizados para este fin. | EU45: 2. Se evidencia que la planta de personal docente y directivo-docente asignada excede la requerida para garantizar la prestacion del servicio en el EE.
A46: Antioquia | B46: Donmatías | P46: CALIDAD Y PERTINENCIA DE LA EDUCACION | Q46: tema10 | R46: Verificar la aprobación y divulgación del sistema de evaluación estudiantil. | S46: 37 | U46: Apoyar la implementación de los programas de articulación y de mejoramiento de la educación media, garantizar la trayectoria hacia las modalidades de formación posmedia y garantizar la doble titulación. | EU46: 3. Se evidencia que la planta de personal docente y directivo-docente asignada es insuficiente para garantizar la prestacion del servicio en el EE y/o incumple los perfiles de desempeño fijados para cada área del conocimiento.
A47: Antioquia | B47: Ebéjico | P47: CALIDAD Y PERTINENCIA DE LA EDUCACION | Q47: tema10 | R47: Verificar plataformas de notas y procesos evaluativos de los estudiantes. | S47: =LEN(P47) -> 37 | U47: Hacer seguimiento y evaluar el cumplimiento de los Planes de Mejoramiento Institucional en desarrollo de las estrategias de acompañamiento definidas en el -PAM- de la ETC. | EU47: Otra
A48: Antioquia | B48: El Bagre | P48: CALIDAD Y PERTINENCIA DE LA EDUCACION | Q48: tema10 | R48: Otra | S48: 37 | U48: Verificar las edades de ingreso a los programas de Educación para Adultos, el tiempo de duración, la aplicación de las pruebas externas de evaluación, el cumplimiento del servicio social estudiantil, entre otros aspectos, que favorezcan la calidad de la formación ofertada en este nivel. | ET48: Verificar el funcionamiento de los mecanismos de control establecidos sobre el cumplimiento de la jornada, el reporte oportuno de las novedades del personal y el ausentismo laboral. | EU48: 1. El EE ha implementado el procedimiento establecido por la ETC para ejercer control sobre el cumplimiento de la jornada laboral y reporta oportunamente las novedades del personal.
A49: Antioquia | B49: Entrerríos | P49: GARANTÍA DEL DERECHO A LA EDUCACIÓN- ATENCIÓN A QUEJAS Y SOLICITUDES | Q49: tema11 | R49: Atención y trámite de quejas, denuncias y demás requerimientos formulados por los integrantes de la comunidad educativa siempre que guarden relación con la garantía del derecho fundamental a la educación y la debida prestación del servicio. | S49: 68 | U49: Impulsar estrategias de mejoramiento de la calidad de la educación desde el punto de vista de la pertinencia y de su relacionamiento con la vocación productiva regional, promoviendo la resignificación del PEI. | EU49: 2. 1. El EE no ha implementado el procedimiento establecido por la ETC para ejercer control sobre el cumplimiento de la jornada laboral y no reporta oportunamente las novedades del personal.
A50: Antioquia | B50: Envigado | P50: GARANTÍA DEL DERECHO A LA EDUCACIÓN- ATENCIÓN A QUEJAS Y SOLICITUDES | Q50: tema11 | R50: Otra | S50: 68 | U50: Hacer seguimiento a los resultados obtenidos por los EE en las Pruebas de Estado aplicadas en los grados 3, 5, 7, 9 y 11; y promover la adopción de los planes de mejoramiento respectivos. | EU50: Otra
A51: Antioquia | B51: Fredonia | P51: ATENCIÓN A GRUPOS POBLACIONALES DE ESPECIAL PROTECCIÓN | Q51: tema12 | R51: Realizar seguimiento a la atención educativa brindada a la población con capacidades o talentos excepcionales donde se garantice el acceso, la permanencia, la calidad, los apoyos y los ajustes razonables requeridos; asÍ como a la inversión de los recursos adicionales que se asignan a las ETC por este concepto. | S51: 54 | U51: Efectuar la revisión periódica de los contenidos básicos de formación y demás componentes de los programas de Educación para el Trabajo y el Desarrollo Humano, garantizando su pertinencia, mejora y actualización constante. | ET51: Verificar los perfiles de desempeño del personal docente vinculado a los EE Oficiales y garatizar su idoneidad. | EU51: 1. El personal docente vinculado al EE es idóneo para atender la asignación académica correspondiente, de conformidad con los requerimientos del PEI.
A52: Antioquia | B52: Frontino | P52: ATENCIÓN A GRUPOS POBLACIONALES DE ESPECIAL PROTECCIÓN | Q52: tema12 | R52: Fortalecer los modelos de atención dirigidos a los grupos de población que gozan de protección especial en virtud de la Constitución Política y apoyar a las comunidades étnicas en la implementación de la educación propia. | S52: 54 | U52: Verificar la debida adopción y la divulgación del Sistema Institucional de Evaluación de los Estudiantes. | EU52: 2. El personal docente vinculado al EE no es idóneo para atender la asignación académica correspondiente, de conformidad con los requerimientos del PEI.
A53: Antioquia | B53: Giraldo | P53: ATENCIÓN A GRUPOS POBLACIONALES DE ESPECIAL PROTECCIÓN | Q53: tema12 | R53: Otra | S53: 54 | U53: Verificar el uso adecuado y los registros de las plataformas de calificaciones y las evidencias de los procesos de evaluación del aprendizaje de los estudiantes. (Libros Reglamentarios) | EU53: Otra
A54: Antioquia | B54: Girardota | P54: ACTIVIDADES PRIORIZADAS | Q54: tema13 | R54: Consolidar el proceso de implementación en la ETC del Modelo de Gestión de la Educación Inicial de acuerdo con su capacidad instalada, profundizando en la identificación de la oferta de educación inicial, a través del Registro Único de Prestadores de Educación Inicial – RUPEI – y en las acciones de asistencia técnica y seguimiento a las unidades de servicio existentes en su jurisdicción. | S54: 23 | U54: Verificar la existencia de los Planes Individuales de Ajustes Razonables en los casos en que se requiera su implementación. Decreto 1421 de 2017. | ET54: Ejercer control sobre la asignación y el desempeño efectivo de las horas extras autorizadas para garantizar la atención en los diferentes niveles ofertados por el EE. | EU54: 1. El EE ha implementado el procedimiento establecido por la ETC para ejercer control sobre la asignación y el desempeño efectivo de las horas extras autorizadas.
A55: Antioquia | B55: Gómez Plata | P55: ACTIVIDADES PRIORIZADAS | Q55: tema13 | R55: Fortalecer los programas de apoyo a la educación rural encaminados a reducir las brechas existentes con la educación urbana. | S55: 23 | U55: Atender y trámitar oportunamente las quejas, denuncias y demás requerimientos formulados por los integrantes de la comunidad educativa siempre que guarden relación con la garantía del derecho fundamental a la educación y la debida prestación del servicio. | EU55: 2. 1. El EE no ha implementado el procedimiento establecido por la ETC para ejercer control sobre la asignación y el desempeño efectivo de las horas extras autorizadas.
A56: Antioquia | B56: Granada | P56: ACTIVIDADES PRIORIZADAS | Q56: tema13 | R56: Apoyar la implementación de los programas de articulación y de mejoramiento de la educación media, en especial los dirigidos a garantizar las trayectorias educativas hacia las modalidades de formación técnica profesional, con el fin de garantizar la doble titulación. | S56: 23 | U56: Establecimientos Educativos priorizados por quejas o reportes de negación de cupos o de cualquier otra conducta que viole el derecho fundamental a la educación. | EU56: Otra
A57: Antioquia | B57: Guadalupe | P57: ACTIVIDADES PRIORIZADAS | Q57: tema13 | R57: Fortalecer los sistemas de gobierno escolar y de convivencia bajo la perspectiva de hacer de los establecimientos educativos entornos protectores para la población escolar en ellos atendida y atender oportunamente las inquietudes de la comunidad al respecto. | S57: 23 | U57: Realizar seguimiento a la atención educativa brindada a la población con capacidades o talentos excepcionales donde se garantice el acceso, la permanencia, la calidad, los apoyos y los ajustes razonables requeridos. | ET57: Verificar los perfiles de desempeño del personal docente vinculado a los EE No Oficiales y garatizar su idoneidad. | EU57: 1. El personal docente vinculado al EE es idóneo para atender la asignación académica correspondiente, de conformidad con los requerimientos del PEI.
A58: Antioquia | B58: Guarne | P58: ACTIVIDADES PRIORIZADAS | Q58: tema13 | R58: Impulsar estrategias de mejoramiento de la calidad de la educación desde el punto de vista de la pertinencia y de su relacionamiento con la vocación productiva regional, hacer seguimiento a los resultados obtenidos por los EE en las pruebas de estado y promover alianzas estratégicas que garanticen la ejecución de los planes de mejoramiento respectivos. | S58: 23 | U58: Fortalecer los modelos de atención dirigidos a los grupos de población que gozan de protección especial en virtud de la Constitución Política y apoyar a las comunidades étnicas en la implementación de la educación propia. | EU58: 2. El personal docente vinculado al EE no es idóneo para atender la asignación académica correspondiente, de conformidad con los requerimientos del PEI.
A59: Antioquia | B59: Guatapé | U59: Exigir el registro en las Cámaras de Comercio de las asociaciones, ligas, federaciones o confederaciones de padres de familia de los establecimientos educativos de su jurisdicción, las cuales también son sujetos de Inspección y Vigilancia. (Artículo 2.3.4.16 del Decreto 1075 del 26 de mayo de 2015). | EU59: Otra
A60: Antioquia | B60: Heliconia | U60: Llevar un registro actualizado de las Asociaciones de Padres de Familia, exigirles la entrega oportuna de los estatutos y los reportes sobre las reformas hechas a los mismos y sobre la elección periódica de sus dignatarios. | ET60: Ejercer control sobre la cobertura escolar y garantizar el registro adecuado y oportuno de la matrícula en el SIMAT. | EU60: 1. El EE acusa irregularidades en el registro de los estudiantes en el SIMAT
A61: Antioquia | B61: Hispania | U61: Exigir a las Asociaciones de Padres de Familia la entrega anual de la información relacionada con su presupuesto de ingresos y gastos y los estados financieros de cada ejercicio. | EU61: 2. El Establecimiento Educativo no cuenta con Plan de Permanencia Institucional.
A62: Antioquia | B62: Itagüí | U62: Ejercer el control sobre las acciones que las Asociaciones de Padres de Familia realizan en cumplimiento de su objeto social para lo cual deben atender las prohibiciones legalmente establecidas. ( Ley 1269 de 2008 y artículos 2.3.4.12, y 2.3.4.15 del Decreto 1075 de 2015). | EU62: 3. El EE NO evidencia en forma adecuada el seguimiento realizado al proceso de aprendizaje de los estudiantes
A63: Antioquia | B63: Ituango | U63: Apoyar las acciones dirigidas a universalizar la atención integral a la primera infancia, garantizando el derecho a la educación inicial y a las atenciones priorizadas, de forma universal y gratuita, con aseguramiento de la calidad, para las mujeres gestantes y para las niñas y los niños de la primera infancia en situación de vulnerabilidad. | EU63: 4. El EE evidencia el registro adecuado de la matrícula en el SIMAT y en el SIMPADE.
A64: Antioquia | B64: Jardín | U64: Verificar las condiciones en que operan los EE oficiales y No Oficiales y apoyar la implementación del plan nacional de infraestructura educativa sostenible y con pertinencia regional con el propósito de avanzar en la infraestructura física y tecnológica de la educación. | EU64: Otra
A65: Antioquia | B65: Jericó | U65: Verificar la ejecución de las actividades enmarcadas en el plan de permanencia escolar de la ETC, particularmente, las dirigidas a brindarle oportunidades a los jóvenes para culminar la educación básica y media y continuar sus estudios en la educación posmedia. | ET65: Ejercer control sobre la cobertura escolar y garantizar el registro adecuado y oportuno de la matrícula en el aplicativo dispuesto para tal fin. | EU65: 1. El EE presenta irregularidades en el registro de los estudiantes en los sistemas de información (SIMAT, SIMPADE, SIPI, etc.)
A66: Antioquia | B66: La Ceja | EU66: 2. El EE no presenta irregularidades en el registro de los estudiantes en los sistemas de información (SIMAT, SIMPADE, SIPI, etc.)
A67: Antioquia | B67: La Estrella | EU67: Otra
A68: Antioquia | B68: La Pintada | ET68: Hacer seguimiento a la implementación de los programas de apoyo para el acceso y la permanencia escolar y disminuir los índices de deserción y repitencia escolar. | EU68: 1. El EE no está vinculado a programas de apoyo para el acceso y la permanencia escolar y/o no ha implementado estrategias dirigidas a disminuir los índices de deserción y de repitencia.
A69: Antioquia | B69: La Unión | EU69: 2. El EE está vinculado a programas de apoyo para el acceso y la permanencia escolar y/o ha implementado estrategias dirigidas a disminuir los índices de deserción y de repitencia.
A70: Antioquia | B70: Liborina | EU70: Otra
A71: Antioquia | B71: Maceo | ET71: Brindar apoyo a las instituciones educativas urbanas y rurales en el diseño de estrategias que favorezcan la trayectoria escolar completa garantizando a cada estudiante la culminación de su ciclo de formación. | EU71: 1. El EE implementó estrategias pertinentes para favorecer la trayectoria escolar completa, garantizando a cada estudiante la culminación de su ciclo de formación.
A72: Antioquia | B72: Marinilla | EU72: 2. El EE no ha implementado estrategias pertinentes para favorecer la trayectoria escolar completa y/o no garantiza a cada estudiante la culminación de su ciclo de formación.
A73: Antioquia | B73: Montebello | EU73: Otra
A74: Antioquia | B74: Murindó | ET74: Garantizar el cumplimiento del principio de gratuidad del servicio educativo en los EE Oficiales cobijados por este beneficio. | EU74: 1. El EE Oficial cumple con el principio de gratuidad del servicio.
A75: Antioquia | B75: Mutatá | EU75: 2. El EE ha realizado cobros, solicitado aportes u otro tipo de exigencias económicas de carácter obligatorio que violan el principio de la gratuidad del servicio educativo.
A76: Antioquia | B76: Nariño | EU76: Otra
A77: Antioquia | B77: Necoclí | ET77: Hacer seguimiento a la implementación de los programas de apoyo para el acceso y la permanencia escolar en la educación inicial. | EU77: 1. El EE no está vinculado a programas de apoyo para el acceso y la permanencia escolar en educación inicial.
A78: Antioquia | B78: Nechí | EU78: 2. El EE está vinculado a programas de apoyo para el acceso y la permanencia escolar en educación inicial.
A79: Antioquia | B79: Olaya | EU79: Otra
A80: Antioquia | B80: Peñol | ET80: Requerir y apoyar el registro de los prestadores de servicios no oficiales de Educación Inicial y de atención a la primera infancia que por su naturaleza no cuentan con licencia de funcionamiento para la atención de niños y niñas menores de 5 años, en el sistema de información que defina el MEN. | EU80: 1. El prestador de servicios de Educación Inicial ha sido requerido formalmente para que efectúe su registro en el Sistema correspondiente y actualice la información.
A81: Antioquia | B81: Peque | EU81: 2. El prestador de servicios de Educación Inicial no ha sido requerido formalmente para que efectúe su registro en el Sistema correspondiente y actualice la información.
A82: Antioquia | B82: Pueblorrico | EU82: Otra
A83: Antioquia | B83: Puerto Berrío | ET83: Aprobar y actualizar la información de los prestadores no oficiales del servicio de Educación Inicial que hayan iniciado su registro en el sistema de información dispuesto por el MEN y caracterizar la oferta oficial y no oficial de la Educación Inicial (en sus dos ciclos) en su territorio. | EU83: 1. El prestador de servicios de Educación Inicial se encuentra debidamente registrado en el Sistema correspondiente y la informacion ha sido actualizada.
A84: Antioquia | B84: Puerto Nare | EU84: 2. El prestador de servicios de Educación Inicial no atendió el requerimiento para que adelante el registro en el Sistema correspondiente y/o actualice la informacion.
A85: Antioquia | B85: Puerto Triunfo | EU85: Otra
A86: Antioquia | B86: Remedios | ET86: Realizar visitas a los prestadores no oficiales de Educación Inicial registrados y aplicar cuando fuere pertinente las sanciones previstas en los artículos 196 y 197 de la Ley 1801 de 2016 "Por la cual se expide el Código Nacional de Seguridad y Convivencia Ciudadana" o las normas que los modifiquen o sustituyan. | EU86: 1. El prestador de servicios de Educación Inicial ha sido renuente a legalizar la oferta de servicios e incumple los referentes técnicos emitidos por el MEN.
A87: Antioquia | B87: Retiro | EU87: 2. El prestador de servicios de Educación Inicial ha legalizado la oferta de servicios y se ajusta a los referentes técnicos emitidos por el MEN.
A88: Antioquia | B88: Rionegro | EU88: Otra
A89: Antioquia | B89: Sabanalarga | ET89: Brindar asistencia técnica a los prestadores oficiales y no oficiales a partir de los referentes técnicos de la Educación Inicial establecidos por el MEN. | EU89: 1. El prestador de servicios de Educación Inicial ha implementado los referentes técnicos emitidos por el MEN.
A90: Antioquia | B90: Sabaneta | EU90: 2. El prestador de servicios de Educación Inicial requiere apoyo para implementar los referentes técnicos emitidos por el MEN.
A91: Antioquia | B91: Salgar | EU91: Otra
A92: Antioquia | B92: San Andrés de Cuerquía | ET92: Hacer seguimiento a la matrícula de la población atendida por los prestadores de Educación Inicial que sea registrada en el sistema de información dispuesto para este fin por el MEN. | EU92: 1. El prestador de servicios de Educación Inicial ha registrado debidamente la matrícula de la población escolar atendida.
EU93: 2. El prestador de servicios de Educación Inicial presenta incosistencias en el registro de la matrícula de la población escolar atendida.
EU94: Otra
A95: Antioquia | B95: San Carlos | ET95: Verificar la conformación y el funcionamiento de los Comités Escolares de Convivencia e impulsar la revisión y la actualización de los manuales de convivencia escolar. | EU95: 1. En el EE no funciona debidamente el Comité Escolar de Convivencia
A96: Antioquia | B96: San Francisco | EU96: 2. En el EE funciona debidamente el Comité Escolar de Convivencia
A97: Antioquia | B97: San Jerónimo | EU97: Otra
A98: Antioquia | B98: San José la Montaña | ET98: Verificar el cumplimiento de lo ordenado por la Ley 1732 de 2014 “Por la cual se establece la Cátedra de la Paz en todas las instituciones educativas del país”. | EU98: 1. El EE no cumple con lo ordenado por la Ley 1732 de 2014 “Por la cual se establece la Cátedra de la Paz en todas las instituciones educativas del país”.
A99: Antioquia | B99: San Juan de Urabá | EU99: 2. El EE cumple con lo ordenado por la Ley 1732 de 2014 “Por la cual se establece la Cátedra de la Paz en todas las instituciones educativas del país”.
A100: Antioquia | B100: San Luis | EU100: Otra
A101: Antioquia | B101: San Pedro los Milagros | ET101: Promover la implementación de las estrategias preventivas del abuso sexual y del acoso en los entornos escolares, en cumplimiento de la Directiva Ministerial No. 1 de 2022. | EU101: 1. El EE establecimiento educativo ha definido y socializado con su comunidad educativa los procesos de prevención, atención y seguimiento del abuso sexual en el marco de la Ruta de Atención Integral de Convivencia Escolar.
A102: Antioquia | B102: San Pedro de Urabá | EU102: 2. El EE establecimiento educativo no ha definido y socializado con su comunidad educativa los procesos de prevención, atención y seguimiento del abuso sexual en el marco de la Ruta de Atención Integral de Convivencia Escolar
A103: Antioquia | B103: San Rafael | EU103: Otra
A104: Antioquia | B104: San Roque | ET104: Verificar los reportes de las situaciones tipo II y tipo III en el SIUCE. | EU104: 1. El EE efectúa oportunamente el reporte correspondiente en el SIUCE.
A105: Antioquia | B105: San Vicente Ferrer | EU105: 2. El EE presenta deficiencias y/o no efectúa el reporte correspondiente en el SIUCE.
A106: Antioquia | B106: Santa Bárbara | EU106: Otra
A107: Antioquia | B107: Santa Rosa de Osos | ET107: Verificar los mecanismos de activación de las Rutas de Atención Integral de las situaciones de convivencia | EU107: 1. El EE tiene establecidos los mecanismos de activación de la ruta de atención a las situaciones de convivencia escolar tipo I, tipo II y tipo III
A108: Antioquia | B108: Santo Domingo | EU108: 2. El EE presenta deficiencias en los mecanismos de activación de la ruta de atención a las situaciones de convivencia escolar tipo I, tipo II y tipo III
A109: Antioquia | B109: El Santuario | EU109: Otra
A110: Antioquia | B110: Segovia | ET110: Verificar que los prestadores privados implementen en sus procesos de selección y vinculación del personal, el mecanismo de consulta del sistema de registro de inhabilidades por delitos sexuales contra la libertad e integridad de niños, niñas y adolescente; y que efectúen las consultas periódicas, de conformidad con lo establecido en el Decreto 753 de 2019 | EU110: 1. El EE no oficial ha implementado en sus procesos de selección y vinculación del personal, el mecanismo de consulta del sistema de registro de inhabilidades por delitos sexuales contra la libertad e integridad de niños, niñas y adolescentes; de conformidad con lo establecido en el Decreto 753 de 2019.
A111: Antioquia | B111: Sonsón | EU111: 2. El EE no oficial no ha implementado en sus procesos de selección y vinculación del personal, el mecanismo de consulta del sistema de registro de inhabilidades por delitos sexuales contra la libertad e integridad de niños, niñas y adolescentes; de conformidad con lo establecido en el Decreto 753 de 2019.
A112: Antioquia | B112: Sopetrán | EU112: Otra
A113: Antioquia | B113: Támesis | ET113: Verificar que los prestadores privados tengan previsto el procedimiento a seguir en caso de que una persona vinculada al establecimiento educativo resulte involucrada en una investigación judicial por delitos de violencia sexual contra NNAJ; evento en el cual deben prevalecer los derechos de estos últimos evitando la interacción directa del involucrado con los estudiantes, mientras se surte el debido proceso. | EU113: 1. El EE no oficial tiene previsto el procedimiento a seguir en caso de que una persona vinculada al establecimiento educativo resulte involucrada en una investigación judicial por delitos de violencia sexual contra NNAJ.
A114: Antioquia | B114: Tarazá | EU114: 2. El EE no oficial no tiene previsto el procedimiento a seguir en caso de que una persona vinculada al establecimiento educativo resulte involucrada en una investigación judicial por delitos de violencia sexual contra NNAJ.
A115: Antioquia | B115: Tarso | EU115: Otra
A116: Antioquia | B116: Titiribí | ET116: Verificar que los EE no oficiales, contemplen en los reglamentos internos de los Comités Escolares de Convivencia los conflictos de interés, las casuales de impedimento y de recusación, así como el procedimiento para resolverlos, de tal forma que se garantice la imparcialidad en las actuaciones de los integrantes de los referidos comités. | EU116: 1. El EE no oficial contempla en su reglamento interno del Comité Escolar de Convivencia los conflictos de interés, las casuales de impedimento y de recusación, así como el procedimiento para resolverlos, garantizando la imparcialidad en las actuaciones de los integrantes del comité.
A117: Antioquia | B117: Toledo | EU117: 2. El EE no oficial no contempla en su reglamento interno del Comité Escolar de Convivencia los conflictos de interés, las casuales de impedimento y de recusación, así como el procedimiento para resolverlos.
A118: Antioquia | B118: Turbo | EU118: Otra
A119: Antioquia | B119: Uramita | ET119: Verificar los reportes de las situaciones tipo II y tipo III en el SIUCE. | EU119: 1. El EE efectúa oportunamente el reporte correspondiente en el SIUCE.
A120: Antioquia | B120: Urrao | EU120: 2. El EE presenta deficiencias y/o no efectúa el reporte correspondiente en el SIUCE.
A121: Antioquia | B121: Valdivia | EU121: Otra
A122: Antioquia | B122: Valparaíso | ET122: Evaluar la gestión directiva y el direccionamiento estratégico de los establecimientos educativos mediante la revisión de los instrumentosde planeación institucional. | EU122: 1. El EE presenta irregularidades en la gestión directiva y estratégica, particularmente, relacionadas con los instrumentos de planeación institucional y la tuta de mejoramiento.
A123: Antioquia | B123: Vegachí | EU123: 2. El EE no presenta irregularidades en la gestión directiva y estratégica, particularmente, relacionadas con los instrumentos de planeación institucional y la ruta de mejoramiento.
A124: Antioquia | B124: Venecia | EU124: Otra
A125: Antioquia | B125: Vigía del Fuerte | ET125: Verificar la participación de la comunidad educativa en la gestión del establecimiento y la debida conformación de las instancias de gobierno escolar. | EU125: 1. El EE cumplió oportunamente con la obligación de conformar los órganos de gobierno escolar atendiendo los requerimientos legales vigentes.
A126: Antioquia | B126: Yalí | EU126: 2. El EE no cumplió con la obligación de conformar oportunamente los órganos de gobierno escolar atendiendo los requerimientos legales vigentes.
A127: Antioquia | B127: Yarumal | EU127: 3. La comunidad educativa del EE participa activamente en las instancias de gobierno escolar, el cual se encuentra conformado de manera adecuada y funciona conforme a la normatividad vigente.
A128: Antioquia | B128: Yolombó | EU128: 4. La comunidad educativa del EE no participa activamente en las instancias de gobierno escolar, el cual no se encuentra conformado de manera adecuada, ni funciona conforme a la normatividad vigente.
A129: Antioquia | B129: Yondó | EU129: Otra
A130: Antioquia | B130: Zaragoza | ET130: Evaluar la gestión administrativa, el manejo de los Fondos de Servicios Educativos y acompañar los procesos de rendición de cuentas que deben adelantar los EE oficiales. | EU130: 1. El EE presenta irregularidades en la gestión directiva y estratégica, particularmente, relacionadas con el uso de los recursos de gratuidad.
A131: Atlántico | B131: Barranquilla | EU131: 2. El EE no presenta irregularidades en la gestión directiva y estratégica, particularmente, relacionadas con el uso de los recursos de gratuidad.
A132: Atlántico | B132: Baranoa | EU132: 3. El EE no reporta oportunamente la información relacionada con el manejo del Fondo de Servicios Educativos y omite la realización de los ejercicios de rendición de cuentas con la periodicidad establecida.
A133: Atlántico | B133: Campo de la Cruz | EU133: 4. El EE reporta oportunamente la información relacionada con el manejo del Fondo de Servicios Educativos y realiza los ejercicios de rendición de cuentas con la periodicidad establecida.
A134: Atlántico | B134: Candelaria | EU134: Otra
A135: Atlántico | B135: Galapa | ET135: Verificar los reportes hechos por los EE en los sistemas de información y garantizar el registro, la depuración y la actualización permanente de los datos en las plataformas del DUE, EVI, SIET, SIPI, SIMAT,SIFSE, etc.. | EU135: 1. La información suministrada por el EE en los aplicativos del sector es idónea y confiable.
A136: Atlántico | B136: Juan de Acosta | EU136: 2. La información suministrada por el EE en los aplicativos del sector presenta inconsistencias motivo por el cual no es idónea y confiable.
A137: Atlántico | B137: Luruaco | EU137: Otra
A138: Atlántico | B138: Malambo | ET138: Verificar el procedimiento aplicado en los EE No Oficiales para la aprobación de los costos educativos, los reportes de la autoevaluación institucional (EVI) y los procesos seguidos para la fijación de listas de útiles, textos, materiales y uniformes escolares. | EU138: 1. El EE No Oficial dio cumplimiento al procedimiento legalmente establecido para la aprobación de los costos educativos y/o para la adopción de las listas de útiles, textos, materiales y uniformes escolares.
A139: Atlántico | B139: Manatí | EU139: 2. El EE No Oficial no dio cumplimiento al procedimiento legalmente establecido para la aprobación de los costos educativos y/o para la adopción de las listas de útiles, textos, materiales y uniformes escolares.
A140: Atlántico | B140: Palmar de Varela | EU140: 3. El EE No Oficial reportó oportunamente y cumplio con la normatividad vigente en la elaboración de su autoevaluación institucional.
A141: Atlántico | B141: Piojó | EU141: 4. El EE No Oficial no reportó oportunamente, ni cumplio con la normatividad vigente en la elaboración de su autoevaluación institucional.
A142: Atlántico | B142: Polonuevo | EU142: Otra
A143: Atlántico | B143: Ponedera | ET143: Trámite de quejas por la presunta violación al régimen establecido para la fijación de los costos educativos y/o para la adopción de las listas de útiles, textos, materiales y uniformes escolares | EU143: 1. EL EE ha incurrido en conductas irregulares, de acuerdo con el proceso de evaluación de las quejas recibidas, por lo que debe iniciarse un proceso sancionatorio.
A144: Atlántico | B144: Puerto Colombia | EU144: 2. EL EE no ha incurrido en conductas irregulares, de acuerdo con el proceso de evaluación de las quejas recibidas, por lo que no procede la iniciación de un proceso sancionatorio.
A145: Atlántico | B145: Repelón | EU145: Otra
A146: Atlántico | B146: Sabanagrande | ET146: Realizar visitas de verificación que complementen la autoevaluación institucional y garantizar la idoneidad de la información registrada por los Colegios Privados en la aplicación EVI. | EU146: 1. La información registrada por el EE no oficial en la aplicación EVI presenta incosistencias.
A147: Atlántico | B147: Sabanalarga | EU147: 2.La información registrada por el EE No Oficial en la aplicación EVI es idónea y no presenta incosistencias.
A148: Atlántico | B148: Santa Lucía | EU148: 3. La información suministrada por el EE No Oficial en la visita de evaluación externa no complementa la evaluación institucional ni respalda los registros hechos en el aplicativo EVI.
A149: Atlántico | B149: Santo Tomás | EU149: 4. La información suministrada por el EE No Oficial en la visita de evaluación externa complementa la evaluación institucional y certifica la idoneidad de la información registrada en el aplicativo EVI.
A150: Atlántico | B150: Soledad | EU150: Otra
A151: Atlántico | B151: Suan | ET151: Verificar los perfiles de desempeño del personal docente vinculado a los EE No Oficiales y garatizar su idoneidad. | EU151: 1. El personal docente vinculado al EE No Oficial es idóneo para atender la asignación académica correspondiente, de conformidad con los requerimientos del PEI.
A152: Atlántico | B152: Tubará | EU152: 2. El personal docente vinculado al EE No Oficial no es idóneo para atender la asignación académica correspondiente, de conformidad con los requerimientos del PEI.
A153: Atlántico | B153: Usiacurí | EU153: Otra
A154: Bogotá | B154: Bogotá | ET154: Adelantar, en coordinación con el área Jurídica, las actuaciones previstas en el régimen sancionatorio, cuando los EE No Oficiales hayan incurrido presuntamente en conductas violatorias del régimen legal aplicable a la prestación del servicio. | EU154: 1. EL EE ha incurrido en conductas irregulares, de acuerdo con el proceso de evaluación de las quejas recibidas, por lo que debe iniciarse un proceso sancionatorio.
A155: Bolívar | B155: Cartagena de Indias | EU155: 2. EL EE no ha incurrido en conductas irregulares, de acuerdo con el proceso de evaluación de las quejas recibidas, por lo que no procede la iniciación de un proceso sancionatorio.
A156: Bolívar | B156: Achí | EU156: Otra
A157: Bolívar | B157: Altos del Rosario | ET157: Hacer seguimiento especial a los establecimientos clasificados en régimen controlado y verificar el cumplimiento de los planes de mejoramiento acordados para superar las circunstancia que originaron esta clasificación. | EU157: 1. El EE reincidió en la clasificación en Régimen Controlado y no ha dado cumplimiento a los compromisos adquiridos en el Plan de Mejoramiento, motivo por el cual debe iniciarse un proceso sancionatorio.
A158: Bolívar | B158: Arenal | EU158: 2. El EE ingresó al Régimen Controlado motivo por el cual se debe acordar un Plan de Mejoramiento que le permita superar las causas que lo llevaron a esta clasificación.
A159: Bolívar | B159: Arjona | EU159: 3. El EE dio cumplimiento a los compromisos adquiridos en el Plan de Mejoramiento, por lo que debe cambiar de régimen tarifario.
A160: Bolívar | B160: Arroyohondo | EU160: Otra
A161: Bolívar | B161: Barranco de Loba | ET161: Prestar asistencia tecnica a los EE privados en temas de legalización de la oferta de servicios educativos, expedición de licencias de funcionamiento, aprobación de programas, registro de novedades y ampliación de la jornada, entre otros. | EU161: 1. Se verificó la licencia de funcionamiento otorgada al EE, la actualización de novedades, sedes, niveles, grados y programas autorizados, encontrando que el EE opera legalmente. (La oferta educativa es legal).
A162: Bolívar | B162: Calamar | EU162: 2. Se verificó la licencia de funcionamiento otorgada al EE, actualización de novedades, sedes, niveles, grados y programas autorizados, encontrando que el EE presenta inconsistencias. (La oferta educativa es ilegal).
A163: Bolívar | B163: Cantagallo | EU163: 3. El EE no oficial requiere asistencia tecnica para legalizar los servicios educativos ofertados o para cumplir los lineamientos técnicos establecidos por el MEN.
A164: Bolívar | B164: Cicuco | EU164: Otra
A165: Bolívar | B165: Córdoba | ET165: Apoyar la implantación de los programas de ampliación de la jornada escolar como factor determinante para el mejoramiento de la calidad, en los EE oficiales priorizados para este fin. | EU165: 1. EL EE cuenta con las condiciones necesarias para ampliar la jornada escolar.
A166: Bolívar | B166: Clemencia | EU166: 2. El EE no cuenta con las condiciones necesarias para ampliar la jornada escolar.
A167: Bolívar | B167: El Carmen de Bolívar | EU167: Otra
A168: Bolívar | B168: El Guamo | ET168: Apoyar la implementación de los programas de articulación y de mejoramiento de la educación media, garantizar la trayectoria hacia las modalidades de formación posmedia y garantizar la doble titulación. | EU168: 1. EL EE garantiza la trayectoria completa hasta la educación media y se encuentra articulado para ofrecer la doble titulación.
A169: Bolívar | B169: El Peñón | EU169: 2. EL EE no garantiza la trayectoria completa hasta la educación media y/o no se encuentra articulado para ofrecer la doble titulación.
A170: Bolívar | B170: Hatillo de Loba | EU170: Otra
A171: Bolívar | B171: Magangué | ET171: Hacer seguimiento y evaluar el cumplimiento de los Planes de Mejoramiento Institucional en desarrollo de las estrategias de acompañamiento definidas en el -PAM- de la ETC. | EU171: 1. La IE cumplió con el plan de mejoramiento acordado en las visitas de control.
A172: Bolívar | B172: Mahates | EU172: 2. La IE no cumplió con el plan de mejoramiento acordado en las visitas de control
A173: Bolívar | B173: Margarita | EU173: 3. La IE requiere apoyo para formular el plan de mejoramiento institucional
A174: Bolívar | B174: María la Baja | EU174: Otra
A175: Bolívar | B175: Montecristo | ET175: Verificar las edades de ingreso a los programas de Educación para Adultos, el tiempo de duración, la aplicación de las pruebas externas de evaluación, el cumplimiento del servicio social estudiantil, entre otros aspectos, que favorezcan la calidad de la formación ofertada en este nivel. | EU175: 1. El EE cumple con las condiciones establecidas para la prestación del servicio educativo para jóvenes y adultos en ciclos lectivos especiales del 1 al 6, conforme a la normatividad vigente, particularmente, en las edades exigidas para el ingreso de los estudiantes.
A176: Bolívar | B176: Santa Cruz de Mompox | EU176: 2. El EE no cumple con las condiciones establecidas para la prestación del servicio educativo para jóvenes y adultos en ciclos lectivos especiales del 1 al 6, conforme a la normatividad vigente y/o incumple las normas que regulan las edades exigidas para el ingreso de los estudiantes a esta modalidad.
A177: Bolívar | B177: Morales | EU177: Otra
A178: Bolívar | B178: Norosí | ET178: Impulsar estrategias de mejoramiento de la calidad de la educación desde el punto de vista de la pertinencia y de su relacionamiento con la vocación productiva regional, promoviendo la resignificación del PEI. | EU178: 1. El PEI de la IE es pertinente con la vocación productiva regional y asegura una educación de calidad.
A179: Bolívar | B179: Pinillos | EU179: 2. El PEI de la IE no es pertinente con la vocación productiva regional y debe resignificarse para asegurar una educación de calidad.
A180: Bolívar | B180: Regidor | EU180: Otra
A181: Bolívar | B181: Río Viejo | ET181: Hacer seguimiento a los resultados obtenidos por los EE en las Pruebas de Estado aplicadas en los grados 3, 5, 7, 9 y 11; y promover la adopción de los planes de mejoramiento respectivos. | EU181: 1. La IE diseñó e implementó estrategias de mejoramiento de la calidad de la educación a partir de los resultados obtenidos en las pruebas de estado.
A182: Bolívar | B182: San Cristóbal | EU182: 2. La IE no diseñó ni implementó estrategias de mejoramiento de la calidad de la educación a partir de los resultados obtenidos en las pruebas de estado, motivo por el cual debe formular un plan de mejoramiento.
A183: Bolívar | B183: San Estanislao | EU183: Otra
A184: Bolívar | B184: San Fernando | ET184: Efectuar la revisión periódica de los contenidos básicos de formación y demás componentes de los programas de Educación para el Trabajo y el Desarrollo Humano, garantizando su pertinencia, mejora y actualización constante. | EU184: 1. La oferta educativa de la Institución se ajusta a la normatividad vigente para los programas de ETDH
A185: Bolívar | B185: San Jacinto | EU185: 2. La oferta educativa de la Institución no se ajusta a la normatividad vigente para los programas de ETDH razón por la cual debe implementar los correctivos necesarios.
A186: Bolívar | B186: San Jacinto del Cauca | EU186: 3. La Institución ETDH reportó de forma veraz y oportuna la matrícula y los estudiantes certificados, en el SIET.
A187: Bolívar | B187: San Juan Nepomuceno | EU187: 4. La Institución ETDH no reportó de forma veraz y oportuna la matrícula y los estudiantes certificados, en el SIET.
A188: Bolívar | B188: San Martín de Loba | EU188: Otra
A189: Bolívar | B189: San Pablo | ET189: Verificar la debida adopción y la divulgación del Sistema Institucional de Evaluación de los Estudiantes. | EU189: 1. El EE adoptó y divulgó adecuadamente el Sistema Institucional de Evaluación de los Estudiantes.
A190: Bolívar | B190: Santa Catalina | EU190: 2. El EE incumplió las disposiciones legales que regulan la adopción y la divulgación del Sistema Institucional de Evaluación de los Estudiantes.
A191: Bolívar | B191: Santa Rosa | EU191: Otra
A192: Bolívar | B192: Santa Rosa del Sur | ET192: Verificar el uso adecuado y los registros de las plataformas de calificaciones y las evidencias de los procesos de evaluación del aprendizaje de los estudiantes. (Libros Reglamentarios) | EU192: 1. El EE cumple las disposiciones legales relacionadas con el registro adecuado de la información asociada a los procesos académicos y administrativos que desarrolla y lleva los Libros Reglamentarios.
A193: Bolívar | B193: Simití | EU193: 2. El EE presenta inconsistencias en el registro de la información asociada a los procesos académicos y administrativos que desarrolla y no cumple las disposiciones relacionadas con los libros reglamentarios.
A194: Bolívar | B194: Soplaviento | EU194: Otra
A195: Bolívar | B195: Talaigua Nuevo | ET195: Verificar la existencia de los Planes Individuales de Ajustes Razonables en los casos en que se requiera su implementación. Decreto 1421 de 2017. | EU195: 1. El EE evidencia la existencia de los Planes Individuales de Ajustes Razonables, como herramienta de apoyo en los procesos de enseñanza y aprendizaje de los estudiantes, con enfoque inclusivo.
A196: Bolívar | B196: Tiquisio | EU196: 2. El EE no evidencia la existencia de los Planes Individuales de Ajustes Razonables, como herramienta de apoyo en los procesos de enseñanza y aprendizaje de los estudiantes, con enfoque inclusivo.
A197: Bolívar | B197: Turbaco | EU197: Otra
A198: Bolívar | B198: Turbaná | ET198: Atender y trámitar oportunamente las quejas, denuncias y demás requerimientos formulados por los integrantes de la comunidad educativa siempre que guarden relación con la garantía del derecho fundamental a la educación y la debida prestación del servicio. | EU198: 1. EL EE ha incurrido -presuntamente- en conductas irregulares que vulneran el derecho fundamental a la educación.
A199: Bolívar | B199: Villanueva | EU199: 2. EL EE no ha incurrido en conductas irregulares que vulneren el derecho fundamental a la educación.
A200: Bolívar | B200: Zambrano | EU200: 3. EL EE ha reincidido en conductas irregulares que vulneran el derecho fundamental a la educación razón por la cual debe iniciarse un proceso sancionatorio.
A201: Boyacá | B201: Tunja | EU201: 4. Otra.
A202: Boyacá | B202: Almeida | ET202: Establecimientos Educativos priorizados para hacer seguimiento a las quejas o reportes de negación de cupos o de cualquier otra conducta que viole el derecho fundamental a la educación. | EU202: 1. EL EE ha adoptado las medidas necesarias para corregir situaciones irregulares que vulneran el derecho fundamental a la educación.
... 925 more rows

Sheet TEMAS - ACTIVIDADES-SITUACIONES
A1: MATRIZ DE FORMULACIÓN Y SEGUIMIENTO DEL POAIV 2023
A2: No. | B2: TEMA | C2: ACTIVIDADES QUE COMPRENDE | D2: SITUACIONES ENCONTRADAS
A3: 1 | B3: CONTROL NORMATIVO Y VERIFICACIÓN DE CONDICIONES | C3: Ejercer control normativo verificando los actos administrativos de reconocimiento oficial o la licencia de funcionamiento del EE, legalización de novedades, autorización de jornadas, sedes, ciclos y programas, y, en general, la legalidad de la oferta educativa. | D3: 1. Los actos administrativos mediante los cuales se expidió el reconocimiento oficial o la licencia de funcionamiento del EE cumplen con la normatividad vigente. 2. Los actos administrativos mediante los cuales se expidió el reconocimiento oficial o la licencia de funcionamiento del EE presentan inconsistencias y no cumplen con la normatividad vigente. 3. El EE ha legalizado sedes, niveles, grados y los programas ofertados. Se observa que el EE opera legalmente. 4. El EE no ha legalizado sedes, niveles, grados y/o programas ofertados. Se observa que el EE no opera legalmente. 5. EL EE ejecuta adecuadamente el Proyecto Educativo Institucional autorizado. 6. EL EE no ejecuta adecuadamente el Proyecto Educativo Institucional autorizado. 7. Otra
C4: Verificar las condiciones de infraestructura, servicios públicos, mobiliario, laboratorios y demás bienes y equipos apropiados para el desarrollo de los programas académicos ofertados, incluyendo los apoyos comunicativos, tecnológicos o educativos específicos destinados para la atención de estudiantes con discapacidad. | D4: 1. El EE no dispone de infraestructura apropiada para el desarrollo de los programas académicos ofertados 2. El EE no dispone de mobiliario apropiado para el desarrollo de los programas académicos ofertados 3. El EE no dispone de laboratorios apropiados para el desarrollo de los programas académicos ofertados 4. El EE no dispone de bienes y equipos apropiados para el desarrollo de los programas académicos ofertados, incluyendo los apoyos comunicativos, tecnológicos o educativosrequeridos para la atención de estudiantes con discapacidad. 5. El EE dispone de infraestructura apropiada para el desarrollo de los programas académicos ofertados. 6. El EE dispone del mobiliario apropiado para el desarrollo de los programas académicos ofertados 7. El EE dispone de laboratorios apropiados para el desarrollo de los programas académicos ofertados 8. El EE dispone de los bienes y equipos apropiados para el desarrollo de los programas académicos ofertados, incluyendo los apoyos comunicativos tecnológicos o educativos requeridos para la atención de estudiantes con discapacidad. 9. El EE cuenta con los servicios públicos básicos para la atención a la población escolar. 10. El EE tiene deficiencias en el suministro y/o en la infraestructura asociada a los servicios públicos básicos. 11. El EE ofrece condiciones adecuadas para la atención a la población en situación de discapacidad. 12. El EE no ofrece condiciones adecuadas para la atención a la población en situación de discapacidad. 13. Otra
C5: Establecimientos Educativos priorizados por haber obtenido su licencia de funcionamiento o su reconocimiento oficial durante el último año lectivo. | D5: 1. El EE se encuentra funcionando con normalidad y cumple con los lineamientos fijados en la normatividad vigente. 2. El EE no se encuentra funcionando con normalidad e incumple los lineamientos fijados en la normatividad vigente. 3. otra
C6: Instituciones de ETDH priorizadas por no haber sido objeto de visitas de control durante los dos últimos años o que obtuvieron su licencia de funcionamiento en el último año. | D6: 1. La información disponible de la IETDH permite identificar la pertinencia de los programas ofertados y la capacidad institucional para responder a la demanda de los estudiantes, cumpliendo con los términos contenidos en la propuesta presentada para la aprobación de programas. 2. La información disponible de la institución de ETDH no permite identificar la pertinencia de los programas ofertados y/o no cuenta con la capacidad institucional requerida para responder a la demanda e incumple los términos contenidos en la propuesta presentada para la aprobación de programas. 3. Otra
C7: Establecimientos de educación para jóvenes y adultos que -presuntamente- vienen operando sin el lleno de los requisitos legales exigidos para su funcionamiento o cuya oferta no se ajusta a los lineamientos legales vigentes. | D7: 1. El EE cumple con las condiciones establecidas para la prestación del servicio educativo para jóvenes y adultos en ciclos lectivos especiales del 1 al 6, conforme a la normatividad vigente, particularmente, en las edades exigidas para el ingreso de los estudiantes. 2. El EE no cumple con las condiciones establecidas para la prestación del servicio educativo para jóvenes y adultos en ciclos lectivos especiales del 1 al 6, conforme a la normatividad vigente y/o incumple las normas que regulan las edades exigidas para el ingreso de los estudiantes. 3. Otra
C8: Prestadores de Educación Inicial priorizados porque -presuntamente- no cumplen los requisitos legales establecidos para operar en este nivel. | D8: 1. La unidad/sede de servicio de Educación Inicial opera de conformidad con los referentes técnicos definidos por el MEN. 2. La unidad/sede de servicio de Educación Inicial no opera de conformidad con los referentes técnicos definidos por el MEN. 3. Otra
C9: Ejercer control sobre la oferta de servicios educativos en modalidad virtual en los niveles educativos en que ésta no se encuentra autorizada. | D9: 1. El EE se encuentra funcionando con normalidad y la oferta educativa cumple con los lineamientos fijados en la normatividad vigente. 2. El EE no se encuentra funcionando con normalidad y la oferta educativa incumple los lineamientos fijados en la normatividad vigente. 3. Otra
C10: Verificar el uso de las TIC como estrategia de apoyo pedagógico, disponibilidad de equipos, conectividad, soporte técnico, mantenimiento y reposición de equipos. | D10: 1. EL EE contempla el uso de las TIC como estrategia de apoyo pedagógico a la educación. Para ello cuenta con el hardware y el software requerido, conectividad, soporte técnico, mantenimiento y plan de reposición de equipos. 2. EL EE no contempla el uso de las TIC como estrategia de apoyo pedagógico a la educación y/o presenta deficiencias en el hardware, software, conectividad, soporte técnico, mantenimiento y en el plan de reposición de equipos. 3. Otra
C11: Constatar las condiciones de accesibilidad de los establecimientos educativos, en particular, las requeridas por las personas que hacen parte de los grupos poblacionales de especial protección. (Corte Constitucional - Sentencia T-736 de 2013). | D11: 1. El EE requiere adecuar su infraestructura y/o sus programas de aprendizaje para garantizar la atención adecuada a los estudiantes que hacen parte de los grupos poblacionales de especial protección. (Corte Constitucional - Sentencia T-736 de 2013). 2. El EE cuenta con las condiciones y los programas de aprendizaje adecuados para garantizar la prestación del servicio educativo a los estudiantes que hacen parte de grupos poblacionales de especial protección. (Corte Constitucional - Sentencia T-736 de 2013). 3. Otra
A12: 2 | B12: PLANTA DE PERSONAL, JORNADA LABORAL Y PERFILES DE DESEMPEÑO | C12: Verificar la asignación de la planta de personal docente y directivo-docente destinado a los EE Oficiales, teniendo en cuenta el PEI, las relaciones técnicas vigentes y sus perfiles o áreas de desempeño, incluyendo a los profesionales de apoyo. | D12: 1. Se evidencia que la planta de personal docente y directivo-docente asignada es la requerida para garantizar la prestacion del servicio en el EE y cumple los perfiles de desempeño fijados para cada área del conocimiento. 2. Se evidencia que la planta de personal docente y directivo-docente asignada excede la requerida para garantizar la prestacion del servicio en el EE. 3. Se evidencia que la planta de personal docente y directivo-docente asignada es insuficiente para garantizar la prestacion del servicio en el EE y/o incumple los perfiles de desempeño fijados para cada área del conocimiento. 4. Otra.
C13: Verificar el funcionamiento de los mecanismos de control establecidos sobre el cumplimiento de la jornada, el reporte oportuno de las novedades del personal y el ausentismo laboral. | D13: 1. El EE ha implementado el procedimiento establecido por la ETC para ejercer control sobre el cumplimiento de la jornada laboral y reporta oportunamente las novedades del personal. 2. 1. El EE no ha implementado el procedimiento establecido por la ETC para ejercer control sobre el cumplimiento de la jornada laboral y no reporta oportunamente las novedades del personal. 3. Otra.
C14: Verificar los perfiles de desempeño del personal docente vinculado a los EE Oficiales y garatizar su idoneidad. | D14: 1. El personal docente vinculado al EE es idóneo para atender la asignación académica correspondiente, de conformidad con los requerimientos del PEI. 2. El personal docente vinculado al EE no es idóneo para atender la asignación académica correspondiente, de conformidad con los requerimientos del PEI. 3. Otra
C15: Ejercer control sobre la asignación y el desempeño efectivo de las horas extras autorizadas para garantizar la atención en los diferentes niveles ofertados por el EE. | D15: 1. El EE ha implementado el procedimiento establecido por la ETC para ejercer control sobre la asignación y el desempeño efectivo de las horas extras autorizadas. 2. 1. El EE no ha implementado el procedimiento establecido por la ETC para ejercer control sobre la asignación y el desempeño efectivo de las horas extras autorizadas. 3. Otra.
C16: Verificar los perfiles de desempeño del personal docente vinculado a los EE No Oficiales y garatizar su idoneidad. | D16: 1. El personal docente vinculado al EE es idóneo para atender la asignación académica correspondiente, de conformidad con los requerimientos del PEI. 2. El personal docente vinculado al EE no es idóneo para atender la asignación académica correspondiente, de conformidad con los requerimientos del PEI. 3. Otra
A17: 3 | B17: COBERTURA Y PERMANENCIA ESCOLAR | C17: Ejercer control sobre la cobertura escolar y garantizar el registro adecuado y oportuno de la matrícula en el SIMAT. | D17: 1. El EE acusa irregularidades en el registro de los estudiantes en el SIMAT 2. El Establecimiento Educativo no cuenta con Plan de Permanencia Institucional. 3. El EE NO evidencia en forma adecuada el seguimiento realizado al proceso de aprendizaje de los estudiantes 4. El EE evidencia el registro adecuado de la matrícula en el SIMAT y en el SIMPADE. 5. Otra
C18: Ejercer control sobre la cobertura escolar y garantizar el registro adecuado y oportuno de la matrícula en el aplicativo dispuesto para tal fin. | D18: 1. El EE presenta irregularidades en el registro de los estudiantes en los sistemas de información (SIMAT, SIMPADE, SIPI, etc.) 2. El EE no presenta irregularidades en el registro de los estudiantes en los sistemas de información (SIMAT, SIMPADE, SIPI, etc.) 3. Otra.
C19: Hacer seguimiento a la implementación de los programas de apoyo para el acceso y la permanencia escolar y disminuir los índices de deserción y repitencia escolar. | D19: 1. El EE no está vinculado a programas de apoyo para el acceso y la permanencia escolar y/o no ha implementado estrategias dirigidas a disminuir los índices de deserción y de repitencia. 2. El EE está vinculado a programas de apoyo para el acceso y la permanencia escolar y/o ha implementado estrategias dirigidas a disminuir los índices de deserción y de repitencia. 3. Otra.
C20: Hacer seguimiento a la implementación de los programas de apoyo para el acceso y la permanencia escolar en la educación inicial. | D20: 1. El EE no está vinculado a programas de apoyo para el acceso y la permanencia escolar en educación inicial. 2. El EE está vinculado a programas de apoyo para el acceso y la permanencia escolar en educación inicial. 3. Otra.
C21: Brindar apoyo a las instituciones educativas urbanas y rurales en el diseño de estrategias que favorezcan la trayectoria escolar completa garantizando a cada estudiante la culminación de su ciclo de formación. | D21: 1. El EE implementó estrategias pertinentes para favorecer la trayectoria escolar completa, garantizando a cada estudiante la culminación de su ciclo de formación. 2. El EE no ha implementado estrategias pertinentes para favorecer la trayectoria escolar completa y/o no garantiza a cada estudiante la culminación de su ciclo de formación. 3. otra
C22: Garantizar el cumplimiento del principio de gratuidad del servicio educativo en los EE Oficiales cobijados por este beneficio. | D22: 1. El EE Oficial cumple con el principio de gratuidad del servicio. 2. El EE ha realizado cobros, solicitado aportes u otro tipo de exigencias económicas de carácter obligatorio que violan el principio de la gratuidad del servicio educativo. 3. Otro.
A23: 4 | B23: EDUCACIÓN INICIAL | C23: Requerir y apoyar el registro de los prestadores de servicios no oficiales de Educación Inicial y de atención a la primera infancia que por su naturaleza no cuentan con licencia de funcionamiento para la atención de niños y niñas menores de 5 años, en el sistema de información que defina el MEN. | D23: 1. El prestador de servicios de Educación Inicial ha sido requerido formalmente para que efectúe su registro en el Sistema correspondiente y actualice la información. 2. El prestador de servicios de Educación Inicial no ha sido requerido formalmente para que efectúe su registro en el Sistema correspondiente y actualice la información. 3. Otra
C24: Aprobar y actualizar la información de los prestadores no oficiales del servicio de Educación Inicial que hayan iniciado su registro en el sistema de información dispuesto por el MEN y caracterizar la oferta oficial y no oficial de la Educación Inicial (en sus dos ciclos) en su territorio. | D24: 1. El prestador de servicios de Educación Inicial se encuentra debidamente registrado en el Sistema correspondiente y la informacion ha sido actualizada. 2. El prestador de servicios de Educación Inicial no atendió el requerimiento para que adelante el registro en el Sistema correspondiente y/o actualice la informacion. 3. Otra
C25: Realizar visitas a los prestadores no oficiales de Educación Inicial registrados y aplicar cuando fuere pertinente las sanciones previstas en los artículos 196 y 197 de la Ley 1801 de 2016 "Por la cual se expide el Código Nacional de Seguridad y Convivencia Ciudadana" o las normas que los modifiquen o sustituyan. | D25: 1. El prestador de servicios de Educación Inicial ha sido renuente a legalizar la oferta de servicios e incumple los referentes técnicos emitidos por el MEN. 2. El prestador de servicios de Educación Inicial ha legalizado la oferta de servicios y se ajusta a los referentes técnicos emitidos por el MEN. 3. Otra.
C26: Brindar asistencia técnica a los prestadores oficiales y no oficiales a partir de los referentes técnicos de la Educación Inicial establecidos por el MEN. | D26: 1. El prestador de servicios de Educación Inicial ha implementado los referentes técnicos emitidos por el MEN. 2. El prestador de servicios de Educación Inicial requiere apoyo para implementar los referentes técnicos emitidos por el MEN. 3. Otra
C27: Hacer seguimiento a la matrícula de la población atendida por los prestadores de Educación Inicial que sea registrada en el sistema de información dispuesto para este fin por el MEN. | D27: 1. El prestador de servicios de Educación Inicial ha registrado debidamente la matrícula de la población escolar atendida. 2. El prestador de servicios de Educación Inicial presenta incosistencias en el registro de la matrícula de la población escolar atendida. 3. Otra.
A28: 5 | B28: CONVIVENCIA ESCOLAR | C28: Verificar la conformación y el funcionamiento de los Comités Escolares de Convivencia e impulsar la revisión y la actualización de los manuales de convivencia escolar. | D28: 1. En el EE no funciona debidamente el Comité Escolar de Convivencia 2. En el EE funciona debidamente el Comité Escolar de Convivencia 3. Otra
C29: Verificar la actualización y el ajuste normativo del Manual de Convivencia de los EE Oficiales y No Oficiales | D29: 1. El EE ha actualizado su manual de convivencia y ha realizado los ajustes exigidos por las normas vigentes. 2. El EE no ha actualizado su manual de convivencia y mantiene disposiciones que violan los derechos fundamentales de los estudiantes. 3. El EE requiere acompañamiento para ajustar su Manual de Convivencia. 4. Otra.
C30: Verificar el cumplimiento de lo ordenado por la Ley 1732 de 2014 “Por la cual se establece la Cátedra de la Paz en todas las instituciones educativas del país”. | D30: 1. El EE no cumple con lo ordenado por la Ley 1732 de 2014 “Por la cual se establece la Cátedra de la Paz en todas las instituciones educativas del país”. 2. El EE cumple con lo ordenado por la Ley 1732 de 2014 “Por la cual se establece la Cátedra de la Paz en todas las instituciones educativas del país”. 3. Otra
C31: Promover la implementación de las estrategias preventivas del abuso sexual y del acoso en los entornos escolares, en cumplimiento de la Directiva Ministerial No. 1 de 2022. | D31: 1. El EE establecimiento educativo ha definido y socializado con su comunidad educativa los procesos de prevención, atención y seguimiento del abuso sexual en el marco de la Ruta de Atención Integral de Convivencia Escolar. 2. El EE establecimiento educativo no ha definido y socializado con su comunidad educativa los procesos de prevención, atención y seguimiento del abuso sexual en el marco de la Ruta de Atención Integral de Convivencia Escolar 3. Otra.
C32: Verificar los reportes de las situaciones tipo II y tipo III en el SIUCE. | D32: 1. El EE efectúa oportunamente el reporte correspondiente en el SIUCE. 2. El EE presenta deficiencias y/o no efectúa el reporte correspondiente en el SIUCE. 3. Otra
C33: Verificar los mecanismos de activación de las Rutas de Atención Integral de las situaciones de convivencia | D33: 1. El EE tiene establecidos los mecanismos de activación de la ruta de atención a las situaciones de convivencia escolar tipo I, tipo II y tipo III 2. El EE presenta deficiencias en los mecanismos de activación de la ruta de atención a las situaciones de convivencia escolar tipo I, tipo II y tipo III 3. Otra
C34: Verificar que los prestadores privados implementen en sus procesos de selección y vinculación del personal, el mecanismo de consulta del sistema de registro de inhabilidades por delitos sexuales contra la libertad e integridad de niños, niñas y adolescente; y que efectúen las consultas periódicas, de conformidad con lo establecido en el Decreto 753 de 2019 | D34: 1. El EE no oficial ha implementado en sus procesos de selección y vinculación del personal, el mecanismo de consulta del sistema de registro de inhabilidades por delitos sexuales contra la libertad e integridad de niños, niñas y adolescentes; de conformidad con lo establecido en el Decreto 753 de 2019. 2. El EE no oficial no ha implementado en sus procesos de selección y vinculación del personal, el mecanismo de consulta del sistema de registro de inhabilidades por delitos sexuales contra la libertad e integridad de niños, niñas y adolescentes; de conformidad con lo establecido en el Decreto 753 de 2019. 3. otra
C35: Verificar que los prestadores privados tengan previsto el procedimiento a seguir en caso de que una persona vinculada al establecimiento educativo resulte involucrada en una investigación judicial por delitos de violencia sexual contra NNAJ; evento en el cual deben prevalecer los derechos de estos últimos evitando la interacción directa del involucrado con los estudiantes, mientras se surte el debido proceso. | D35: 1. El EE no oficial tiene previsto el procedimiento a seguir en caso de que una persona vinculada al establecimiento educativo resulte involucrada en una investigación judicial por delitos de violencia sexual contra NNAJ. 2. El EE no oficial no tiene previsto el procedimiento a seguir en caso de que una persona vinculada al establecimiento educativo resulte involucrada en una investigación judicial por delitos de violencia sexual contra NNAJ. 3. Otra
C36: Verificar que los EE no oficiales, contemplen en los reglamentos internos de los Comités Escolares de Convivencia los conflictos de interés, las casuales de impedimento y de recusación, así como el procedimiento para resolverlos, de tal forma que se garantice la imparcialidad en las actuaciones de los integrantes de los referidos comités. | D36: 1. El EE no oficial contempla en su reglamento interno del Comité Escolar de Convivencia los conflictos de interés, las casuales de impedimento y de recusación, así como el procedimiento para resolverlos, garantizando la imparcialidad en las actuaciones de los integrantes del comité. 2. El EE no oficial no contempla en su reglamento interno del Comité Escolar de Convivencia los conflictos de interés, las casuales de impedimento y de recusación, así como el procedimiento para resolverlos. 3. Otra
A37: 6 | B37: GESTIÓN DIRECTIVA Y GOBIERNO ESCOLAR | C37: Evaluar la gestión directiva y el direccionamiento estratégico de los establecimientos educativos mediante la revisión de los instrumentosde planeación institucional. | D37: 1. El EE presenta irregularidades en la gestión directiva y estratégica, particularmente, relacionadas con los instrumentos de planeación institucional y la tuta de mejoramiento. 2. El EE no presenta irregularidades en la gestión directiva y estratégica, particularmente, relacionadas con los instrumentos de planeación institucional y la ruta de mejoramiento. 3. Otra
C38: Verificar la participación de la comunidad educativa en la gestión del establecimiento y la debida conformación de las instancias de gobierno escolar. | D38: 1. El EE cumplió oportunamente con la obligación de conformar los órganos de gobierno escolar atendiendo los requerimientos legales vigentes. 2. El EE no cumplió con la obligación de conformar oportunamente los órganos de gobierno escolar atendiendo los requerimientos legales vigentes. 3. La comunidad educativa del EE participa activamente en las instancias de gobierno escolar, el cual se encuentra conformado de manera adecuada y funciona conforme a la normatividad vigente. 4. La comunidad educativa del EE no participa activamente en las instancias de gobierno escolar, el cual no se encuentra conformado de manera adecuada, ni funciona conforme a la normatividad vigente. 5. Otra.
C39: Evaluar la gestión administrativa, el manejo de los Fondos de Servicios Educativos y acompañar los procesos de rendición de cuentas que deben adelantar los EE oficiales. | D39: 1. El EE presenta irregularidades en la gestión directiva y estratégica, particularmente, relacionadas con el uso de los recursos de gratuidad. 2. El EE no presenta irregularidades en la gestión directiva y estratégica, particularmente, relacionadas con el uso de los recursos de gratuidad. 3. El EE no reporta oportunamente la información relacionada con el manejo del Fondo de Servicios Educativos y omite la realización de los ejercicios de rendición de cuentas con la periodicidad establecida. 4. El EE reporta oportunamente la información relacionada con el manejo del Fondo de Servicios Educativos y realiza los ejercicios de rendición de cuentas con la periodicidad establecida. 5. Otra
A40: 7 | B40: SISTEMAS DE INFORMACIÓN DEL SECTOR | C40: Verificar los reportes hechos por los EE en los sistemas de información y garantizar el registro, la depuración y la actualización permanente de los datos en las plataformas del DUE, EVI, SIET, SIPI, SIMAT,SIFSE, etc.. | D40: 1. La información suministrada por el EE en los aplicativos del sector es idónea y confiable. 2. La información suministrada por el EE en los aplicativos del sector presenta inconsistencias motivo por el cual no es idónea y confiable. 3. Otra.
A41: 8 | B41: EDUCACIÓN PRIVADA | C41: Verificar el procedimiento aplicado en los EE No Oficiales para la aprobación de los costos educativos, los reportes de la autoevaluación institucional (EVI) y los procesos seguidos para la fijación de listas de útiles, textos, materiales y uniformes escolares. | D41: 1. El EE No Oficial dio cumplimiento al procedimiento legalmente establecido para la aprobación de los costos educativos y/o para la adopción de las listas de útiles, textos, materiales y uniformes escolares. 2. El EE No Oficial no dio cumplimiento al procedimiento legalmente establecido para la aprobación de los costos educativos y/o para la adopción de las listas de útiles, textos, materiales y uniformes escolares. 3. El EE No Oficial reportó oportunamente y cumplio con la normatividad vigente en la elaboración de su autoevaluación institucional. 4. El EE No Oficial no reportó oportunamente, ni cumplio con la normatividad vigente en la elaboración de su autoevaluación institucional. 5. Otra
C42: Trámite de quejas por la presunta violación al régimen establecido para la fijación de los costos educativos y/o para la adopción de las listas de útiles, textos, materiales y uniformes escolares | D42: 1. EL EE ha incurrido en conductas irregulares, de acuerdo con el proceso de evaluación de las quejas recibidas, por lo que debe iniciarse un proceso sancionatorio. 2. EL EE no ha incurrido en conductas irregulares, de acuerdo con el proceso de evaluación de las quejas recibidas, por lo que no procede la iniciación de un proceso sancionatorio. 3. Otra
C43: Realizar visitas de verificación que complementen la autoevaluación institucional y garantizar la idoneidad de la información registrada por los Colegios Privados en la aplicación EVI. | D43: 1. La información registrada por el EE No Oficial en la aplicación EVI presenta incosistencias. 2.La información registrada por el EE No Oficial en la aplicación EVI es idónea y no presenta incosistencias. 3. La información suministrada por el EE No Oficial en la visita de evaluación externa no complementa la evaluación institucional ni respalda los registros hechos en el aplicativo EVI. 4. La información suministrada por el EE No Oficial en la visita de evaluación externa complementa la evaluación institucional y certifica la idoneidad de la información registrada en el aplicativo EVI. 5. Otra
C44: Verificar los perfiles de desempeño del personal docente vinculado a los EE No Oficiales y garatizar su idoneidad. | D44: 1. El personal docente vinculado al EE No Oficial es idóneo para atender la asignación académica correspondiente, de conformidad con los requerimientos del PEI. 2. El personal docente vinculado al EE No Oficial no es idóneo para atender la asignación académica correspondiente, de conformidad con los requerimientos del PEI. 3. Otra
C45: Adelantar, en coordinación con el área Jurídica, las actuaciones previstas en el régimen sancionatorio, cuando los EE No Oficiales hayan incurrido presuntamente en conductas violatorias del régimen legal aplicable a la prestación del servicio. | D45: 1. EL EE ha incurrido en conductas irregulares, de acuerdo con el proceso de evaluación de las quejas recibidas, por lo que debe iniciarse un proceso sancionatorio. 2. EL EE no ha incurrido en conductas irregulares, de acuerdo con el proceso de evaluación de las quejas recibidas, por lo que no procede la iniciación de un proceso sancionatorio. 3. Otra
C46: Hacer seguimiento especial a los establecimientos clasificados en régimen controlado y verificar el cumplimiento de los planes de mejoramiento acordados para superar las circunstancia que originaron esta clasificación. | D46: 1. El EE reincidió en la clasificación en Régimen Controlado y no ha dado cumplimiento a los compromisos adquiridos en el Plan de Mejoramiento, motivo por el cual debe iniciarse un proceso sancionatorio. 2. El EE ingresó al Régimen Controlado motivo por el cual se debe acordar un Plan de Mejoramiento que le permita superar las causas que lo llevaron a esta clasificación. 3. El EE dio cumplimiento a los compromisos adquiridos en el Plan de Mejoramiento, por lo que debe cambiar de régimen tarifario. 4. Otra
C47: Prestar asistencia tecnica a los EE privados en temas de legalización de la oferta de servicios educativos, expedición de licencias de funcionamiento, aprobación de programas, registro de novedades y ampliación de la jornada, entre otros. | D47: 1. Se verificó la licencia de funcionamiento otorgada al EE, la actualización de novedades, sedes, niveles, grados y programas autorizados, encontrando que el EE opera legalmente. (La oferta educativa es legal). 2. Se verificó la licencia de funcionamiento otorgada al EE, actualización de novedades, sedes, niveles, grados y programas autorizados, encontrando que el EE presenta inconsistencias. (La oferta educativa es ilegal). 3. El EE no oficial requiere asistencia tecnica para legalizar los servicios educativos ofertados o para cumplir los lineamientos técnicos establecidos por el MEN. 4. Otra
A48: 9 | B48: CALIDAD Y PERTINENCIA DE LA EDUCACION | C48: Apoyar la implantación de los programas de ampliación de la jornada escolar como factor determinante para el mejoramiento de la calidad, en los EE oficiales priorizados para este fin. | D48: 1. EL EE cuenta con las condiciones necesarias para ampliar la jornada escolar. 2. El EE no cuenta con las condiciones necesarias para ampliar la jornada escolar. 3. Otra.
C49: Apoyar la implementación de los programas de articulación y de mejoramiento de la educación media, garantizar la trayectoria hacia las modalidades de formación posmedia y garantizar la doble titulación. | D49: 1. EL EE garantiza la trayectoria completa hasta la educación media y se encuentra articulado para ofrecer la doble titulación. 2. EL EE no garantiza la trayectoria completa hasta la educación media y/o no se encuentra articulado para ofrecer la doble titulación. 3. Otra.
C50: Hacer seguimiento y evaluar el cumplimiento de los Planes de Mejoramiento Institucional en desarrollo de las estrategias de acompañamiento definidas en el -PAM- de la ETC. | D50: 1. La IE cumplió con el plan de mejoramiento acordado en las visitas de control. 2. La IE no cumplió con el plan de mejoramiento acordado en las visitas de control 3. La IE requiere apoyo para formular el plan de mejoramiento institucional 4. Otra
C51: Verificar las edades de ingreso a los programas de Educación para Adultos, el tiempo de duración, la aplicación de las pruebas externas de evaluación, el cumplimiento del servicio social estudiantil, entre otros aspectos, que favorezcan la calidad de la formación ofertada en este nivel. | D51: 1. El EE cumple con las condiciones establecidas para la prestación del servicio educativo para jóvenes y adultos en ciclos lectivos especiales del 1 al 6, conforme a la normatividad vigente, particularmente, en las edades exigidas para el ingreso de los estudiantes. 2. El EE no cumple con las condiciones establecidas para la prestación del servicio educativo para jóvenes y adultos en ciclos lectivos especiales del 1 al 6, conforme a la normatividad vigente y/o incumple las normas que regulan las edades exigidas para el ingreso de los estudiantes a esta modalidad. 3. Otra
C52: Impulsar estrategias de mejoramiento de la calidad de la educación desde el punto de vista de la pertinencia y de su relacionamiento con la vocación productiva regional, promoviendo la resignificación del PEI. | D52: 1. El PEI de la IE es pertinente con la vocación productiva regional y asegura una educación de calidad. 2. El PEI de la IE no es pertinente con la vocación productiva regional y debe resignificarse para asegurar una educación de calidad. 3. Otra
C53: Hacer seguimiento a los resultados obtenidos por los EE en las Pruebas de Estado aplicadas en los grados 3, 5, 7, 9 y 11; y promover la adopción de los planes de mejoramiento respectivos. | D53: 1. La IE diseñó e implementó estrategias de mejoramiento de la calidad de la educación a partir de los resultados obtenidos en las pruebas de estado. 2. La IE no diseñó ni implementó estrategias de mejoramiento de la calidad de la educación a partir de los resultados obtenidos en las pruebas de estado, motivo por el cual debe formular un plan de mejoramiento. 3. Otra
C54: Efectuar la revisión periódica de los contenidos básicos de formación y demás componentes de los programas de Educación para el Trabajo y el Desarrollo Humano, garantizando su pertinencia, mejora y actualización constante. | D54: 1. La oferta educativa de la Institución se ajusta a la normatividad vigente para los programas de ETDH 2. La oferta educativa de la Institución no se ajusta a la normatividad vigente para los programas de ETDH razón por la cual debe implementar los correctivos necesarios. 3. La Institución ETDH reportó de forma veraz y oportuna la matrícula y los estudiantes certificados, en el SIET. 4. La Institución ETDH no reportó de forma veraz y oportuna la matrícula y los estudiantes certificados, en el SIET. 5. Otra
C55: Verificar la debida adopción y la divulgación del Sistema Institucional de Evaluación de los Estudiantes. | D55: 1. El EE adoptó y divulgó adecuadamente el Sistema Institucional de Evaluación de los Estudiantes. 2. El EE incumplió las disposiciones legales que regulan la adopción y la divulgación del Sistema Institucional de Evaluación de los Estudiantes. 3. Otra
C56: Verificar el uso adecuado y los registros de las plataformas de calificaciones y las evidencias de los procesos de evaluación del aprendizaje de los estudiantes. (Libros Reglamentarios) | D56: 1. El EE cumple las disposiciones legales relacionadas con el registro adecuado de la información asociada a los procesos académicos y administrativos que desarrolla y lleva los Libros Reglamentarios. 2. El EE presenta inconsistencias en el registro de la información asociada a los procesos académicos y administrativos que desarrolla y no cumple las disposiciones relacionadas con los libros reglamentarios. 3. Otra
C57: Verificar la existencia de los Planes Individuales de Ajustes Razonables en los casos en que se requiera su implementación. Decreto 1421 de 2017. | D57: 1. El EE evidencia la existencia de los Planes Individuales de Ajustes Razonables, como herramienta de apoyo en los procesos de enseñanza y aprendizaje de los estudiantes, con enfoque inclusivo. 2. El EE no evidencia la existencia de los Planes Individuales de Ajustes Razonables, como herramienta de apoyo en los procesos de enseñanza y aprendizaje de los estudiantes, con enfoque inclusivo. 3. Otra
A58: =+A48+1 -> 10 | B58: GARANTÍA DEL DERECHO A LA EDUCACIÓN- ATENCIÓN A QUEJAS Y SOLICITUDES | C58: Atender y trámitar oportunamente las quejas, denuncias y demás requerimientos formulados por los integrantes de la comunidad educativa siempre que guarden relación con la garantía del derecho fundamental a la educación y la debida prestación del servicio. | D58: 1. EL EE ha incurrido -presuntamente- en conductas irregulares que vulneran el derecho fundamental a la educación. 2. EL EE no ha incurrido en conductas irregulares que vulneren el derecho fundamental a la educación. 3. EL EE ha reincidido en conductas irregulares que vulneran el derecho fundamental a la educación razón por la cual debe iniciarse un proceso sancionatorio. 4. Otra.
C59: Establecimientos Educativos priorizados para hacer seguimiento a las quejas o reportes de negación de cupos o de cualquier otra conducta que viole el derecho fundamental a la educación. | D59: 1. EL EE ha adoptado las medidas necesarias para corregir situaciones irregulares que vulneran el derecho fundamental a la educación. 2. EL EE no ha adoptado los correctivos necesarios para susperar las situaciones irregulares que vulneran el derecho fundamental a la educación. 3. Otra.
A60: =+A58+1 -> 11 | B60: ATENCIÓN A GRUPOS POBLACIONALES DE ESPECIAL PROTECCIÓN | C60: Realizar seguimiento a la atención educativa brindada a la población con capacidades o talentos excepcionales donde se garantice el acceso, la permanencia, la calidad, los apoyos y los ajustes razonables requeridos. | D60: 1. El EE evidencia la existencia de los Planes Individuales de Ajustes Razonables, como herramienta de apoyo en los procesos de enseñanza y aprendizaje de los estudiantes, con enfoque inclusivo. 2. El EE no evidencia la existencia de los Planes Individuales de Ajustes Razonables, como herramienta de apoyo en los procesos de enseñanza y aprendizaje de los estudiantes, con enfoque inclusivo. 3. Otra
C61: Fortalecer los modelos de atención dirigidos a los grupos de población que gozan de protección especial en virtud de la Constitución Política y apoyar a las comunidades étnicas en la implementación de la educación propia. | D61: 1. El EE requiere adecuar su infraestructura y/o sus programas de aprendizaje para garantizar la atención adecuada a los estudiantes que hacen parte de los grupos poblacionales de especial protección. (Corte Constitucional - Sentencia T-736 de 2013). 2. El EE cuenta con las condiciones y los programas de aprendizaje adecuados para garantizar la prestación del servicio educativo a los estudiantes que hacen parte de grupos poblacionales de especial protección. (Corte Constitucional - Sentencia T-736 de 2013). 3. Otra
A62: 12 | B62: ASOCIACIONES DE PADRES DE FAMILIA | C62: Exigir el registro en las Cámaras de Comercio de las asociaciones, ligas, federaciones o confederaciones de padres de familia de los establecimientos educativos de su jurisdicción, las cuales también son sujetos de Inspección y Vigilancia. (Artículo 2.3.4.16 del Decreto 1075 del 26 de mayo de 2015). | D62: 1. La Asociación de Padres de Familia del EE se encuentra debidamente registrada en la Cámara de Comercio y funciona de conformidad con la normatividad vigente. 2. La Asociación de Padres de Familia del EE no se encuentra debidamente registrada en la Cámara de Comercio y/o presenta irregularidades en su funcionamiento. 3. La liga, federación o confederación de padres de familia se encuentra debidamente registrada en la Cámara de Comercio y funciona de conformidad con la normatividad vigente. 4. La liga, federación o confederación de padres de familia no se encuentra debidamente registrada en la Cámara de Comercio y/o presenta irregularidades en su funcionamiento. 5. Otra.
C63: Llevar un registro actualizado de las Asociaciones de Padres de Familia, exigirles la entrega oportuna de los estatutos y los reportes sobre las reformas hechas a los mismos y sobre la elección periódica de sus dignatarios. | D63: 1. La asociación de padres del EE ha hecho entrega oportuna de los estatutos y de las reformas hechas a los mismos, así como de los informes requeridos por la ETC, incluyendo los relacionados con la elección periódica de dignatarios. 2. La asociación de padres del EE no ha hecho entrega oportuna de los estatutos y/o de las reformas hechas a los mismos; así como de los informes requeridos por la ETC, incluyendo los relacionados con la elección periódica de dignatarios. 3. Otra.
C64: Exigir a las Asociaciones de Padres de Familia la entrega anual de la información relacionada con su presupuesto de ingresos y gastos y los estados financieros de cada ejercicio. | D64: 1. La Asociación de padres del EE hizo entrega anual de la información relacionada con el presupuesto de ingresos y gastos y los estados financieros de cada ejercicio, tal como lo ordena el Decreto 1093 de 1989. 2. La Asociación de padres del EE no hizo entrega anual de la información relacionada con el presupuesto de ingresos y gastos y los estados financieros de cada ejercicio, tal como lo ordena el Decreto 1093 de 1989. 3. Otra.
C65: Ejercer el control sobre las acciones que las Asociaciones de Padres de Familia realizan en cumplimiento de su objeto social para lo cual deben atender las prohibiciones legalmente establecidas. ( Ley 1269 de 2008 y artículos 2.3.4.12, y 2.3.4.15 del Decreto 1075 de 2015). | D65: 1. La Asociación de Padres de Familia cumple su objeto social y atiende las prohibiciones establecidas para ella, en el artículo 2.3.4.12, y para el EE, en el artículo 2.3.4.15 del Decreto 1075 de 2015, y en la Ley 1269 de 2008. 2. La Asociación de Padres de Familia incumple su objeto social, presenta inconsistencias en su funcionamiento e incurre en las prohibiciones establecidas para ella, en el artículo 2.3.4.12, y para el EE, en el artículo 2.3.4.15 del Decreto 1075 de 2015, y en la Ley 1269 de 2008. 3. Otra.

Sheet 1. CONTROL NORMATIVO
A1: MATRIZ DE FORMULACIÓN Y SEGUIMIENTO DEL POAIV 2023
A2: VISITAS, ACTUACIONES O INTERVENCIONES PROGRAMADAS | O2: RESULTADOS DE LAS ACTUACIONES REALIZADAS -Informes de Ejecución-
A3: NÚMERO DE ORDEN | B3: DEPARTAMENTO | C3: MUNICIPIO | D3: NOMBRE DEL ESTABLECIMIENTO | E3: SEDE ATENDIDA | F3: SECTOR DEL ESTABLECIMIENTO | G3: TIPO DE ESTABLECIMIENTO O SUJETO DE CONTROL | H3: FECHA DE INICIO PROGRAMADA | I3: FECHA FIN PROGRAMADA | J3: ACTIVIDAD A DESARROLLAR | K3: ¿CUÁL OTRA? | L3: FUNCIONARIO RESPONSABLE | M3: ÁREA | N3: CASOS | O3: FECHA REAL DE INICIO DE LA ACTUACIÓN | P3: FECHA REAL FIN DE LA ACTUACIÓN | Q3: SITUACIÓN ENCONTRADA | R3: ¿CUÁL OTRA? | S3: CONCLUSIONES Y/O COMPROMISOS ADQUIRIDOS | T3: ACTIVIDADES DE SEGUIMIENTO Y VERIFICACIÓN
A4: Enumere los EE que serán atendidos en el período. | B4: Incluya el nombre del departamento a la que pertenece el EE objeto de la actuación. | C4: Incluya el nombre del municipio al que pertenece el EE objeto de la actuación. | D4: Identifique el EE priorizado para visitar o para ejecutar otro tipo de actuación según los criterios aplicados para elaborar el POAIV. | E4: Indique el nombre de la sede del EE en donde se ejecutará la visita y/o actuación | F4: Oficial/No oficial | G4: Lista desplegable: EPBM ETDH Educación inicial Educación para Jóvenes y Adultos | H4: Agregue la fecha prevista para la realización de la actuación. | I4: Agregue la fecha prevista para la realización de la actuación. | J4: Seleccione la actividad a desarrollar de acuerdo con el tema diligenciado | K4: Si seleccionó la opción OTRA, indique cuál | L4: Incluya los nombres y apellidos de los funcionarios encargados de realizar la actuación. | M4: Incluya el nombre del área de los funcionarios encargados de realizar la actuación. | O4: Indique la fecha real en que se llevó a cabo la visita o actuación. | P4: Indique la fecha real en que se llevó a cabo la visita o actuación. | Q4: Seleccione la situación encontrada de acuerdo con la actividad realizada | R4: Si seleccionó la opción OTRA, indique cuál | S4: Relacione las acciones de mejora acordadas o los compromisos adquiridos por el EE y por la SE en aras de resolver la situación tratada. | T4: Informe qué acciones de seguimiento o de verificación ha adelantado la SE para verificar las acciones de mejora y/o el cumplimiento de los compromisos adquiridos
A5: 1 | B5: Nariño | C5: Barbacoas | D5: Institucion Educativa Luis Irizar Salazar | E5: Institucion Educativa Luis Irizar Salazar | F5: Oficial | G5: Educación Preescolar, Básica Y Media - EPBM | H5: 2023-03-02 | I5: 2023-03-02 | J5: Ejercer control normativo verificando los actos administrativos de reconocimiento oficial o la licencia de funcionamiento del EE, legalización de novedades, autorización de jornadas, sedes, ciclos y programas, y, en general, la legalidad de la oferta educativa. | L5: Isabel Rosero-Yola Maria Bacca-Ruth Perez-Harold Fernando Ruiz- Nadua Botina - Jesús Gavilanes | M5: Inspección y Vigilancia | N5: =IF(J5=H!$ET$3,"CASO1",IF('1. CONTROL NORMATIVO'!J5=H!$ET$10,"CASO2",IF('1. CONTROL NORMATIVO'!J5=H!$ET$23,"CASO3",IF('1. CONTROL NORMATIVO'!J5=H!$ET$26,"CASO4",IF(J5=H!$ET$29,"CASO5",IF('1. CONTROL NORMATIVO'!J5=H!$ET$32,"CASO6",IF('1. CONTROL NORMATIVO'!J5=H!$ET$35,"CASO7",IF(J5=H!$ET$38,"CASO8",IF('1. CONTROL NORMATIVO'!J5=H!$ET$41,"CASO9",IF(J5=H!$ET$225,"CASO62",0)))))))))) -> CASO1 | O5: 2023-03-02 | P5: 2023-03-02 | Q5: 5. EL EE ejecuta adecuadamente el Proyecto Educativo Institucional autorizado. | S5: la sede 5 está deterirorada físicamente. Hacer la resignificación del PEI | T5: Seguimiento a las recomendaciones.
A6: =A5+1 -> 2 | B6: Nariño | C6: Barbacoas | D6: Institucion Educativa La Humildad | E6: Institucion Educativa La Humildad | F6: Oficial | G6: Educación Preescolar, Básica Y Media - EPBM | H6: 2023-02-28 | I6: 2023-02-28 | J6: Ejercer control normativo verificando los actos administrativos de reconocimiento oficial o la licencia de funcionamiento del EE, legalización de novedades, autorización de jornadas, sedes, ciclos y programas, y, en general, la legalidad de la oferta educativa. | L6: Isabel Rosero-Yola Maria Bacca-Ruth Perez-Harold Fernando Ruiz- Nadua Botina - Jesús Gavilanes | M6: Inspección y Vigilancia | N6: =IF(J6=H!$ET$3,"CASO1",IF('1. CONTROL NORMATIVO'!J6=H!$ET$10,"CASO2",IF('1. CONTROL NORMATIVO'!J6=H!$ET$23,"CASO3",IF('1. CONTROL NORMATIVO'!J6=H!$ET$26,"CASO4",IF(J6=H!$ET$29,"CASO5",IF('1. CONTROL NORMATIVO'!J6=H!$ET$32,"CASO6",IF('1. CONTROL NORMATIVO'!J6=H!$ET$35,"CASO7",IF(J6=H!$ET$38,"CASO8",IF('1. CONTROL NORMATIVO'!J6=H!$ET$41,"CASO9",IF(J6=H!$ET$225,"CASO62",0)))))))))) -> CASO1 | O6: 2023-02-28 | P6: 2023-02-28 | Q6: 5. EL EE ejecuta adecuadamente el Proyecto Educativo Institucional autorizado. | S6: Se recomienda elaborar el organigrama, ajustar el manual de conviviencia, actualizar los planes de área cada año lectivo, elaborar el proyecto de educación vial y el proyecto económico Financiero | T6: Seguimiento a las recomendaciones.
A7: =A6+1 -> 3 | B7: Nariño | C7: Barbacoas | D7: Institucion Educativa Teraimbe | E7: Institucion Educativa Teraimbe | F7: Oficial | G7: Educación Preescolar, Básica Y Media - EPBM | H7: 2023-03-01 | I7: 2023-03-01 | J7: Ejercer control normativo verificando los actos administrativos de reconocimiento oficial o la licencia de funcionamiento del EE, legalización de novedades, autorización de jornadas, sedes, ciclos y programas, y, en general, la legalidad de la oferta educativa. | L7: Isabel Rosero-Yola Maria Bacca-Ruth Perez-Harold Fernando Ruiz- Nadua Botina - Jesús Gavilanes | M7: Inspección y Vigilancia | N7: =IF(J7=H!$ET$3,"CASO1",IF('1. CONTROL NORMATIVO'!J7=H!$ET$10,"CASO2",IF('1. CONTROL NORMATIVO'!J7=H!$ET$23,"CASO3",IF('1. CONTROL NORMATIVO'!J7=H!$ET$26,"CASO4",IF(J7=H!$ET$29,"CASO5",IF('1. CONTROL NORMATIVO'!J7=H!$ET$32,"CASO6",IF('1. CONTROL NORMATIVO'!J7=H!$ET$35,"CASO7",IF(J7=H!$ET$38,"CASO8",IF('1. CONTROL NORMATIVO'!J7=H!$ET$41,"CASO9",IF(J7=H!$ET$225,"CASO62",0)))))))))) -> CASO1 | O7: 2023-03-01 | P7: 2023-03-01 | Q7: 5. EL EE ejecuta adecuadamente el Proyecto Educativo Institucional autorizado. | S7: Falta desarrollar la filosofía institucional, determinar los objetivos generales y específicos, no se ha dado a conocer al Consejo Directivo la resignificación del PEI. | T7: Seguimiento a las recomendaciones.
A8: 4 | B8: Nariño | C8: Albán | D8: Institución Educativa Politecnico JuanBolaños | E8: Institución Educativa Politecnico JuanBolaños | F8: Oficial | G8: Educación Preescolar, Básica Y Media - EPBM | H8: 2023-03-27 | I8: 2023-03-27 | J8: Ejercer control normativo verificando los actos administrativos de reconocimiento oficial o la licencia de funcionamiento del EE, legalización de novedades, autorización de jornadas, sedes, ciclos y programas, y, en general, la legalidad de la oferta educativa. | L8: Isabel Rosero-Yola Maria Bacca-Ruth Perez-Harold Fernando Ruiz- Nadua Botina - Jesús Gavilanes | M8: Inspección y Vigilancia | N8: =IF(J8=H!$ET$3,"CASO1",IF('1. CONTROL NORMATIVO'!J8=H!$ET$10,"CASO2",IF('1. CONTROL NORMATIVO'!J8=H!$ET$23,"CASO3",IF('1. CONTROL NORMATIVO'!J8=H!$ET$26,"CASO4",IF(J8=H!$ET$29,"CASO5",IF('1. CONTROL NORMATIVO'!J8=H!$ET$32,"CASO6",IF('1. CONTROL NORMATIVO'!J8=H!$ET$35,"CASO7",IF(J8=H!$ET$38,"CASO8",IF('1. CONTROL NORMATIVO'!J8=H!$ET$41,"CASO9",IF(J8=H!$ET$225,"CASO62",0)))))))))) -> CASO1 | O8: 2023-03-27 | P8: 2023-03-27 | Q8: 5. EL EE ejecuta adecuadamente el Proyecto Educativo Institucional autorizado. | S8: Hacer la gestión para tomar las medidas preventivas fresnte al riesgo de deslizamientos y desbordamiento de alcantarilla por las fuertes lluvias. | T8: Hacer seguimiento a las recomendaciones hechas.
A9: 5 | B9: Nariño | C9: Albán | D9: Institución Educativa Chapiurco | E9: Institución Educativa Chapiurco | F9: Oficial | G9: Educación Preescolar, Básica Y Media - EPBM | H9: 2023-03-28 | I9: 2023-03-28 | J9: Ejercer control normativo verificando los actos administrativos de reconocimiento oficial o la licencia de funcionamiento del EE, legalización de novedades, autorización de jornadas, sedes, ciclos y programas, y, en general, la legalidad de la oferta educativa. | L9: Isabel Rosero-Yola Maria Bacca-Ruth Perez-Harold Fernando Ruiz- Nadua Botina - Jesús Gavilanes | M9: Inspección y Vigilancia | N9: =IF(J9=H!$ET$3,"CASO1",IF('1. CONTROL NORMATIVO'!J9=H!$ET$10,"CASO2",IF('1. CONTROL NORMATIVO'!J9=H!$ET$23,"CASO3",IF('1. CONTROL NORMATIVO'!J9=H!$ET$26,"CASO4",IF(J9=H!$ET$29,"CASO5",IF('1. CONTROL NORMATIVO'!J9=H!$ET$32,"CASO6",IF('1. CONTROL NORMATIVO'!J9=H!$ET$35,"CASO7",IF(J9=H!$ET$38,"CASO8",IF('1. CONTROL NORMATIVO'!J9=H!$ET$41,"CASO9",IF(J9=H!$ET$225,"CASO62",0)))))))))) -> CASO1 | O9: 2023-03-28 | P9: 2023-03-28 | Q9: 1. Los actos administrativos mediante los cuales se expidió el reconocimiento oficial o la licencia de funcionamiento del EE cumplen con la normatividad vigente. | S9: Actualizar el PEI, para implementar la educación para adultos 3011. | T9: Hacer seguimiento a las recomendaciones hechas.
A10: 6 | B10: Nariño | C10: Gualmatán | D10: Institución Educativa San Jose. | E10: Institución Educativa San Jose | F10: Oficial | G10: Educación Preescolar, Básica Y Media - EPBM | H10: 2023-08-30 | I10: 2023-08-30 | J10: Ejercer control normativo verificando los actos administrativos de reconocimiento oficial o la licencia de funcionamiento del EE, legalización de novedades, autorización de jornadas, sedes, ciclos y programas, y, en general, la legalidad de la oferta educativa. | L10: Isabel Rosero-Yola Maria Bacca-Ruth Perez-Harold Fernando Ruiz- Nadua Botina - Jesús Gavilanes | M10: Inspección y Vigilancia | N10: =IF(J10=H!$ET$3,"CASO1",IF('1. CONTROL NORMATIVO'!J10=H!$ET$10,"CASO2",IF('1. CONTROL NORMATIVO'!J10=H!$ET$23,"CASO3",IF('1. CONTROL NORMATIVO'!J10=H!$ET$26,"CASO4",IF(J10=H!$ET$29,"CASO5",IF('1. CONTROL NORMATIVO'!J10=H!$ET$32,"CASO6",IF('1. CONTROL NORMATIVO'!J10=H!$ET$35,"CASO7",IF(J10=H!$ET$38,"CASO8",IF('1. CONTROL NORMATIVO'!J10=H!$ET$41,"CASO9",IF(J10=H!$ET$225,"CASO62",0)))))))))) -> CASO1
A11: 7 | B11: Nariño | C11: Gualmatán | D11: Institución Educativa Promocion Social | E11: Institución Educativa Promocion Social | F11: Oficial | G11: Educación Preescolar, Básica Y Media - EPBM | H11: 2023-04-30 | I11: 2023-04-30 | J11: Ejercer control normativo verificando los actos administrativos de reconocimiento oficial o la licencia de funcionamiento del EE, legalización de novedades, autorización de jornadas, sedes, ciclos y programas, y, en general, la legalidad de la oferta educativa. | L11: Isabel Rosero-Yola Maria Bacca-Ruth Perez-Harold Fernando Ruiz- Nadua Botina - Jesús Gavilanes | M11: Inspección y Vigilancia | N11: =IF(J11=H!$ET$3,"CASO1",IF('1. CONTROL NORMATIVO'!J11=H!$ET$10,"CASO2",IF('1. CONTROL NORMATIVO'!J11=H!$ET$23,"CASO3",IF('1. CONTROL NORMATIVO'!J11=H!$ET$26,"CASO4",IF(J11=H!$ET$29,"CASO5",IF('1. CONTROL NORMATIVO'!J11=H!$ET$32,"CASO6",IF('1. CONTROL NORMATIVO'!J11=H!$ET$35,"CASO7",IF(J11=H!$ET$38,"CASO8",IF('1. CONTROL NORMATIVO'!J11=H!$ET$41,"CASO9",IF(J11=H!$ET$225,"CASO62",0)))))))))) -> CASO1 | Q11: Otra | R11: La actividad se reprograma para el 10 de septiembre de 2023
A12: 8 | B12: Nariño | C12: La Tola | D12: Institución Educativa Agropecuaria y Ambiental Arca de Noel. | E12: Institución Educativa Agropecuaria y Ambiental Arca de Noel | F12: Oficial | G12: Educación Preescolar, Básica Y Media - EPBM | H12: 2023-06-30 | I12: 2023-06-30 | J12: Ejercer control normativo verificando los actos administrativos de reconocimiento oficial o la licencia de funcionamiento del EE, legalización de novedades, autorización de jornadas, sedes, ciclos y programas, y, en general, la legalidad de la oferta educativa. | L12: Isabel Rosero-Yola Maria Bacca-Ruth Perez-Harold Fernando Ruiz- Nadua Botina - Jesús Gavilanes | M12: Inspección y Vigilancia | N12: =IF(J12=H!$ET$3,"CASO1",IF('1. CONTROL NORMATIVO'!J12=H!$ET$10,"CASO2",IF('1. CONTROL NORMATIVO'!J12=H!$ET$23,"CASO3",IF('1. CONTROL NORMATIVO'!J12=H!$ET$26,"CASO4",IF(J12=H!$ET$29,"CASO5",IF('1. CONTROL NORMATIVO'!J12=H!$ET$32,"CASO6",IF('1. CONTROL NORMATIVO'!J12=H!$ET$35,"CASO7",IF(J12=H!$ET$38,"CASO8",IF('1. CONTROL NORMATIVO'!J12=H!$ET$41,"CASO9",IF(J12=H!$ET$225,"CASO62",0)))))))))) -> CASO1 | Q12: Otra | R12: La actividad se reprograma para el 15 de septiembre de 2023
A13: 9 | B13: Nariño | C13: La Tola | D13: Institución Educativa Sofonias Yacup | E13: Institución Educativa Sofonias Yacup | F13: Oficial | G13: Educación Preescolar, Básica Y Media - EPBM | H13: 2023-06-30 | I13: 2023-06-30 | J13: Ejercer control normativo verificando los actos administrativos de reconocimiento oficial o la licencia de funcionamiento del EE, legalización de novedades, autorización de jornadas, sedes, ciclos y programas, y, en general, la legalidad de la oferta educativa. | L13: Isabel Rosero-Yola Maria Bacca-Ruth Perez-Harold Fernando Ruiz- Nadua Botina - Jesús Gavilanes | M13: Inspección y Vigilancia | N13: =IF(J13=H!$ET$3,"CASO1",IF('1. CONTROL NORMATIVO'!J13=H!$ET$10,"CASO2",IF('1. CONTROL NORMATIVO'!J13=H!$ET$23,"CASO3",IF('1. CONTROL NORMATIVO'!J13=H!$ET$26,"CASO4",IF(J13=H!$ET$29,"CASO5",IF('1. CONTROL NORMATIVO'!J13=H!$ET$32,"CASO6",IF('1. CONTROL NORMATIVO'!J13=H!$ET$35,"CASO7",IF(J13=H!$ET$38,"CASO8",IF('1. CONTROL NORMATIVO'!J13=H!$ET$41,"CASO9",IF(J13=H!$ET$225,"CASO62",0)))))))))) -> CASO1 | Q13: Otra | R13: La actividad se reprograma para el 30 de septiembre de 2023
A14: 10 | B14: Nariño | C14: La Llanada | D14: Institucion Educativa Rodrigo Lara Bonilla. | E14: Institucion Educativa Rodrigo Lara Bonilla | F14: Oficial | G14: Educación Preescolar, Básica Y Media - EPBM | H14: 2023-07-31 | I14: 2023-07-31 | J14: Ejercer control normativo verificando los actos administrativos de reconocimiento oficial o la licencia de funcionamiento del EE, legalización de novedades, autorización de jornadas, sedes, ciclos y programas, y, en general, la legalidad de la oferta educativa. | L14: Isabel Rosero-Yola Maria Bacca-Ruth Perez-Harold Fernando Ruiz- Nadua Botina - Jesús Gavilanes | M14: Inspección y Vigilancia | N14: =IF(J14=H!$ET$3,"CASO1",IF('1. CONTROL NORMATIVO'!J14=H!$ET$10,"CASO2",IF('1. CONTROL NORMATIVO'!J14=H!$ET$23,"CASO3",IF('1. CONTROL NORMATIVO'!J14=H!$ET$26,"CASO4",IF(J14=H!$ET$29,"CASO5",IF('1. CONTROL NORMATIVO'!J14=H!$ET$32,"CASO6",IF('1. CONTROL NORMATIVO'!J14=H!$ET$35,"CASO7",IF(J14=H!$ET$38,"CASO8",IF('1. CONTROL NORMATIVO'!J14=H!$ET$41,"CASO9",IF(J14=H!$ET$225,"CASO62",0)))))))))) -> CASO1
A15: 11 | B15: Nariño | C15: La Llanada | D15: Institucion Educativa Juan Pablo I | E15: Institucion Educativa Juan Pablo I | F15: Oficial | G15: Educación Preescolar, Básica Y Media - EPBM | H15: 2023-07-31 | I15: 2023-07-31 | J15: Ejercer control normativo verificando los actos administrativos de reconocimiento oficial o la licencia de funcionamiento del EE, legalización de novedades, autorización de jornadas, sedes, ciclos y programas, y, en general, la legalidad de la oferta educativa. | L15: Isabel Rosero-Yola Maria Bacca-Ruth Perez-Harold Fernando Ruiz- Nadua Botina - Jesús Gavilanes | M15: Inspección y Vigilancia | N15: =IF(J15=H!$ET$3,"CASO1",IF('1. CONTROL NORMATIVO'!J15=H!$ET$10,"CASO2",IF('1. CONTROL NORMATIVO'!J15=H!$ET$23,"CASO3",IF('1. CONTROL NORMATIVO'!J15=H!$ET$26,"CASO4",IF(J15=H!$ET$29,"CASO5",IF('1. CONTROL NORMATIVO'!J15=H!$ET$32,"CASO6",IF('1. CONTROL NORMATIVO'!J15=H!$ET$35,"CASO7",IF(J15=H!$ET$38,"CASO8",IF('1. CONTROL NORMATIVO'!J15=H!$ET$41,"CASO9",IF(J15=H!$ET$225,"CASO62",0)))))))))) -> CASO1
A16: 12 | B16: Nariño | C16: Santa Bárbara | D16: Institucion Educativa Santa Rita. | E16: Institucion Educativa Santa Rita | F16: Oficial | G16: Educación Preescolar, Básica Y Media - EPBM | H16: 2023-08-31 | I16: 2023-08-31 | J16: Ejercer control normativo verificando los actos administrativos de reconocimiento oficial o la licencia de funcionamiento del EE, legalización de novedades, autorización de jornadas, sedes, ciclos y programas, y, en general, la legalidad de la oferta educativa. | L16: Isabel Rosero-Yola Maria Bacca-Ruth Perez-Harold Fernando Ruiz- Nadua Botina - Jesús Gavilanes | M16: Inspección y Vigilancia | N16: =IF(J16=H!$ET$3,"CASO1",IF('1. CONTROL NORMATIVO'!J16=H!$ET$10,"CASO2",IF('1. CONTROL NORMATIVO'!J16=H!$ET$23,"CASO3",IF('1. CONTROL NORMATIVO'!J16=H!$ET$26,"CASO4",IF(J16=H!$ET$29,"CASO5",IF('1. CONTROL NORMATIVO'!J16=H!$ET$32,"CASO6",IF('1. CONTROL NORMATIVO'!J16=H!$ET$35,"CASO7",IF(J16=H!$ET$38,"CASO8",IF('1. CONTROL NORMATIVO'!J16=H!$ET$41,"CASO9",IF(J16=H!$ET$225,"CASO62",0)))))))))) -> CASO1
A17: 13 | B17: Nariño | C17: Santa Bárbara | D17: Institucion Educativa Soledad Pueblito | E17: Institucion Educativa Soledad Pueblito | F17: Oficial | G17: Educación Preescolar, Básica Y Media - EPBM | H17: 2023-08-31 | I17: 2023-08-31 | J17: Ejercer control normativo verificando los actos administrativos de reconocimiento oficial o la licencia de funcionamiento del EE, legalización de novedades, autorización de jornadas, sedes, ciclos y programas, y, en general, la legalidad de la oferta educativa. | L17: Isabel Rosero-Yola Maria Bacca-Ruth Perez-Harold Fernando Ruiz- Nadua Botina - Jesús Gavilanes | M17: Inspección y Vigilancia | N17: =IF(J17=H!$ET$3,"CASO1",IF('1. CONTROL NORMATIVO'!J17=H!$ET$10,"CASO2",IF('1. CONTROL NORMATIVO'!J17=H!$ET$23,"CASO3",IF('1. CONTROL NORMATIVO'!J17=H!$ET$26,"CASO4",IF(J17=H!$ET$29,"CASO5",IF('1. CONTROL NORMATIVO'!J17=H!$ET$32,"CASO6",IF('1. CONTROL NORMATIVO'!J17=H!$ET$35,"CASO7",IF(J17=H!$ET$38,"CASO8",IF('1. CONTROL NORMATIVO'!J17=H!$ET$41,"CASO9",IF(J17=H!$ET$225,"CASO62",0)))))))))) -> CASO1
A18: 14 | B18: Nariño | C18: Barbacoas | D18: Institucion Educativa Buenavista. | E18: Institucion Educativa Buenavista | F18: Oficial | G18: Educación para Jóvenes y Adultos | H18: 2023-09-30 | I18: 2023-09-30 | J18: Ejercer control normativo verificando los actos administrativos de reconocimiento oficial o la licencia de funcionamiento del EE, legalización de novedades, autorización de jornadas, sedes, ciclos y programas, y, en general, la legalidad de la oferta educativa. | L18: Isabel Rosero-Yola Maria Bacca-Ruth Perez-Harold Fernando Ruiz- Nadua Botina - Jesús Gavilanes | M18: Inspección y Vigilancia | N18: =IF(J18=H!$ET$3,"CASO1",IF('1. CONTROL NORMATIVO'!J18=H!$ET$10,"CASO2",IF('1. CONTROL NORMATIVO'!J18=H!$ET$23,"CASO3",IF('1. CONTROL NORMATIVO'!J18=H!$ET$26,"CASO4",IF(J18=H!$ET$29,"CASO5",IF('1. CONTROL NORMATIVO'!J18=H!$ET$32,"CASO6",IF('1. CONTROL NORMATIVO'!J18=H!$ET$35,"CASO7",IF(J18=H!$ET$38,"CASO8",IF('1. CONTROL NORMATIVO'!J18=H!$ET$41,"CASO9",IF(J18=H!$ET$225,"CASO62",0)))))))))) -> CASO1
A19: 15 | B19: Nariño | C19: Cumbal | D19: Centro Educativa La Cadera. | E19: Centro Educativa La Cadera | F19: Oficial | G19: Educación Preescolar, Básica Y Media - EPBM | H19: 2023-10-31 | I19: 2023-10-31 | J19: Ejercer control normativo verificando los actos administrativos de reconocimiento oficial o la licencia de funcionamiento del EE, legalización de novedades, autorización de jornadas, sedes, ciclos y programas, y, en general, la legalidad de la oferta educativa. | L19: Isabel Rosero-Yola Maria Bacca-Ruth Perez-Harold Fernando Ruiz- Nadua Botina - Jesús Gavilanes | M19: Inspección y Vigilancia | N19: =IF(J19=H!$ET$3,"CASO1",IF('1. CONTROL NORMATIVO'!J19=H!$ET$10,"CASO2",IF('1. CONTROL NORMATIVO'!J19=H!$ET$23,"CASO3",IF('1. CONTROL NORMATIVO'!J19=H!$ET$26,"CASO4",IF(J19=H!$ET$29,"CASO5",IF('1. CONTROL NORMATIVO'!J19=H!$ET$32,"CASO6",IF('1. CONTROL NORMATIVO'!J19=H!$ET$35,"CASO7",IF(J19=H!$ET$38,"CASO8",IF('1. CONTROL NORMATIVO'!J19=H!$ET$41,"CASO9",IF(J19=H!$ET$225,"CASO62",0)))))))))) -> CASO1
A20: 16 | B20: Nariño | C20: Imués | D20: Institucion Educativa Jesus del Gran Poder | E20: Institucion Educativa Jesus del Gran Poder | F20: Oficial | G20: Educación Preescolar, Básica Y Media - EPBM | H20: 2023-01-17 | I20: 2023-01-17 | J20: Verificar las condiciones de infraestructura, servicios públicos, mobiliario, laboratorios y demás bienes y equipos apropiados para el desarrollo de los programas académicos ofertados, incluyendo los apoyos comunicativos, tecnológicos o educativos específicos destinados para la atención de estudiantes con discapacidad. | L20: Isabel Rosero-Yola Maria Bacca-Ruth Perez-Harold Fernando Ruiz- Nadua Botina - Jesús Gavilanes | M20: Inspección y Vigilancia | N20: =IF(J20=H!$ET$3,"CASO1",IF('1. CONTROL NORMATIVO'!J20=H!$ET$10,"CASO2",IF('1. CONTROL NORMATIVO'!J20=H!$ET$23,"CASO3",IF('1. CONTROL NORMATIVO'!J20=H!$ET$26,"CASO4",IF(J20=H!$ET$29,"CASO5",IF('1. CONTROL NORMATIVO'!J20=H!$ET$32,"CASO6",IF('1. CONTROL NORMATIVO'!J20=H!$ET$35,"CASO7",IF(J20=H!$ET$38,"CASO8",IF('1. CONTROL NORMATIVO'!J20=H!$ET$41,"CASO9",IF(J20=H!$ET$225,"CASO62",0)))))))))) -> CASO2 | O20: 2023-01-17 | P20: 2023-01-17 | Q20: 5. El EE dispone de infraestructura apropiada para el desarrollo de los programas académicos ofertados. | S20: Adecuar una biblioteca infantil, adquirir material didáctico | T20: Hacer seguimiento a las recomendaciones hechas.
A21: 17 | B21: Nariño | C21: San Pablo | D21: Institucion Educativa Sagrado Corazon de Jesus. YOLA | E21: Institucion Educativa Sagrado Corazon de Jesus | F21: Oficial | G21: Educación Preescolar, Básica Y Media - EPBM | H21: 2023-02-08 | I21: 2023-02-08 | J21: Verificar las condiciones de infraestructura, servicios públicos, mobiliario, laboratorios y demás bienes y equipos apropiados para el desarrollo de los programas académicos ofertados, incluyendo los apoyos comunicativos, tecnológicos o educativos específicos destinados para la atención de estudiantes con discapacidad. | L21: Isabel Rosero-Yola Maria Bacca-Ruth Perez-Harold Fernando Ruiz- Nadua Botina - Jesús Gavilanes | M21: Inspección y Vigilancia | N21: =IF(J21=H!$ET$3,"CASO1",IF('1. CONTROL NORMATIVO'!J21=H!$ET$10,"CASO2",IF('1. CONTROL NORMATIVO'!J21=H!$ET$23,"CASO3",IF('1. CONTROL NORMATIVO'!J21=H!$ET$26,"CASO4",IF(J21=H!$ET$29,"CASO5",IF('1. CONTROL NORMATIVO'!J21=H!$ET$32,"CASO6",IF('1. CONTROL NORMATIVO'!J21=H!$ET$35,"CASO7",IF(J21=H!$ET$38,"CASO8",IF('1. CONTROL NORMATIVO'!J21=H!$ET$41,"CASO9",IF(J21=H!$ET$225,"CASO62",0)))))))))) -> CASO2 | Q21: Otra | R21: La actividad se reprograma para el 15 de agosto de 2023
A22: 18 | B22: Nariño | C22: La Cruz | D22: Institucion Educativa de Bachillerato | E22: Sede 2 Esteban Alvear | F22: Oficial | G22: Educación Preescolar, Básica Y Media - EPBM | H22: 2023-02-07 | I22: 2023-02-07 | J22: Verificar las condiciones de infraestructura, servicios públicos, mobiliario, laboratorios y demás bienes y equipos apropiados para el desarrollo de los programas académicos ofertados, incluyendo los apoyos comunicativos, tecnológicos o educativos específicos destinados para la atención de estudiantes con discapacidad. | L22: Isabel Rosero-Yola Maria Bacca-Ruth Perez-Harold Fernando Ruiz- Nadua Botina - Jesús Gavilanes | M22: Inspección y Vigilancia | N22: =IF(J22=H!$ET$3,"CASO1",IF('1. CONTROL NORMATIVO'!J22=H!$ET$10,"CASO2",IF('1. CONTROL NORMATIVO'!J22=H!$ET$23,"CASO3",IF('1. CONTROL NORMATIVO'!J22=H!$ET$26,"CASO4",IF(J22=H!$ET$29,"CASO5",IF('1. CONTROL NORMATIVO'!J22=H!$ET$32,"CASO6",IF('1. CONTROL NORMATIVO'!J22=H!$ET$35,"CASO7",IF(J22=H!$ET$38,"CASO8",IF('1. CONTROL NORMATIVO'!J22=H!$ET$41,"CASO9",IF(J22=H!$ET$225,"CASO62",0)))))))))) -> CASO2 | Q22: Otra | R22: La actividad se reprograma para el 1 de agosto de 2023
A23: 19 | B23: Nariño | C23: Policarpa | D23: Institución Educativa Santacruz. | E23: Sede 6 Santa Rosa | F23: Oficial | G23: Educación Preescolar, Básica Y Media - EPBM | H23: 2023-03-07 | I23: 2023-03-07 | J23: Verificar las condiciones de infraestructura, servicios públicos, mobiliario, laboratorios y demás bienes y equipos apropiados para el desarrollo de los programas académicos ofertados, incluyendo los apoyos comunicativos, tecnológicos o educativos específicos destinados para la atención de estudiantes con discapacidad. | L23: Isabel Rosero-Yola Maria Bacca-Ruth Perez-Harold Fernando Ruiz- Nadua Botina - Jesús Gavilanes | M23: Inspección y Vigilancia | N23: =IF(J23=H!$ET$3,"CASO1",IF('1. CONTROL NORMATIVO'!J23=H!$ET$10,"CASO2",IF('1. CONTROL NORMATIVO'!J23=H!$ET$23,"CASO3",IF('1. CONTROL NORMATIVO'!J23=H!$ET$26,"CASO4",IF(J23=H!$ET$29,"CASO5",IF('1. CONTROL NORMATIVO'!J23=H!$ET$32,"CASO6",IF('1. CONTROL NORMATIVO'!J23=H!$ET$35,"CASO7",IF(J23=H!$ET$38,"CASO8",IF('1. CONTROL NORMATIVO'!J23=H!$ET$41,"CASO9",IF(J23=H!$ET$225,"CASO62",0)))))))))) -> CASO2 | O23: 2023-03-06 | Q23: Otra | R23: Grandes dificultades con relación al transporte escolar, condiciones de la vía, condiciones económicas y contexto social | S23: Grandes dificultades con relación al transporte escolar, no solamente por las distancias , sino por los altos costos, con medios de transporte como camionetas o mototaxis, que no cumplen las normas reglamentarias para el transporte escolar, conductores que no cuentan con la experiencia e idoneidad requerida para conducir, adicional los vehículos, van con sobrecupo, puesto que el número de estudiantes supera su capacidad | T23: Seguimiento a las acciones planteadas por Planeación y Subsecretaría Administrativa y Financiera
A24: 20 | B24: Nariño | C24: Policarpa | D24: Institución Educativa El Eljido | E24: Centro Educativo Algorones | F24: Oficial | G24: Educación Preescolar, Básica Y Media - EPBM | H24: 2023-03-08 | I24: 2023-03-08 | J24: Verificar las condiciones de infraestructura, servicios públicos, mobiliario, laboratorios y demás bienes y equipos apropiados para el desarrollo de los programas académicos ofertados, incluyendo los apoyos comunicativos, tecnológicos o educativos específicos destinados para la atención de estudiantes con discapacidad. | L24: Isabel Rosero-Yola Maria Bacca-Ruth Perez-Harold Fernando Ruiz- Nadua Botina - Jesús Gavilanes | M24: Inspección y Vigilancia | N24: =IF(J24=H!$ET$3,"CASO1",IF('1. CONTROL NORMATIVO'!J24=H!$ET$10,"CASO2",IF('1. CONTROL NORMATIVO'!J24=H!$ET$23,"CASO3",IF('1. CONTROL NORMATIVO'!J24=H!$ET$26,"CASO4",IF(J24=H!$ET$29,"CASO5",IF('1. CONTROL NORMATIVO'!J24=H!$ET$32,"CASO6",IF('1. CONTROL NORMATIVO'!J24=H!$ET$35,"CASO7",IF(J24=H!$ET$38,"CASO8",IF('1. CONTROL NORMATIVO'!J24=H!$ET$41,"CASO9",IF(J24=H!$ET$225,"CASO62",0)))))))))) -> CASO2 | O24: 2023-03-08 | P24: 2023-03-08 | Q24: Otra | R24: Grandes dificultades con relación al transporte escolar, condiciones de la vía, condiciones económicas y contexto social | S24: Grandes dificultades con relación al transporte escolar, no solamente por las distancias , sino por los altos costos, con medios de transporte como camionetas o mototaxis, que no cumplen las normas reglamentarias para el transporte escolar, conductores que no cuentan con la experiencia e idoneidad requerida para conducir, adicional los vehículos, van con sobrecupo, puesto que el número de estudiantes supera su capacidad | T24: Seguimiento a las acciones planteadas por Planeación y Subsecretaría Administrativa y Financiera
A25: 21 | B25: Nariño | C25: Policarpa | D25: Institución Educativa El Eljido | E25: Centro Educativo Santa Fe | F25: Oficial | G25: Educación Preescolar, Básica Y Media - EPBM | H25: 2023-03-09 | I25: 2023-03-09 | J25: Verificar las condiciones de infraestructura, servicios públicos, mobiliario, laboratorios y demás bienes y equipos apropiados para el desarrollo de los programas académicos ofertados, incluyendo los apoyos comunicativos, tecnológicos o educativos específicos destinados para la atención de estudiantes con discapacidad. | L25: Isabel Rosero-Yola Maria Bacca-Ruth Perez-Harold Fernando Ruiz- Nadua Botina - Jesús Gavilanes | M25: Inspección y Vigilancia | N25: =IF(J25=H!$ET$3,"CASO1",IF('1. CONTROL NORMATIVO'!J25=H!$ET$10,"CASO2",IF('1. CONTROL NORMATIVO'!J25=H!$ET$23,"CASO3",IF('1. CONTROL NORMATIVO'!J25=H!$ET$26,"CASO4",IF(J25=H!$ET$29,"CASO5",IF('1. CONTROL NORMATIVO'!J25=H!$ET$32,"CASO6",IF('1. CONTROL NORMATIVO'!J25=H!$ET$35,"CASO7",IF(J25=H!$ET$38,"CASO8",IF('1. CONTROL NORMATIVO'!J25=H!$ET$41,"CASO9",IF(J25=H!$ET$225,"CASO62",0)))))))))) -> CASO2 | Q25: Otra | R25: La actividad se reprograma para el 28 de agosto de 2023.
A26: 22 | B26: Nariño | C26: La Union | D26: Politecnico Gran Colombia | E26: Politecnico Gran Colombia | F26: No_oficial | G26: Establecimientos de Educación para el Trabajo y el Desarrollo Humano - EDTH | H26: 2023-05-15 | I26: 2023-05-15 | J26: Instituciones de ETDH priorizadas por no haber sido objeto de visitas de control durante los dos últimos años o que obtuvieron su licencia de funcionamiento en el último año. | L26: Héctor Bravo - Camilo Norato - Fabian Zambrano - Juan Carlos Gómez - Elizabeth Dorado | M26: Inspección y Vigilancia | N26: =IF(J26=H!$ET$3,"CASO1",IF('1. CONTROL NORMATIVO'!J26=H!$ET$10,"CASO2",IF('1. CONTROL NORMATIVO'!J26=H!$ET$23,"CASO3",IF('1. CONTROL NORMATIVO'!J26=H!$ET$26,"CASO4",IF(J26=H!$ET$29,"CASO5",IF('1. CONTROL NORMATIVO'!J26=H!$ET$32,"CASO6",IF('1. CONTROL NORMATIVO'!J26=H!$ET$35,"CASO7",IF(J26=H!$ET$38,"CASO8",IF('1. CONTROL NORMATIVO'!J26=H!$ET$41,"CASO9",IF(J26=H!$ET$225,"CASO62",0)))))))))) -> CASO4 | Q26: Otra | R26: La actividad se reprograma para el 1 de agosto de 2023. Por motivos de contratación de operadores logísticos.
A27: 23 | B27: Nariño | C27: La Union | D27: INESUR | E27: INESUR | F27: No_oficial | G27: Establecimientos de Educación para el Trabajo y el Desarrollo Humano - EDTH | H27: 2023-05-10 | I27: 2023-05-10 | J27: Instituciones de ETDH priorizadas por no haber sido objeto de visitas de control durante los dos últimos años o que obtuvieron su licencia de funcionamiento en el último año. | L27: Héctor Bravo - Camilo Norato - Fabian Zambrano - Juan Carlos Gómez - Elizabeth Dorado | M27: Inspección y Vigilancia | N27: =IF(J27=H!$ET$3,"CASO1",IF('1. CONTROL NORMATIVO'!J27=H!$ET$10,"CASO2",IF('1. CONTROL NORMATIVO'!J27=H!$ET$23,"CASO3",IF('1. CONTROL NORMATIVO'!J27=H!$ET$26,"CASO4",IF(J27=H!$ET$29,"CASO5",IF('1. CONTROL NORMATIVO'!J27=H!$ET$32,"CASO6",IF('1. CONTROL NORMATIVO'!J27=H!$ET$35,"CASO7",IF(J27=H!$ET$38,"CASO8",IF('1. CONTROL NORMATIVO'!J27=H!$ET$41,"CASO9",IF(J27=H!$ET$225,"CASO62",0)))))))))) -> CASO4 | Q27: Otra | R27: La actividad se reprograma para el 15 de agosto de 2023. Por motivos de contratación de operadores logísticos
A28: 24 | B28: Nariño | C28: Cumbal | D28: Centro de Capacitacion en Informatica Integral-CCI | E28: Centro de Capacitacion en Informatica Integral-CCI | F28: No_oficial | G28: Establecimientos de Educación para el Trabajo y el Desarrollo Humano - EDTH | H28: 2023-06-30 | I28: 2023-06-30 | J28: Instituciones de ETDH priorizadas por no haber sido objeto de visitas de control durante los dos últimos años o que obtuvieron su licencia de funcionamiento en el último año. | L28: Héctor Bravo - Camilo Norato - Fabian Zambrano - Juan Carlos Gómez - Elizabeth Dorado | M28: Inspección y Vigilancia | N28: =IF(J28=H!$ET$3,"CASO1",IF('1. CONTROL NORMATIVO'!J28=H!$ET$10,"CASO2",IF('1. CONTROL NORMATIVO'!J28=H!$ET$23,"CASO3",IF('1. CONTROL NORMATIVO'!J28=H!$ET$26,"CASO4",IF(J28=H!$ET$29,"CASO5",IF('1. CONTROL NORMATIVO'!J28=H!$ET$32,"CASO6",IF('1. CONTROL NORMATIVO'!J28=H!$ET$35,"CASO7",IF(J28=H!$ET$38,"CASO8",IF('1. CONTROL NORMATIVO'!J28=H!$ET$41,"CASO9",IF(J28=H!$ET$225,"CASO62",0)))))))))) -> CASO4 | Q28: Otra | R28: La actividad se reprograma para el 10 de julio de 2023. Por motivos de contratación de operadores logísticos
A29: 25 | B29: Nariño | C29: Túquerres | D29: INCATD | E29: INCATD | F29: No_oficial | G29: Establecimientos de Educación para el Trabajo y el Desarrollo Humano - EDTH | H29: 2023-07-31 | I29: 2023-07-31 | J29: Instituciones de ETDH priorizadas por no haber sido objeto de visitas de control durante los dos últimos años o que obtuvieron su licencia de funcionamiento en el último año. | L29: Héctor Bravo - Camilo Norato - Fabian Zambrano - Juan Carlos Gómez - Elizabeth Dorado | M29: Inspección y Vigilancia | N29: =IF(J29=H!$ET$3,"CASO1",IF('1. CONTROL NORMATIVO'!J29=H!$ET$10,"CASO2",IF('1. CONTROL NORMATIVO'!J29=H!$ET$23,"CASO3",IF('1. CONTROL NORMATIVO'!J29=H!$ET$26,"CASO4",IF(J29=H!$ET$29,"CASO5",IF('1. CONTROL NORMATIVO'!J29=H!$ET$32,"CASO6",IF('1. CONTROL NORMATIVO'!J29=H!$ET$35,"CASO7",IF(J29=H!$ET$38,"CASO8",IF('1. CONTROL NORMATIVO'!J29=H!$ET$41,"CASO9",IF(J29=H!$ET$225,"CASO62",0)))))))))) -> CASO4
A30: 26 | B30: Nariño | C30: Túquerres | D30: CEA Conductores la Sabana | E30: CEA Conductores la Sabana | F30: No_oficial | G30: Establecimientos de Educación para el Trabajo y el Desarrollo Humano - EDTH | H30: 2023-07-31 | I30: 2023-07-31 | J30: Instituciones de ETDH priorizadas por no haber sido objeto de visitas de control durante los dos últimos años o que obtuvieron su licencia de funcionamiento en el último año. | L30: Héctor Bravo - Camilo Norato - Fabian Zambrano - Juan Carlos Gómez - Elizabeth Dorado | M30: Inspección y Vigilancia | N30: =IF(J30=H!$ET$3,"CASO1",IF('1. CONTROL NORMATIVO'!J30=H!$ET$10,"CASO2",IF('1. CONTROL NORMATIVO'!J30=H!$ET$23,"CASO3",IF('1. CONTROL NORMATIVO'!J30=H!$ET$26,"CASO4",IF(J30=H!$ET$29,"CASO5",IF('1. CONTROL NORMATIVO'!J30=H!$ET$32,"CASO6",IF('1. CONTROL NORMATIVO'!J30=H!$ET$35,"CASO7",IF(J30=H!$ET$38,"CASO8",IF('1. CONTROL NORMATIVO'!J30=H!$ET$41,"CASO9",IF(J30=H!$ET$225,"CASO62",0)))))))))) -> CASO4
A31: 27 | B31: Nariño | C31: Buesaco | D31: Escuela de Conducción Practicar | E31: Escuela de Conducción Practicar | F31: No_oficial | G31: Establecimientos de Educación para el Trabajo y el Desarrollo Humano - EDTH | H31: 2023-08-31 | I31: 2023-08-31 | J31: Instituciones de ETDH priorizadas por no haber sido objeto de visitas de control durante los dos últimos años o que obtuvieron su licencia de funcionamiento en el último año. | L31: Héctor Bravo - Camilo Norato - Fabian Zambrano - Juan Carlos Gómez - Elizabeth Dorado | M31: Inspección y Vigilancia | N31: =IF(J31=H!$ET$3,"CASO1",IF('1. CONTROL NORMATIVO'!J31=H!$ET$10,"CASO2",IF('1. CONTROL NORMATIVO'!J31=H!$ET$23,"CASO3",IF('1. CONTROL NORMATIVO'!J31=H!$ET$26,"CASO4",IF(J31=H!$ET$29,"CASO5",IF('1. CONTROL NORMATIVO'!J31=H!$ET$32,"CASO6",IF('1. CONTROL NORMATIVO'!J31=H!$ET$35,"CASO7",IF(J31=H!$ET$38,"CASO8",IF('1. CONTROL NORMATIVO'!J31=H!$ET$41,"CASO9",IF(J31=H!$ET$225,"CASO62",0)))))))))) -> CASO4
A32: 28 | B32: Nariño | C32: Buesaco | D32: INTEC&SYSTEM | E32: INTEC&SYSTEM | F32: No_oficial | G32: Establecimientos de Educación para el Trabajo y el Desarrollo Humano - EDTH | H32: 2023-08-31 | I32: 2023-08-31 | J32: Instituciones de ETDH priorizadas por no haber sido objeto de visitas de control durante los dos últimos años o que obtuvieron su licencia de funcionamiento en el último año. | L32: Héctor Bravo - Camilo Norato - Fabian Zambrano - Juan Carlos Gómez - Elizabeth Dorado | M32: Inspección y Vigilancia | N32: =IF(J32=H!$ET$3,"CASO1",IF('1. CONTROL NORMATIVO'!J32=H!$ET$10,"CASO2",IF('1. CONTROL NORMATIVO'!J32=H!$ET$23,"CASO3",IF('1. CONTROL NORMATIVO'!J32=H!$ET$26,"CASO4",IF(J32=H!$ET$29,"CASO5",IF('1. CONTROL NORMATIVO'!J32=H!$ET$32,"CASO6",IF('1. CONTROL NORMATIVO'!J32=H!$ET$35,"CASO7",IF(J32=H!$ET$38,"CASO8",IF('1. CONTROL NORMATIVO'!J32=H!$ET$41,"CASO9",IF(J32=H!$ET$225,"CASO62",0)))))))))) -> CASO4
A33: 29 | B33: Nariño | C33: La Union | D33: Politecnico Gran Colombia | E33: Politecnico Gran Colombia | F33: No_oficial | G33: Educación para Jóvenes y Adultos | H33: 2023-05-31 | I33: 2023-05-31 | J33: Establecimientos de educación para jóvenes y adultos que -presuntamente- vienen operando sin el lleno de los requisitos legales exigidos para su funcionamiento o cuya oferta no se ajusta a los lineamientos legales vigentes. | L33: Héctor Bravo - Camilo Norato - Fabian Zambrano - Juan Carlos Gómez - Elizabeth Dorado | M33: Inspección y Vigilancia | N33: =IF(J33=H!$ET$3,"CASO1",IF('1. CONTROL NORMATIVO'!J33=H!$ET$10,"CASO2",IF('1. CONTROL NORMATIVO'!J33=H!$ET$23,"CASO3",IF('1. CONTROL NORMATIVO'!J33=H!$ET$26,"CASO4",IF(J33=H!$ET$29,"CASO5",IF('1. CONTROL NORMATIVO'!J33=H!$ET$32,"CASO6",IF('1. CONTROL NORMATIVO'!J33=H!$ET$35,"CASO7",IF(J33=H!$ET$38,"CASO8",IF('1. CONTROL NORMATIVO'!J33=H!$ET$41,"CASO9",IF(J33=H!$ET$225,"CASO62",0)))))))))) -> CASO5 | Q33: Otra | R33: La actividad se reprograma para el 5 de septiembre de 2023. Por motivos de contratación de operadores logísticos.
A34: 30 | B34: Nariño | C34: La Union | D34: Aurelio Arturo | E34: INESUR | F34: No_oficial | G34: Educación para Jóvenes y Adultos | H34: 2023-05-31 | I34: 2023-05-31 | J34: Establecimientos de educación para jóvenes y adultos que -presuntamente- vienen operando sin el lleno de los requisitos legales exigidos para su funcionamiento o cuya oferta no se ajusta a los lineamientos legales vigentes. | L34: Héctor Bravo - Camilo Norato - Fabian Zambrano - Juan Carlos Gómez - Elizabeth Dorado | M34: Inspección y Vigilancia | N34: =IF(J34=H!$ET$3,"CASO1",IF('1. CONTROL NORMATIVO'!J34=H!$ET$10,"CASO2",IF('1. CONTROL NORMATIVO'!J34=H!$ET$23,"CASO3",IF('1. CONTROL NORMATIVO'!J34=H!$ET$26,"CASO4",IF(J34=H!$ET$29,"CASO5",IF('1. CONTROL NORMATIVO'!J34=H!$ET$32,"CASO6",IF('1. CONTROL NORMATIVO'!J34=H!$ET$35,"CASO7",IF(J34=H!$ET$38,"CASO8",IF('1. CONTROL NORMATIVO'!J34=H!$ET$41,"CASO9",IF(J34=H!$ET$225,"CASO62",0)))))))))) -> CASO5 | Q34: Otra | R34: La actividad se reprograma para el 10 de septiembre de 2023. Por motivos de contratación de operadores logísticos.
A35: 31 | B35: Nariño | C35: Túquerres | D35: INCATD | E35: INCATD | F35: No_oficial | G35: Educación para Jóvenes y Adultos | H35: 2023-07-31 | I35: 2023-07-31 | J35: Establecimientos de educación para jóvenes y adultos que -presuntamente- vienen operando sin el lleno de los requisitos legales exigidos para su funcionamiento o cuya oferta no se ajusta a los lineamientos legales vigentes. | L35: Héctor Bravo - Camilo Norato - Fabian Zambrano - Juan Carlos Gómez - Elizabeth Dorado | M35: Inspección y Vigilancia | N35: =IF(J35=H!$ET$3,"CASO1",IF('1. CONTROL NORMATIVO'!J35=H!$ET$10,"CASO2",IF('1. CONTROL NORMATIVO'!J35=H!$ET$23,"CASO3",IF('1. CONTROL NORMATIVO'!J35=H!$ET$26,"CASO4",IF(J35=H!$ET$29,"CASO5",IF('1. CONTROL NORMATIVO'!J35=H!$ET$32,"CASO6",IF('1. CONTROL NORMATIVO'!J35=H!$ET$35,"CASO7",IF(J35=H!$ET$38,"CASO8",IF('1. CONTROL NORMATIVO'!J35=H!$ET$41,"CASO9",IF(J35=H!$ET$225,"CASO62",0)))))))))) -> CASO5
A36: 32 | B36: Nariño | C36: Túquerres | D36: CECONPAZ | E36: CECONPAZ | F36: No_oficial | G36: Educación para Jóvenes y Adultos | H36: 2023-07-31 | I36: 2023-07-31 | J36: Establecimientos de educación para jóvenes y adultos que -presuntamente- vienen operando sin el lleno de los requisitos legales exigidos para su funcionamiento o cuya oferta no se ajusta a los lineamientos legales vigentes. | L36: Héctor Bravo - Camilo Norato - Fabian Zambrano - Juan Carlos Gómez - Elizabeth Dorado | M36: Inspección y Vigilancia | N36: =IF(J36=H!$ET$3,"CASO1",IF('1. CONTROL NORMATIVO'!J36=H!$ET$10,"CASO2",IF('1. CONTROL NORMATIVO'!J36=H!$ET$23,"CASO3",IF('1. CONTROL NORMATIVO'!J36=H!$ET$26,"CASO4",IF(J36=H!$ET$29,"CASO5",IF('1. CONTROL NORMATIVO'!J36=H!$ET$32,"CASO6",IF('1. CONTROL NORMATIVO'!J36=H!$ET$35,"CASO7",IF(J36=H!$ET$38,"CASO8",IF('1. CONTROL NORMATIVO'!J36=H!$ET$41,"CASO9",IF(J36=H!$ET$225,"CASO62",0)))))))))) -> CASO5
A37: 33 | B37: Nariño | C37: Túquerres | D37: Centro de Formación Empresarial Emprender | E37: Centro de Formación Empresarial Emprender | F37: No_oficial | G37: Educación para Jóvenes y Adultos | H37: 2023-07-31 | I37: 2023-07-31 | J37: Establecimientos de educación para jóvenes y adultos que -presuntamente- vienen operando sin el lleno de los requisitos legales exigidos para su funcionamiento o cuya oferta no se ajusta a los lineamientos legales vigentes. | L37: Héctor Bravo - Camilo Norato - Fabian Zambrano - Juan Carlos Gómez - Elizabeth Dorado | M37: Inspección y Vigilancia | N37: =IF(J37=H!$ET$3,"CASO1",IF('1. CONTROL NORMATIVO'!J37=H!$ET$10,"CASO2",IF('1. CONTROL NORMATIVO'!J37=H!$ET$23,"CASO3",IF('1. CONTROL NORMATIVO'!J37=H!$ET$26,"CASO4",IF(J37=H!$ET$29,"CASO5",IF('1. CONTROL NORMATIVO'!J37=H!$ET$32,"CASO6",IF('1. CONTROL NORMATIVO'!J37=H!$ET$35,"CASO7",IF(J37=H!$ET$38,"CASO8",IF('1. CONTROL NORMATIVO'!J37=H!$ET$41,"CASO9",IF(J37=H!$ET$225,"CASO62",0)))))))))) -> CASO5
A38: 34 | B38: Nariño | C38: Buesaco | D38: LUISEG | E38: LUISEG | F38: No_oficial | G38: Educación para Jóvenes y Adultos | H38: 2023-08-31 | I38: 2023-08-31 | J38: Establecimientos de educación para jóvenes y adultos que -presuntamente- vienen operando sin el lleno de los requisitos legales exigidos para su funcionamiento o cuya oferta no se ajusta a los lineamientos legales vigentes. | L38: Héctor Bravo - Camilo Norato - Fabian Zambrano - Juan Carlos Gómez - Elizabeth Dorado | M38: Inspección y Vigilancia | N38: =IF(J38=H!$ET$3,"CASO1",IF('1. CONTROL NORMATIVO'!J38=H!$ET$10,"CASO2",IF('1. CONTROL NORMATIVO'!J38=H!$ET$23,"CASO3",IF('1. CONTROL NORMATIVO'!J38=H!$ET$26,"CASO4",IF(J38=H!$ET$29,"CASO5",IF('1. CONTROL NORMATIVO'!J38=H!$ET$32,"CASO6",IF('1. CONTROL NORMATIVO'!J38=H!$ET$35,"CASO7",IF(J38=H!$ET$38,"CASO8",IF('1. CONTROL NORMATIVO'!J38=H!$ET$41,"CASO9",IF(J38=H!$ET$225,"CASO62",0)))))))))) -> CASO5
A39: 35 | B39: Nariño | C39: Buesaco | D39: INTEC&SYSTEM | E39: INTEC&SYSTEM | F39: No_oficial | G39: Educación para Jóvenes y Adultos | H39: 2023-08-31 | I39: 2023-08-31 | J39: Establecimientos de educación para jóvenes y adultos que -presuntamente- vienen operando sin el lleno de los requisitos legales exigidos para su funcionamiento o cuya oferta no se ajusta a los lineamientos legales vigentes. | L39: Héctor Bravo - Camilo Norato - Fabian Zambrano - Juan Carlos Gómez - Elizabeth Dorado | M39: Inspección y Vigilancia | N39: =IF(J39=H!$ET$3,"CASO1",IF('1. CONTROL NORMATIVO'!J39=H!$ET$10,"CASO2",IF('1. CONTROL NORMATIVO'!J39=H!$ET$23,"CASO3",IF('1. CONTROL NORMATIVO'!J39=H!$ET$26,"CASO4",IF(J39=H!$ET$29,"CASO5",IF('1. CONTROL NORMATIVO'!J39=H!$ET$32,"CASO6",IF('1. CONTROL NORMATIVO'!J39=H!$ET$35,"CASO7",IF(J39=H!$ET$38,"CASO8",IF('1. CONTROL NORMATIVO'!J39=H!$ET$41,"CASO9",IF(J39=H!$ET$225,"CASO62",0)))))))))) -> CASO5
A40: 36 | B40: Nariño | C40: El Peñol | D40: IE Jorge Eliecer Gaitan | E40: IE Jorge Eliecer Gaitan | F40: Oficial | G40: Educación Preescolar, Básica Y Media - EPBM | H40: 2023-04-25 | I40: 2023-04-25 | J40: Verificar las condiciones de infraestructura, servicios públicos, mobiliario, laboratorios y demás bienes y equipos apropiados para el desarrollo de los programas académicos ofertados, incluyendo los apoyos comunicativos, tecnológicos o educativos específicos destinados para la atención de estudiantes con discapacidad. | L40: Yola Maria Bacca | M40: Inspección y Vigilancia | N40: =IF(J40=H!$ET$3,"CASO1",IF('1. CONTROL NORMATIVO'!J40=H!$ET$10,"CASO2",IF('1. CONTROL NORMATIVO'!J40=H!$ET$23,"CASO3",IF('1. CONTROL NORMATIVO'!J40=H!$ET$26,"CASO4",IF(J40=H!$ET$29,"CASO5",IF('1. CONTROL NORMATIVO'!J40=H!$ET$32,"CASO6",IF('1. CONTROL NORMATIVO'!J40=H!$ET$35,"CASO7",IF(J40=H!$ET$38,"CASO8",IF('1. CONTROL NORMATIVO'!J40=H!$ET$41,"CASO9",IF(J40=H!$ET$225,"CASO62",0)))))))))) -> CASO2 | O40: 2023-04-25 | P40: 2023-04-25 | Q40: 1. El EE no dispone de infraestructura apropiada para el desarrollo de los programas académicos ofertados | S40: En la construcción actual y se observa grietas considerables y está muy peligroso, se hizo una sugerencia enviar un oficio a la oficina de Gestión del riesgo y desastres para dar a conocer la situación que se presenta cada vez que llueve. Las inundaciones suben medio metro en algunas partes del establecimiento. | T40: Se revisaran las mejoras de infraestructura en el segundo semestre.
A41: 37 | B41: Nariño | C41: Cumbal | D41: IE Cumbe | E41: IE Cumbe | F41: Oficial | G41: Educación Preescolar, Básica Y Media - EPBM | H41: 2023-04-27 | I41: 2023-04-27 | J41: Verificar las condiciones de infraestructura, servicios públicos, mobiliario, laboratorios y demás bienes y equipos apropiados para el desarrollo de los programas académicos ofertados, incluyendo los apoyos comunicativos, tecnológicos o educativos específicos destinados para la atención de estudiantes con discapacidad. | L41: Yola Maria Bacca | M41: Inspección y Vigilancia | N41: =IF(J41=H!$ET$3,"CASO1",IF('1. CONTROL NORMATIVO'!J41=H!$ET$10,"CASO2",IF('1. CONTROL NORMATIVO'!J41=H!$ET$23,"CASO3",IF('1. CONTROL NORMATIVO'!J41=H!$ET$26,"CASO4",IF(J41=H!$ET$29,"CASO5",IF('1. CONTROL NORMATIVO'!J41=H!$ET$32,"CASO6",IF('1. CONTROL NORMATIVO'!J41=H!$ET$35,"CASO7",IF(J41=H!$ET$38,"CASO8",IF('1. CONTROL NORMATIVO'!J41=H!$ET$41,"CASO9",IF(J41=H!$ET$225,"CASO62",0)))))))))) -> CASO2 | O41: 2023-04-27 | P41: 2023-04-27 | Q41: 5. El EE dispone de infraestructura apropiada para el desarrollo de los programas académicos ofertados. | S41: Realizar el Proyecto Educativo Institucional completo: los planes de áreael pacto de convivencia, socialización con los padres de familia, sistema de evaluación y actualizarlo a 2023 y radicarlo en la SED | T41: Seguimiento al PEI en el segundo semestre.
A42: 38 | B42: Nariño | C42: Roberto Payán | D42: El Liceo Payan | E42: El Liceo Payan | F42: Oficial | G42: Educación Preescolar, Básica Y Media - EPBM | H42: 2023-04-06 | I42: 2023-04-06 | J42: Verificar las condiciones de infraestructura, servicios públicos, mobiliario, laboratorios y demás bienes y equipos apropiados para el desarrollo de los programas académicos ofertados, incluyendo los apoyos comunicativos, tecnológicos o educativos específicos destinados para la atención de estudiantes con discapacidad. | L42: Yola Maria Bacca | M42: Inspección y Vigilancia | N42: =IF(J42=H!$ET$3,"CASO1",IF('1. CONTROL NORMATIVO'!J42=H!$ET$10,"CASO2",IF('1. CONTROL NORMATIVO'!J42=H!$ET$23,"CASO3",IF('1. CONTROL NORMATIVO'!J42=H!$ET$26,"CASO4",IF(J42=H!$ET$29,"CASO5",IF('1. CONTROL NORMATIVO'!J42=H!$ET$32,"CASO6",IF('1. CONTROL NORMATIVO'!J42=H!$ET$35,"CASO7",IF(J42=H!$ET$38,"CASO8",IF('1. CONTROL NORMATIVO'!J42=H!$ET$41,"CASO9",IF(J42=H!$ET$225,"CASO62",0)))))))))) -> CASO2 | O42: 2023-04-06 | P42: 2023-04-06 | Q42: 5. El EE dispone de infraestructura apropiada para el desarrollo de los programas académicos ofertados. | S42: Le hace falta incluir lo de Educación Inclusiva en el PEI, tienen un niño autista está en octavo, en la Básica Primaria hay 35 niños con deficiencia Cognitiva, auditiva y Física (déficit para caminar), no hay sic orientador, ni psicólogo | T42: Seguimiento al PEI en el segundo semestre.
A43: 39 | B43: Nariño | C43: San Pablo | D43: IE Antonio Nariño | E43: IE Antonio Nariño | F43: Oficial | G43: Educación Preescolar, Básica Y Media - EPBM | H43: 2023-06-28 | I43: 2023-06-28 | J43: Verificar las condiciones de infraestructura, servicios públicos, mobiliario, laboratorios y demás bienes y equipos apropiados para el desarrollo de los programas académicos ofertados, incluyendo los apoyos comunicativos, tecnológicos o educativos específicos destinados para la atención de estudiantes con discapacidad. | L43: Yola Maria Bacca | M43: Inspección y Vigilancia | N43: =IF(J43=H!$ET$3,"CASO1",IF('1. CONTROL NORMATIVO'!J43=H!$ET$10,"CASO2",IF('1. CONTROL NORMATIVO'!J43=H!$ET$23,"CASO3",IF('1. CONTROL NORMATIVO'!J43=H!$ET$26,"CASO4",IF(J43=H!$ET$29,"CASO5",IF('1. CONTROL NORMATIVO'!J43=H!$ET$32,"CASO6",IF('1. CONTROL NORMATIVO'!J43=H!$ET$35,"CASO7",IF(J43=H!$ET$38,"CASO8",IF('1. CONTROL NORMATIVO'!J43=H!$ET$41,"CASO9",IF(J43=H!$ET$225,"CASO62",0)))))))))) -> CASO2 | O43: 2023-06-28 | P43: 2023-06-28 | Q43: 10. El EE tiene deficiencias en el suministro y/o en la infraestructura asociada a los servicios públicos básicos. | S43: Los Integrantes del Consejo Directivo solicitan al Señor Rector que los recursos y las compras que se hacen se los tenga en cuenta y las compras que se hagan, cuando lleguen al establecimiento educativo se los den a conocer. Hacer rendición de cuentas. | T43: Seguimiento a la rendición de cuentas anual.
A44: 40 | B44: Nariño | C44: San Pablo | D44: IE Briceño | E44: IE Briceño | F44: Oficial | G44: Educación Preescolar, Básica Y Media - EPBM | H44: 2023-06-26 | I44: 2023-06-26 | J44: Verificar las condiciones de infraestructura, servicios públicos, mobiliario, laboratorios y demás bienes y equipos apropiados para el desarrollo de los programas académicos ofertados, incluyendo los apoyos comunicativos, tecnológicos o educativos específicos destinados para la atención de estudiantes con discapacidad. | L44: Yola Maria Bacca | M44: Inspección y Vigilancia | N44: =IF(J44=H!$ET$3,"CASO1",IF('1. CONTROL NORMATIVO'!J44=H!$ET$10,"CASO2",IF('1. CONTROL NORMATIVO'!J44=H!$ET$23,"CASO3",IF('1. CONTROL NORMATIVO'!J44=H!$ET$26,"CASO4",IF(J44=H!$ET$29,"CASO5",IF('1. CONTROL NORMATIVO'!J44=H!$ET$32,"CASO6",IF('1. CONTROL NORMATIVO'!J44=H!$ET$35,"CASO7",IF(J44=H!$ET$38,"CASO8",IF('1. CONTROL NORMATIVO'!J44=H!$ET$41,"CASO9",IF(J44=H!$ET$225,"CASO62",0)))))))))) -> CASO2 | O44: 2023-06-26 | P44: 2023-06-26 | Q44: 10. El EE tiene deficiencias en el suministro y/o en la infraestructura asociada a los servicios públicos básicos. | S44: Los Integrantes del Consejo Directivo solicitan al Señor Rector que los recursos y las compras que se hacen se los tenga en cuenta y las compras que se hagan, cuando lleguen al establecimiento educativo se los den a conocer. Hacer rendición de cuentas. | T44: Seguimiento a la rendición de cuentas anual.
A45: 41 | N45: =IF(J45=H!$ET$3,"CASO1",IF('1. CONTROL NORMATIVO'!J45=H!$ET$10,"CASO2",IF('1. CONTROL NORMATIVO'!J45=H!$ET$23,"CASO3",IF('1. CONTROL NORMATIVO'!J45=H!$ET$26,"CASO4",IF(J45=H!$ET$29,"CASO5",IF('1. CONTROL NORMATIVO'!J45=H!$ET$32,"CASO6",IF('1. CONTROL NORMATIVO'!J45=H!$ET$35,"CASO7",IF(J45=H!$ET$38,"CASO8",IF('1. CONTROL NORMATIVO'!J45=H!$ET$41,"CASO9",IF(J45=H!$ET$225,"CASO62",0)))))))))) -> 0
A46: 42 | N46: =IF(J46=H!$ET$3,"CASO1",IF('1. CONTROL NORMATIVO'!J46=H!$ET$10,"CASO2",IF('1. CONTROL NORMATIVO'!J46=H!$ET$23,"CASO3",IF('1. CONTROL NORMATIVO'!J46=H!$ET$26,"CASO4",IF(J46=H!$ET$29,"CASO5",IF('1. CONTROL NORMATIVO'!J46=H!$ET$32,"CASO6",IF('1. CONTROL NORMATIVO'!J46=H!$ET$35,"CASO7",IF(J46=H!$ET$38,"CASO8",IF('1. CONTROL NORMATIVO'!J46=H!$ET$41,"CASO9",IF(J46=H!$ET$225,"CASO62",0)))))))))) -> 0
A47: 43 | N47: =IF(J47=H!$ET$3,"CASO1",IF('1. CONTROL NORMATIVO'!J47=H!$ET$10,"CASO2",IF('1. CONTROL NORMATIVO'!J47=H!$ET$23,"CASO3",IF('1. CONTROL NORMATIVO'!J47=H!$ET$26,"CASO4",IF(J47=H!$ET$29,"CASO5",IF('1. CONTROL NORMATIVO'!J47=H!$ET$32,"CASO6",IF('1. CONTROL NORMATIVO'!J47=H!$ET$35,"CASO7",IF(J47=H!$ET$38,"CASO8",IF('1. CONTROL NORMATIVO'!J47=H!$ET$41,"CASO9",IF(J47=H!$ET$225,"CASO62",0)))))))))) -> 0
A48: 44 | N48: =IF(J48=H!$ET$3,"CASO1",IF('1. CONTROL NORMATIVO'!J48=H!$ET$10,"CASO2",IF('1. CONTROL NORMATIVO'!J48=H!$ET$23,"CASO3",IF('1. CONTROL NORMATIVO'!J48=H!$ET$26,"CASO4",IF(J48=H!$ET$29,"CASO5",IF('1. CONTROL NORMATIVO'!J48=H!$ET$32,"CASO6",IF('1. CONTROL NORMATIVO'!J48=H!$ET$35,"CASO7",IF(J48=H!$ET$38,"CASO8",IF('1. CONTROL NORMATIVO'!J48=H!$ET$41,"CASO9",IF(J48=H!$ET$225,"CASO62",0)))))))))) -> 0
A49: 45 | N49: =IF(J49=H!$ET$3,"CASO1",IF('1. CONTROL NORMATIVO'!J49=H!$ET$10,"CASO2",IF('1. CONTROL NORMATIVO'!J49=H!$ET$23,"CASO3",IF('1. CONTROL NORMATIVO'!J49=H!$ET$26,"CASO4",IF(J49=H!$ET$29,"CASO5",IF('1. CONTROL NORMATIVO'!J49=H!$ET$32,"CASO6",IF('1. CONTROL NORMATIVO'!J49=H!$ET$35,"CASO7",IF(J49=H!$ET$38,"CASO8",IF('1. CONTROL NORMATIVO'!J49=H!$ET$41,"CASO9",IF(J49=H!$ET$225,"CASO62",0)))))))))) -> 0
A50: 46 | N50: =IF(J50=H!$ET$3,"CASO1",IF('1. CONTROL NORMATIVO'!J50=H!$ET$10,"CASO2",IF('1. CONTROL NORMATIVO'!J50=H!$ET$23,"CASO3",IF('1. CONTROL NORMATIVO'!J50=H!$ET$26,"CASO4",IF(J50=H!$ET$29,"CASO5",IF('1. CONTROL NORMATIVO'!J50=H!$ET$32,"CASO6",IF('1. CONTROL NORMATIVO'!J50=H!$ET$35,"CASO7",IF(J50=H!$ET$38,"CASO8",IF('1. CONTROL NORMATIVO'!J50=H!$ET$41,"CASO9",IF(J50=H!$ET$225,"CASO62",0)))))))))) -> 0
A51: 47 | N51: =IF(J51=H!$ET$3,"CASO1",IF('1. CONTROL NORMATIVO'!J51=H!$ET$10,"CASO2",IF('1. CONTROL NORMATIVO'!J51=H!$ET$23,"CASO3",IF('1. CONTROL NORMATIVO'!J51=H!$ET$26,"CASO4",IF(J51=H!$ET$29,"CASO5",IF('1. CONTROL NORMATIVO'!J51=H!$ET$32,"CASO6",IF('1. CONTROL NORMATIVO'!J51=H!$ET$35,"CASO7",IF(J51=H!$ET$38,"CASO8",IF('1. CONTROL NORMATIVO'!J51=H!$ET$41,"CASO9",IF(J51=H!$ET$225,"CASO62",0)))))))))) -> 0
A52: 48 | N52: =IF(J52=H!$ET$3,"CASO1",IF('1. CONTROL NORMATIVO'!J52=H!$ET$10,"CASO2",IF('1. CONTROL NORMATIVO'!J52=H!$ET$23,"CASO3",IF('1. CONTROL NORMATIVO'!J52=H!$ET$26,"CASO4",IF(J52=H!$ET$29,"CASO5",IF('1. CONTROL NORMATIVO'!J52=H!$ET$32,"CASO6",IF('1. CONTROL NORMATIVO'!J52=H!$ET$35,"CASO7",IF(J52=H!$ET$38,"CASO8",IF('1. CONTROL NORMATIVO'!J52=H!$ET$41,"CASO9",IF(J52=H!$ET$225,"CASO62",0)))))))))) -> 0
A53: 49 | N53: =IF(J53=H!$ET$3,"CASO1",IF('1. CONTROL NORMATIVO'!J53=H!$ET$10,"CASO2",IF('1. CONTROL NORMATIVO'!J53=H!$ET$23,"CASO3",IF('1. CONTROL NORMATIVO'!J53=H!$ET$26,"CASO4",IF(J53=H!$ET$29,"CASO5",IF('1. CONTROL NORMATIVO'!J53=H!$ET$32,"CASO6",IF('1. CONTROL NORMATIVO'!J53=H!$ET$35,"CASO7",IF(J53=H!$ET$38,"CASO8",IF('1. CONTROL NORMATIVO'!J53=H!$ET$41,"CASO9",IF(J53=H!$ET$225,"CASO62",0)))))))))) -> 0
A54: 50 | N54: =IF(J54=H!$ET$3,"CASO1",IF('1. CONTROL NORMATIVO'!J54=H!$ET$10,"CASO2",IF('1. CONTROL NORMATIVO'!J54=H!$ET$23,"CASO3",IF('1. CONTROL NORMATIVO'!J54=H!$ET$26,"CASO4",IF(J54=H!$ET$29,"CASO5",IF('1. CONTROL NORMATIVO'!J54=H!$ET$32,"CASO6",IF('1. CONTROL NORMATIVO'!J54=H!$ET$35,"CASO7",IF(J54=H!$ET$38,"CASO8",IF('1. CONTROL NORMATIVO'!J54=H!$ET$41,"CASO9",IF(J54=H!$ET$225,"CASO62",0)))))))))) -> 0
A55: 51 | N55: =IF(J55=H!$ET$3,"CASO1",IF('1. CONTROL NORMATIVO'!J55=H!$ET$10,"CASO2",IF('1. CONTROL NORMATIVO'!J55=H!$ET$23,"CASO3",IF('1. CONTROL NORMATIVO'!J55=H!$ET$26,"CASO4",IF(J55=H!$ET$29,"CASO5",IF('1. CONTROL NORMATIVO'!J55=H!$ET$32,"CASO6",IF('1. CONTROL NORMATIVO'!J55=H!$ET$35,"CASO7",IF(J55=H!$ET$38,"CASO8",IF('1. CONTROL NORMATIVO'!J55=H!$ET$41,"CASO9",IF(J55=H!$ET$225,"CASO62",0)))))))))) -> 0
A56: 52 | N56: =IF(J56=H!$ET$3,"CASO1",IF('1. CONTROL NORMATIVO'!J56=H!$ET$10,"CASO2",IF('1. CONTROL NORMATIVO'!J56=H!$ET$23,"CASO3",IF('1. CONTROL NORMATIVO'!J56=H!$ET$26,"CASO4",IF(J56=H!$ET$29,"CASO5",IF('1. CONTROL NORMATIVO'!J56=H!$ET$32,"CASO6",IF('1. CONTROL NORMATIVO'!J56=H!$ET$35,"CASO7",IF(J56=H!$ET$38,"CASO8",IF('1. CONTROL NORMATIVO'!J56=H!$ET$41,"CASO9",IF(J56=H!$ET$225,"CASO62",0)))))))))) -> 0
A57: 53 | N57: =IF(J57=H!$ET$3,"CASO1",IF('1. CONTROL NORMATIVO'!J57=H!$ET$10,"CASO2",IF('1. CONTROL NORMATIVO'!J57=H!$ET$23,"CASO3",IF('1. CONTROL NORMATIVO'!J57=H!$ET$26,"CASO4",IF(J57=H!$ET$29,"CASO5",IF('1. CONTROL NORMATIVO'!J57=H!$ET$32,"CASO6",IF('1. CONTROL NORMATIVO'!J57=H!$ET$35,"CASO7",IF(J57=H!$ET$38,"CASO8",IF('1. CONTROL NORMATIVO'!J57=H!$ET$41,"CASO9",IF(J57=H!$ET$225,"CASO62",0)))))))))) -> 0
A58: 54 | N58: =IF(J58=H!$ET$3,"CASO1",IF('1. CONTROL NORMATIVO'!J58=H!$ET$10,"CASO2",IF('1. CONTROL NORMATIVO'!J58=H!$ET$23,"CASO3",IF('1. CONTROL NORMATIVO'!J58=H!$ET$26,"CASO4",IF(J58=H!$ET$29,"CASO5",IF('1. CONTROL NORMATIVO'!J58=H!$ET$32,"CASO6",IF('1. CONTROL NORMATIVO'!J58=H!$ET$35,"CASO7",IF(J58=H!$ET$38,"CASO8",IF('1. CONTROL NORMATIVO'!J58=H!$ET$41,"CASO9",IF(J58=H!$ET$225,"CASO62",0)))))))))) -> 0
A59: 55 | N59: =IF(J59=H!$ET$3,"CASO1",IF('1. CONTROL NORMATIVO'!J59=H!$ET$10,"CASO2",IF('1. CONTROL NORMATIVO'!J59=H!$ET$23,"CASO3",IF('1. CONTROL NORMATIVO'!J59=H!$ET$26,"CASO4",IF(J59=H!$ET$29,"CASO5",IF('1. CONTROL NORMATIVO'!J59=H!$ET$32,"CASO6",IF('1. CONTROL NORMATIVO'!J59=H!$ET$35,"CASO7",IF(J59=H!$ET$38,"CASO8",IF('1. CONTROL NORMATIVO'!J59=H!$ET$41,"CASO9",IF(J59=H!$ET$225,"CASO62",0)))))))))) -> 0
A60: 56 | N60: =IF(J60=H!$ET$3,"CASO1",IF('1. CONTROL NORMATIVO'!J60=H!$ET$10,"CASO2",IF('1. CONTROL NORMATIVO'!J60=H!$ET$23,"CASO3",IF('1. CONTROL NORMATIVO'!J60=H!$ET$26,"CASO4",IF(J60=H!$ET$29,"CASO5",IF('1. CONTROL NORMATIVO'!J60=H!$ET$32,"CASO6",IF('1. CONTROL NORMATIVO'!J60=H!$ET$35,"CASO7",IF(J60=H!$ET$38,"CASO8",IF('1. CONTROL NORMATIVO'!J60=H!$ET$41,"CASO9",IF(J60=H!$ET$225,"CASO62",0)))))))))) -> 0
A61: 57 | N61: =IF(J61=H!$ET$3,"CASO1",IF('1. CONTROL NORMATIVO'!J61=H!$ET$10,"CASO2",IF('1. CONTROL NORMATIVO'!J61=H!$ET$23,"CASO3",IF('1. CONTROL NORMATIVO'!J61=H!$ET$26,"CASO4",IF(J61=H!$ET$29,"CASO5",IF('1. CONTROL NORMATIVO'!J61=H!$ET$32,"CASO6",IF('1. CONTROL NORMATIVO'!J61=H!$ET$35,"CASO7",IF(J61=H!$ET$38,"CASO8",IF('1. CONTROL NORMATIVO'!J61=H!$ET$41,"CASO9",IF(J61=H!$ET$225,"CASO62",0)))))))))) -> 0
A62: 58 | N62: =IF(J62=H!$ET$3,"CASO1",IF('1. CONTROL NORMATIVO'!J62=H!$ET$10,"CASO2",IF('1. CONTROL NORMATIVO'!J62=H!$ET$23,"CASO3",IF('1. CONTROL NORMATIVO'!J62=H!$ET$26,"CASO4",IF(J62=H!$ET$29,"CASO5",IF('1. CONTROL NORMATIVO'!J62=H!$ET$32,"CASO6",IF('1. CONTROL NORMATIVO'!J62=H!$ET$35,"CASO7",IF(J62=H!$ET$38,"CASO8",IF('1. CONTROL NORMATIVO'!J62=H!$ET$41,"CASO9",IF(J62=H!$ET$225,"CASO62",0)))))))))) -> 0
A63: 59 | N63: =IF(J63=H!$ET$3,"CASO1",IF('1. CONTROL NORMATIVO'!J63=H!$ET$10,"CASO2",IF('1. CONTROL NORMATIVO'!J63=H!$ET$23,"CASO3",IF('1. CONTROL NORMATIVO'!J63=H!$ET$26,"CASO4",IF(J63=H!$ET$29,"CASO5",IF('1. CONTROL NORMATIVO'!J63=H!$ET$32,"CASO6",IF('1. CONTROL NORMATIVO'!J63=H!$ET$35,"CASO7",IF(J63=H!$ET$38,"CASO8",IF('1. CONTROL NORMATIVO'!J63=H!$ET$41,"CASO9",IF(J63=H!$ET$225,"CASO62",0)))))))))) -> 0
A64: 60 | N64: =IF(J64=H!$ET$3,"CASO1",IF('1. CONTROL NORMATIVO'!J64=H!$ET$10,"CASO2",IF('1. CONTROL NORMATIVO'!J64=H!$ET$23,"CASO3",IF('1. CONTROL NORMATIVO'!J64=H!$ET$26,"CASO4",IF(J64=H!$ET$29,"CASO5",IF('1. CONTROL NORMATIVO'!J64=H!$ET$32,"CASO6",IF('1. CONTROL NORMATIVO'!J64=H!$ET$35,"CASO7",IF(J64=H!$ET$38,"CASO8",IF('1. CONTROL NORMATIVO'!J64=H!$ET$41,"CASO9",IF(J64=H!$ET$225,"CASO62",0)))))))))) -> 0
A65: 61 | N65: =IF(J65=H!$ET$3,"CASO1",IF('1. CONTROL NORMATIVO'!J65=H!$ET$10,"CASO2",IF('1. CONTROL NORMATIVO'!J65=H!$ET$23,"CASO3",IF('1. CONTROL NORMATIVO'!J65=H!$ET$26,"CASO4",IF(J65=H!$ET$29,"CASO5",IF('1. CONTROL NORMATIVO'!J65=H!$ET$32,"CASO6",IF('1. CONTROL NORMATIVO'!J65=H!$ET$35,"CASO7",IF(J65=H!$ET$38,"CASO8",IF('1. CONTROL NORMATIVO'!J65=H!$ET$41,"CASO9",IF(J65=H!$ET$225,"CASO62",0)))))))))) -> 0
A66: 62 | N66: =IF(J66=H!$ET$3,"CASO1",IF('1. CONTROL NORMATIVO'!J66=H!$ET$10,"CASO2",IF('1. CONTROL NORMATIVO'!J66=H!$ET$23,"CASO3",IF('1. CONTROL NORMATIVO'!J66=H!$ET$26,"CASO4",IF(J66=H!$ET$29,"CASO5",IF('1. CONTROL NORMATIVO'!J66=H!$ET$32,"CASO6",IF('1. CONTROL NORMATIVO'!J66=H!$ET$35,"CASO7",IF(J66=H!$ET$38,"CASO8",IF('1. CONTROL NORMATIVO'!J66=H!$ET$41,"CASO9",IF(J66=H!$ET$225,"CASO62",0)))))))))) -> 0
A67: 63 | N67: =IF(J67=H!$ET$3,"CASO1",IF('1. CONTROL NORMATIVO'!J67=H!$ET$10,"CASO2",IF('1. CONTROL NORMATIVO'!J67=H!$ET$23,"CASO3",IF('1. CONTROL NORMATIVO'!J67=H!$ET$26,"CASO4",IF(J67=H!$ET$29,"CASO5",IF('1. CONTROL NORMATIVO'!J67=H!$ET$32,"CASO6",IF('1. CONTROL NORMATIVO'!J67=H!$ET$35,"CASO7",IF(J67=H!$ET$38,"CASO8",IF('1. CONTROL NORMATIVO'!J67=H!$ET$41,"CASO9",IF(J67=H!$ET$225,"CASO62",0)))))))))) -> 0
A68: 64 | N68: =IF(J68=H!$ET$3,"CASO1",IF('1. CONTROL NORMATIVO'!J68=H!$ET$10,"CASO2",IF('1. CONTROL NORMATIVO'!J68=H!$ET$23,"CASO3",IF('1. CONTROL NORMATIVO'!J68=H!$ET$26,"CASO4",IF(J68=H!$ET$29,"CASO5",IF('1. CONTROL NORMATIVO'!J68=H!$ET$32,"CASO6",IF('1. CONTROL NORMATIVO'!J68=H!$ET$35,"CASO7",IF(J68=H!$ET$38,"CASO8",IF('1. CONTROL NORMATIVO'!J68=H!$ET$41,"CASO9",IF(J68=H!$ET$225,"CASO62",0)))))))))) -> 0
A69: 65 | N69: =IF(J69=H!$ET$3,"CASO1",IF('1. CONTROL NORMATIVO'!J69=H!$ET$10,"CASO2",IF('1. CONTROL NORMATIVO'!J69=H!$ET$23,"CASO3",IF('1. CONTROL NORMATIVO'!J69=H!$ET$26,"CASO4",IF(J69=H!$ET$29,"CASO5",IF('1. CONTROL NORMATIVO'!J69=H!$ET$32,"CASO6",IF('1. CONTROL NORMATIVO'!J69=H!$ET$35,"CASO7",IF(J69=H!$ET$38,"CASO8",IF('1. CONTROL NORMATIVO'!J69=H!$ET$41,"CASO9",IF(J69=H!$ET$225,"CASO62",0)))))))))) -> 0
A70: 66 | N70: =IF(J70=H!$ET$3,"CASO1",IF('1. CONTROL NORMATIVO'!J70=H!$ET$10,"CASO2",IF('1. CONTROL NORMATIVO'!J70=H!$ET$23,"CASO3",IF('1. CONTROL NORMATIVO'!J70=H!$ET$26,"CASO4",IF(J70=H!$ET$29,"CASO5",IF('1. CONTROL NORMATIVO'!J70=H!$ET$32,"CASO6",IF('1. CONTROL NORMATIVO'!J70=H!$ET$35,"CASO7",IF(J70=H!$ET$38,"CASO8",IF('1. CONTROL NORMATIVO'!J70=H!$ET$41,"CASO9",IF(J70=H!$ET$225,"CASO62",0)))))))))) -> 0
A71: 67 | N71: =IF(J71=H!$ET$3,"CASO1",IF('1. CONTROL NORMATIVO'!J71=H!$ET$10,"CASO2",IF('1. CONTROL NORMATIVO'!J71=H!$ET$23,"CASO3",IF('1. CONTROL NORMATIVO'!J71=H!$ET$26,"CASO4",IF(J71=H!$ET$29,"CASO5",IF('1. CONTROL NORMATIVO'!J71=H!$ET$32,"CASO6",IF('1. CONTROL NORMATIVO'!J71=H!$ET$35,"CASO7",IF(J71=H!$ET$38,"CASO8",IF('1. CONTROL NORMATIVO'!J71=H!$ET$41,"CASO9",IF(J71=H!$ET$225,"CASO62",0)))))))))) -> 0
A72: 68 | N72: =IF(J72=H!$ET$3,"CASO1",IF('1. CONTROL NORMATIVO'!J72=H!$ET$10,"CASO2",IF('1. CONTROL NORMATIVO'!J72=H!$ET$23,"CASO3",IF('1. CONTROL NORMATIVO'!J72=H!$ET$26,"CASO4",IF(J72=H!$ET$29,"CASO5",IF('1. CONTROL NORMATIVO'!J72=H!$ET$32,"CASO6",IF('1. CONTROL NORMATIVO'!J72=H!$ET$35,"CASO7",IF(J72=H!$ET$38,"CASO8",IF('1. CONTROL NORMATIVO'!J72=H!$ET$41,"CASO9",IF(J72=H!$ET$225,"CASO62",0)))))))))) -> 0
A73: 69 | N73: =IF(J73=H!$ET$3,"CASO1",IF('1. CONTROL NORMATIVO'!J73=H!$ET$10,"CASO2",IF('1. CONTROL NORMATIVO'!J73=H!$ET$23,"CASO3",IF('1. CONTROL NORMATIVO'!J73=H!$ET$26,"CASO4",IF(J73=H!$ET$29,"CASO5",IF('1. CONTROL NORMATIVO'!J73=H!$ET$32,"CASO6",IF('1. CONTROL NORMATIVO'!J73=H!$ET$35,"CASO7",IF(J73=H!$ET$38,"CASO8",IF('1. CONTROL NORMATIVO'!J73=H!$ET$41,"CASO9",IF(J73=H!$ET$225,"CASO62",0)))))))))) -> 0
A74: 70 | N74: =IF(J74=H!$ET$3,"CASO1",IF('1. CONTROL NORMATIVO'!J74=H!$ET$10,"CASO2",IF('1. CONTROL NORMATIVO'!J74=H!$ET$23,"CASO3",IF('1. CONTROL NORMATIVO'!J74=H!$ET$26,"CASO4",IF(J74=H!$ET$29,"CASO5",IF('1. CONTROL NORMATIVO'!J74=H!$ET$32,"CASO6",IF('1. CONTROL NORMATIVO'!J74=H!$ET$35,"CASO7",IF(J74=H!$ET$38,"CASO8",IF('1. CONTROL NORMATIVO'!J74=H!$ET$41,"CASO9",IF(J74=H!$ET$225,"CASO62",0)))))))))) -> 0
A75: 71 | N75: =IF(J75=H!$ET$3,"CASO1",IF('1. CONTROL NORMATIVO'!J75=H!$ET$10,"CASO2",IF('1. CONTROL NORMATIVO'!J75=H!$ET$23,"CASO3",IF('1. CONTROL NORMATIVO'!J75=H!$ET$26,"CASO4",IF(J75=H!$ET$29,"CASO5",IF('1. CONTROL NORMATIVO'!J75=H!$ET$32,"CASO6",IF('1. CONTROL NORMATIVO'!J75=H!$ET$35,"CASO7",IF(J75=H!$ET$38,"CASO8",IF('1. CONTROL NORMATIVO'!J75=H!$ET$41,"CASO9",IF(J75=H!$ET$225,"CASO62",0)))))))))) -> 0
A76: 72 | N76: =IF(J76=H!$ET$3,"CASO1",IF('1. CONTROL NORMATIVO'!J76=H!$ET$10,"CASO2",IF('1. CONTROL NORMATIVO'!J76=H!$ET$23,"CASO3",IF('1. CONTROL NORMATIVO'!J76=H!$ET$26,"CASO4",IF(J76=H!$ET$29,"CASO5",IF('1. CONTROL NORMATIVO'!J76=H!$ET$32,"CASO6",IF('1. CONTROL NORMATIVO'!J76=H!$ET$35,"CASO7",IF(J76=H!$ET$38,"CASO8",IF('1. CONTROL NORMATIVO'!J76=H!$ET$41,"CASO9",IF(J76=H!$ET$225,"CASO62",0)))))))))) -> 0
A77: 73 | N77: =IF(J77=H!$ET$3,"CASO1",IF('1. CONTROL NORMATIVO'!J77=H!$ET$10,"CASO2",IF('1. CONTROL NORMATIVO'!J77=H!$ET$23,"CASO3",IF('1. CONTROL NORMATIVO'!J77=H!$ET$26,"CASO4",IF(J77=H!$ET$29,"CASO5",IF('1. CONTROL NORMATIVO'!J77=H!$ET$32,"CASO6",IF('1. CONTROL NORMATIVO'!J77=H!$ET$35,"CASO7",IF(J77=H!$ET$38,"CASO8",IF('1. CONTROL NORMATIVO'!J77=H!$ET$41,"CASO9",IF(J77=H!$ET$225,"CASO62",0)))))))))) -> 0
A78: 74 | N78: =IF(J78=H!$ET$3,"CASO1",IF('1. CONTROL NORMATIVO'!J78=H!$ET$10,"CASO2",IF('1. CONTROL NORMATIVO'!J78=H!$ET$23,"CASO3",IF('1. CONTROL NORMATIVO'!J78=H!$ET$26,"CASO4",IF(J78=H!$ET$29,"CASO5",IF('1. CONTROL NORMATIVO'!J78=H!$ET$32,"CASO6",IF('1. CONTROL NORMATIVO'!J78=H!$ET$35,"CASO7",IF(J78=H!$ET$38,"CASO8",IF('1. CONTROL NORMATIVO'!J78=H!$ET$41,"CASO9",IF(J78=H!$ET$225,"CASO62",0)))))))))) -> 0
A79: 75 | N79: =IF(J79=H!$ET$3,"CASO1",IF('1. CONTROL NORMATIVO'!J79=H!$ET$10,"CASO2",IF('1. CONTROL NORMATIVO'!J79=H!$ET$23,"CASO3",IF('1. CONTROL NORMATIVO'!J79=H!$ET$26,"CASO4",IF(J79=H!$ET$29,"CASO5",IF('1. CONTROL NORMATIVO'!J79=H!$ET$32,"CASO6",IF('1. CONTROL NORMATIVO'!J79=H!$ET$35,"CASO7",IF(J79=H!$ET$38,"CASO8",IF('1. CONTROL NORMATIVO'!J79=H!$ET$41,"CASO9",IF(J79=H!$ET$225,"CASO62",0)))))))))) -> 0
A80: 76 | N80: =IF(J80=H!$ET$3,"CASO1",IF('1. CONTROL NORMATIVO'!J80=H!$ET$10,"CASO2",IF('1. CONTROL NORMATIVO'!J80=H!$ET$23,"CASO3",IF('1. CONTROL NORMATIVO'!J80=H!$ET$26,"CASO4",IF(J80=H!$ET$29,"CASO5",IF('1. CONTROL NORMATIVO'!J80=H!$ET$32,"CASO6",IF('1. CONTROL NORMATIVO'!J80=H!$ET$35,"CASO7",IF(J80=H!$ET$38,"CASO8",IF('1. CONTROL NORMATIVO'!J80=H!$ET$41,"CASO9",IF(J80=H!$ET$225,"CASO62",0)))))))))) -> 0
A81: 77 | N81: =IF(J81=H!$ET$3,"CASO1",IF('1. CONTROL NORMATIVO'!J81=H!$ET$10,"CASO2",IF('1. CONTROL NORMATIVO'!J81=H!$ET$23,"CASO3",IF('1. CONTROL NORMATIVO'!J81=H!$ET$26,"CASO4",IF(J81=H!$ET$29,"CASO5",IF('1. CONTROL NORMATIVO'!J81=H!$ET$32,"CASO6",IF('1. CONTROL NORMATIVO'!J81=H!$ET$35,"CASO7",IF(J81=H!$ET$38,"CASO8",IF('1. CONTROL NORMATIVO'!J81=H!$ET$41,"CASO9",IF(J81=H!$ET$225,"CASO62",0)))))))))) -> 0
A82: 78 | N82: =IF(J82=H!$ET$3,"CASO1",IF('1. CONTROL NORMATIVO'!J82=H!$ET$10,"CASO2",IF('1. CONTROL NORMATIVO'!J82=H!$ET$23,"CASO3",IF('1. CONTROL NORMATIVO'!J82=H!$ET$26,"CASO4",IF(J82=H!$ET$29,"CASO5",IF('1. CONTROL NORMATIVO'!J82=H!$ET$32,"CASO6",IF('1. CONTROL NORMATIVO'!J82=H!$ET$35,"CASO7",IF(J82=H!$ET$38,"CASO8",IF('1. CONTROL NORMATIVO'!J82=H!$ET$41,"CASO9",IF(J82=H!$ET$225,"CASO62",0)))))))))) -> 0
A83: 79 | N83: =IF(J83=H!$ET$3,"CASO1",IF('1. CONTROL NORMATIVO'!J83=H!$ET$10,"CASO2",IF('1. CONTROL NORMATIVO'!J83=H!$ET$23,"CASO3",IF('1. CONTROL NORMATIVO'!J83=H!$ET$26,"CASO4",IF(J83=H!$ET$29,"CASO5",IF('1. CONTROL NORMATIVO'!J83=H!$ET$32,"CASO6",IF('1. CONTROL NORMATIVO'!J83=H!$ET$35,"CASO7",IF(J83=H!$ET$38,"CASO8",IF('1. CONTROL NORMATIVO'!J83=H!$ET$41,"CASO9",IF(J83=H!$ET$225,"CASO62",0)))))))))) -> 0
A84: 80 | N84: =IF(J84=H!$ET$3,"CASO1",IF('1. CONTROL NORMATIVO'!J84=H!$ET$10,"CASO2",IF('1. CONTROL NORMATIVO'!J84=H!$ET$23,"CASO3",IF('1. CONTROL NORMATIVO'!J84=H!$ET$26,"CASO4",IF(J84=H!$ET$29,"CASO5",IF('1. CONTROL NORMATIVO'!J84=H!$ET$32,"CASO6",IF('1. CONTROL NORMATIVO'!J84=H!$ET$35,"CASO7",IF(J84=H!$ET$38,"CASO8",IF('1. CONTROL NORMATIVO'!J84=H!$ET$41,"CASO9",IF(J84=H!$ET$225,"CASO62",0)))))))))) -> 0
A85: 81 | N85: =IF(J85=H!$ET$3,"CASO1",IF('1. CONTROL NORMATIVO'!J85=H!$ET$10,"CASO2",IF('1. CONTROL NORMATIVO'!J85=H!$ET$23,"CASO3",IF('1. CONTROL NORMATIVO'!J85=H!$ET$26,"CASO4",IF(J85=H!$ET$29,"CASO5",IF('1. CONTROL NORMATIVO'!J85=H!$ET$32,"CASO6",IF('1. CONTROL NORMATIVO'!J85=H!$ET$35,"CASO7",IF(J85=H!$ET$38,"CASO8",IF('1. CONTROL NORMATIVO'!J85=H!$ET$41,"CASO9",IF(J85=H!$ET$225,"CASO62",0)))))))))) -> 0
A86: 82 | N86: =IF(J86=H!$ET$3,"CASO1",IF('1. CONTROL NORMATIVO'!J86=H!$ET$10,"CASO2",IF('1. CONTROL NORMATIVO'!J86=H!$ET$23,"CASO3",IF('1. CONTROL NORMATIVO'!J86=H!$ET$26,"CASO4",IF(J86=H!$ET$29,"CASO5",IF('1. CONTROL NORMATIVO'!J86=H!$ET$32,"CASO6",IF('1. CONTROL NORMATIVO'!J86=H!$ET$35,"CASO7",IF(J86=H!$ET$38,"CASO8",IF('1. CONTROL NORMATIVO'!J86=H!$ET$41,"CASO9",IF(J86=H!$ET$225,"CASO62",0)))))))))) -> 0
A87: 83 | N87: =IF(J87=H!$ET$3,"CASO1",IF('1. CONTROL NORMATIVO'!J87=H!$ET$10,"CASO2",IF('1. CONTROL NORMATIVO'!J87=H!$ET$23,"CASO3",IF('1. CONTROL NORMATIVO'!J87=H!$ET$26,"CASO4",IF(J87=H!$ET$29,"CASO5",IF('1. CONTROL NORMATIVO'!J87=H!$ET$32,"CASO6",IF('1. CONTROL NORMATIVO'!J87=H!$ET$35,"CASO7",IF(J87=H!$ET$38,"CASO8",IF('1. CONTROL NORMATIVO'!J87=H!$ET$41,"CASO9",IF(J87=H!$ET$225,"CASO62",0)))))))))) -> 0
A88: 84 | N88: =IF(J88=H!$ET$3,"CASO1",IF('1. CONTROL NORMATIVO'!J88=H!$ET$10,"CASO2",IF('1. CONTROL NORMATIVO'!J88=H!$ET$23,"CASO3",IF('1. CONTROL NORMATIVO'!J88=H!$ET$26,"CASO4",IF(J88=H!$ET$29,"CASO5",IF('1. CONTROL NORMATIVO'!J88=H!$ET$32,"CASO6",IF('1. CONTROL NORMATIVO'!J88=H!$ET$35,"CASO7",IF(J88=H!$ET$38,"CASO8",IF('1. CONTROL NORMATIVO'!J88=H!$ET$41,"CASO9",IF(J88=H!$ET$225,"CASO62",0)))))))))) -> 0
A89: 85 | N89: =IF(J89=H!$ET$3,"CASO1",IF('1. CONTROL NORMATIVO'!J89=H!$ET$10,"CASO2",IF('1. CONTROL NORMATIVO'!J89=H!$ET$23,"CASO3",IF('1. CONTROL NORMATIVO'!J89=H!$ET$26,"CASO4",IF(J89=H!$ET$29,"CASO5",IF('1. CONTROL NORMATIVO'!J89=H!$ET$32,"CASO6",IF('1. CONTROL NORMATIVO'!J89=H!$ET$35,"CASO7",IF(J89=H!$ET$38,"CASO8",IF('1. CONTROL NORMATIVO'!J89=H!$ET$41,"CASO9",IF(J89=H!$ET$225,"CASO62",0)))))))))) -> 0
A90: 86 | N90: =IF(J90=H!$ET$3,"CASO1",IF('1. CONTROL NORMATIVO'!J90=H!$ET$10,"CASO2",IF('1. CONTROL NORMATIVO'!J90=H!$ET$23,"CASO3",IF('1. CONTROL NORMATIVO'!J90=H!$ET$26,"CASO4",IF(J90=H!$ET$29,"CASO5",IF('1. CONTROL NORMATIVO'!J90=H!$ET$32,"CASO6",IF('1. CONTROL NORMATIVO'!J90=H!$ET$35,"CASO7",IF(J90=H!$ET$38,"CASO8",IF('1. CONTROL NORMATIVO'!J90=H!$ET$41,"CASO9",IF(J90=H!$ET$225,"CASO62",0)))))))))) -> 0
A91: 87 | N91: =IF(J91=H!$ET$3,"CASO1",IF('1. CONTROL NORMATIVO'!J91=H!$ET$10,"CASO2",IF('1. CONTROL NORMATIVO'!J91=H!$ET$23,"CASO3",IF('1. CONTROL NORMATIVO'!J91=H!$ET$26,"CASO4",IF(J91=H!$ET$29,"CASO5",IF('1. CONTROL NORMATIVO'!J91=H!$ET$32,"CASO6",IF('1. CONTROL NORMATIVO'!J91=H!$ET$35,"CASO7",IF(J91=H!$ET$38,"CASO8",IF('1. CONTROL NORMATIVO'!J91=H!$ET$41,"CASO9",IF(J91=H!$ET$225,"CASO62",0)))))))))) -> 0
A92: 88 | N92: =IF(J92=H!$ET$3,"CASO1",IF('1. CONTROL NORMATIVO'!J92=H!$ET$10,"CASO2",IF('1. CONTROL NORMATIVO'!J92=H!$ET$23,"CASO3",IF('1. CONTROL NORMATIVO'!J92=H!$ET$26,"CASO4",IF(J92=H!$ET$29,"CASO5",IF('1. CONTROL NORMATIVO'!J92=H!$ET$32,"CASO6",IF('1. CONTROL NORMATIVO'!J92=H!$ET$35,"CASO7",IF(J92=H!$ET$38,"CASO8",IF('1. CONTROL NORMATIVO'!J92=H!$ET$41,"CASO9",IF(J92=H!$ET$225,"CASO62",0)))))))))) -> 0
A93: 89 | N93: =IF(J93=H!$ET$3,"CASO1",IF('1. CONTROL NORMATIVO'!J93=H!$ET$10,"CASO2",IF('1. CONTROL NORMATIVO'!J93=H!$ET$23,"CASO3",IF('1. CONTROL NORMATIVO'!J93=H!$ET$26,"CASO4",IF(J93=H!$ET$29,"CASO5",IF('1. CONTROL NORMATIVO'!J93=H!$ET$32,"CASO6",IF('1. CONTROL NORMATIVO'!J93=H!$ET$35,"CASO7",IF(J93=H!$ET$38,"CASO8",IF('1. CONTROL NORMATIVO'!J93=H!$ET$41,"CASO9",IF(J93=H!$ET$225,"CASO62",0)))))))))) -> 0
A94: 90 | N94: =IF(J94=H!$ET$3,"CASO1",IF('1. CONTROL NORMATIVO'!J94=H!$ET$10,"CASO2",IF('1. CONTROL NORMATIVO'!J94=H!$ET$23,"CASO3",IF('1. CONTROL NORMATIVO'!J94=H!$ET$26,"CASO4",IF(J94=H!$ET$29,"CASO5",IF('1. CONTROL NORMATIVO'!J94=H!$ET$32,"CASO6",IF('1. CONTROL NORMATIVO'!J94=H!$ET$35,"CASO7",IF(J94=H!$ET$38,"CASO8",IF('1. CONTROL NORMATIVO'!J94=H!$ET$41,"CASO9",IF(J94=H!$ET$225,"CASO62",0)))))))))) -> 0
A95: 91 | N95: =IF(J95=H!$ET$3,"CASO1",IF('1. CONTROL NORMATIVO'!J95=H!$ET$10,"CASO2",IF('1. CONTROL NORMATIVO'!J95=H!$ET$23,"CASO3",IF('1. CONTROL NORMATIVO'!J95=H!$ET$26,"CASO4",IF(J95=H!$ET$29,"CASO5",IF('1. CONTROL NORMATIVO'!J95=H!$ET$32,"CASO6",IF('1. CONTROL NORMATIVO'!J95=H!$ET$35,"CASO7",IF(J95=H!$ET$38,"CASO8",IF('1. CONTROL NORMATIVO'!J95=H!$ET$41,"CASO9",IF(J95=H!$ET$225,"CASO62",0)))))))))) -> 0
A96: 92 | N96: =IF(J96=H!$ET$3,"CASO1",IF('1. CONTROL NORMATIVO'!J96=H!$ET$10,"CASO2",IF('1. CONTROL NORMATIVO'!J96=H!$ET$23,"CASO3",IF('1. CONTROL NORMATIVO'!J96=H!$ET$26,"CASO4",IF(J96=H!$ET$29,"CASO5",IF('1. CONTROL NORMATIVO'!J96=H!$ET$32,"CASO6",IF('1. CONTROL NORMATIVO'!J96=H!$ET$35,"CASO7",IF(J96=H!$ET$38,"CASO8",IF('1. CONTROL NORMATIVO'!J96=H!$ET$41,"CASO9",IF(J96=H!$ET$225,"CASO62",0)))))))))) -> 0
A97: 93 | N97: =IF(J97=H!$ET$3,"CASO1",IF('1. CONTROL NORMATIVO'!J97=H!$ET$10,"CASO2",IF('1. CONTROL NORMATIVO'!J97=H!$ET$23,"CASO3",IF('1. CONTROL NORMATIVO'!J97=H!$ET$26,"CASO4",IF(J97=H!$ET$29,"CASO5",IF('1. CONTROL NORMATIVO'!J97=H!$ET$32,"CASO6",IF('1. CONTROL NORMATIVO'!J97=H!$ET$35,"CASO7",IF(J97=H!$ET$38,"CASO8",IF('1. CONTROL NORMATIVO'!J97=H!$ET$41,"CASO9",IF(J97=H!$ET$225,"CASO62",0)))))))))) -> 0
A98: 94 | N98: =IF(J98=H!$ET$3,"CASO1",IF('1. CONTROL NORMATIVO'!J98=H!$ET$10,"CASO2",IF('1. CONTROL NORMATIVO'!J98=H!$ET$23,"CASO3",IF('1. CONTROL NORMATIVO'!J98=H!$ET$26,"CASO4",IF(J98=H!$ET$29,"CASO5",IF('1. CONTROL NORMATIVO'!J98=H!$ET$32,"CASO6",IF('1. CONTROL NORMATIVO'!J98=H!$ET$35,"CASO7",IF(J98=H!$ET$38,"CASO8",IF('1. CONTROL NORMATIVO'!J98=H!$ET$41,"CASO9",IF(J98=H!$ET$225,"CASO62",0)))))))))) -> 0
A99: 95 | N99: =IF(J99=H!$ET$3,"CASO1",IF('1. CONTROL NORMATIVO'!J99=H!$ET$10,"CASO2",IF('1. CONTROL NORMATIVO'!J99=H!$ET$23,"CASO3",IF('1. CONTROL NORMATIVO'!J99=H!$ET$26,"CASO4",IF(J99=H!$ET$29,"CASO5",IF('1. CONTROL NORMATIVO'!J99=H!$ET$32,"CASO6",IF('1. CONTROL NORMATIVO'!J99=H!$ET$35,"CASO7",IF(J99=H!$ET$38,"CASO8",IF('1. CONTROL NORMATIVO'!J99=H!$ET$41,"CASO9",IF(J99=H!$ET$225,"CASO62",0)))))))))) -> 0
A100: 96 | N100: =IF(J100=H!$ET$3,"CASO1",IF('1. CONTROL NORMATIVO'!J100=H!$ET$10,"CASO2",IF('1. CONTROL NORMATIVO'!J100=H!$ET$23,"CASO3",IF('1. CONTROL NORMATIVO'!J100=H!$ET$26,"CASO4",IF(J100=H!$ET$29,"CASO5",IF('1. CONTROL NORMATIVO'!J100=H!$ET$32,"CASO6",IF('1. CONTROL NORMATIVO'!J100=H!$ET$35,"CASO7",IF(J100=H!$ET$38,"CASO8",IF('1. CONTROL NORMATIVO'!J100=H!$ET$41,"CASO9",IF(J100=H!$ET$225,"CASO62",0)))))))))) -> 0
A101: 97 | N101: =IF(J101=H!$ET$3,"CASO1",IF('1. CONTROL NORMATIVO'!J101=H!$ET$10,"CASO2",IF('1. CONTROL NORMATIVO'!J101=H!$ET$23,"CASO3",IF('1. CONTROL NORMATIVO'!J101=H!$ET$26,"CASO4",IF(J101=H!$ET$29,"CASO5",IF('1. CONTROL NORMATIVO'!J101=H!$ET$32,"CASO6",IF('1. CONTROL NORMATIVO'!J101=H!$ET$35,"CASO7",IF(J101=H!$ET$38,"CASO8",IF('1. CONTROL NORMATIVO'!J101=H!$ET$41,"CASO9",IF(J101=H!$ET$225,"CASO62",0)))))))))) -> 0
A102: 98 | N102: =IF(J102=H!$ET$3,"CASO1",IF('1. CONTROL NORMATIVO'!J102=H!$ET$10,"CASO2",IF('1. CONTROL NORMATIVO'!J102=H!$ET$23,"CASO3",IF('1. CONTROL NORMATIVO'!J102=H!$ET$26,"CASO4",IF(J102=H!$ET$29,"CASO5",IF('1. CONTROL NORMATIVO'!J102=H!$ET$32,"CASO6",IF('1. CONTROL NORMATIVO'!J102=H!$ET$35,"CASO7",IF(J102=H!$ET$38,"CASO8",IF('1. CONTROL NORMATIVO'!J102=H!$ET$41,"CASO9",IF(J102=H!$ET$225,"CASO62",0)))))))))) -> 0
A103: 99 | N103: =IF(J103=H!$ET$3,"CASO1",IF('1. CONTROL NORMATIVO'!J103=H!$ET$10,"CASO2",IF('1. CONTROL NORMATIVO'!J103=H!$ET$23,"CASO3",IF('1. CONTROL NORMATIVO'!J103=H!$ET$26,"CASO4",IF(J103=H!$ET$29,"CASO5",IF('1. CONTROL NORMATIVO'!J103=H!$ET$32,"CASO6",IF('1. CONTROL NORMATIVO'!J103=H!$ET$35,"CASO7",IF(J103=H!$ET$38,"CASO8",IF('1. CONTROL NORMATIVO'!J103=H!$ET$41,"CASO9",IF(J103=H!$ET$225,"CASO62",0)))))))))) -> 0
A104: 100 | N104: =IF(J104=H!$ET$3,"CASO1",IF('1. CONTROL NORMATIVO'!J104=H!$ET$10,"CASO2",IF('1. CONTROL NORMATIVO'!J104=H!$ET$23,"CASO3",IF('1. CONTROL NORMATIVO'!J104=H!$ET$26,"CASO4",IF(J104=H!$ET$29,"CASO5",IF('1. CONTROL NORMATIVO'!J104=H!$ET$32,"CASO6",IF('1. CONTROL NORMATIVO'!J104=H!$ET$35,"CASO7",IF(J104=H!$ET$38,"CASO8",IF('1. CONTROL NORMATIVO'!J104=H!$ET$41,"CASO9",IF(J104=H!$ET$225,"CASO62",0)))))))))) -> 0
A105: 101 | N105: =IF(J105=H!$ET$3,"CASO1",IF('1. CONTROL NORMATIVO'!J105=H!$ET$10,"CASO2",IF('1. CONTROL NORMATIVO'!J105=H!$ET$23,"CASO3",IF('1. CONTROL NORMATIVO'!J105=H!$ET$26,"CASO4",IF(J105=H!$ET$29,"CASO5",IF('1. CONTROL NORMATIVO'!J105=H!$ET$32,"CASO6",IF('1. CONTROL NORMATIVO'!J105=H!$ET$35,"CASO7",IF(J105=H!$ET$38,"CASO8",IF('1. CONTROL NORMATIVO'!J105=H!$ET$41,"CASO9",IF(J105=H!$ET$225,"CASO62",0)))))))))) -> 0
A106: 102 | N106: =IF(J106=H!$ET$3,"CASO1",IF('1. CONTROL NORMATIVO'!J106=H!$ET$10,"CASO2",IF('1. CONTROL NORMATIVO'!J106=H!$ET$23,"CASO3",IF('1. CONTROL NORMATIVO'!J106=H!$ET$26,"CASO4",IF(J106=H!$ET$29,"CASO5",IF('1. CONTROL NORMATIVO'!J106=H!$ET$32,"CASO6",IF('1. CONTROL NORMATIVO'!J106=H!$ET$35,"CASO7",IF(J106=H!$ET$38,"CASO8",IF('1. CONTROL NORMATIVO'!J106=H!$ET$41,"CASO9",IF(J106=H!$ET$225,"CASO62",0)))))))))) -> 0
A107: 103 | N107: =IF(J107=H!$ET$3,"CASO1",IF('1. CONTROL NORMATIVO'!J107=H!$ET$10,"CASO2",IF('1. CONTROL NORMATIVO'!J107=H!$ET$23,"CASO3",IF('1. CONTROL NORMATIVO'!J107=H!$ET$26,"CASO4",IF(J107=H!$ET$29,"CASO5",IF('1. CONTROL NORMATIVO'!J107=H!$ET$32,"CASO6",IF('1. CONTROL NORMATIVO'!J107=H!$ET$35,"CASO7",IF(J107=H!$ET$38,"CASO8",IF('1. CONTROL NORMATIVO'!J107=H!$ET$41,"CASO9",IF(J107=H!$ET$225,"CASO62",0)))))))))) -> 0
A108: 104 | N108: =IF(J108=H!$ET$3,"CASO1",IF('1. CONTROL NORMATIVO'!J108=H!$ET$10,"CASO2",IF('1. CONTROL NORMATIVO'!J108=H!$ET$23,"CASO3",IF('1. CONTROL NORMATIVO'!J108=H!$ET$26,"CASO4",IF(J108=H!$ET$29,"CASO5",IF('1. CONTROL NORMATIVO'!J108=H!$ET$32,"CASO6",IF('1. CONTROL NORMATIVO'!J108=H!$ET$35,"CASO7",IF(J108=H!$ET$38,"CASO8",IF('1. CONTROL NORMATIVO'!J108=H!$ET$41,"CASO9",IF(J108=H!$ET$225,"CASO62",0)))))))))) -> 0
A109: 105 | N109: =IF(J109=H!$ET$3,"CASO1",IF('1. CONTROL NORMATIVO'!J109=H!$ET$10,"CASO2",IF('1. CONTROL NORMATIVO'!J109=H!$ET$23,"CASO3",IF('1. CONTROL NORMATIVO'!J109=H!$ET$26,"CASO4",IF(J109=H!$ET$29,"CASO5",IF('1. CONTROL NORMATIVO'!J109=H!$ET$32,"CASO6",IF('1. CONTROL NORMATIVO'!J109=H!$ET$35,"CASO7",IF(J109=H!$ET$38,"CASO8",IF('1. CONTROL NORMATIVO'!J109=H!$ET$41,"CASO9",IF(J109=H!$ET$225,"CASO62",0)))))))))) -> 0
A110: 106 | N110: =IF(J110=H!$ET$3,"CASO1",IF('1. CONTROL NORMATIVO'!J110=H!$ET$10,"CASO2",IF('1. CONTROL NORMATIVO'!J110=H!$ET$23,"CASO3",IF('1. CONTROL NORMATIVO'!J110=H!$ET$26,"CASO4",IF(J110=H!$ET$29,"CASO5",IF('1. CONTROL NORMATIVO'!J110=H!$ET$32,"CASO6",IF('1. CONTROL NORMATIVO'!J110=H!$ET$35,"CASO7",IF(J110=H!$ET$38,"CASO8",IF('1. CONTROL NORMATIVO'!J110=H!$ET$41,"CASO9",IF(J110=H!$ET$225,"CASO62",0)))))))))) -> 0
A111: 107 | N111: =IF(J111=H!$ET$3,"CASO1",IF('1. CONTROL NORMATIVO'!J111=H!$ET$10,"CASO2",IF('1. CONTROL NORMATIVO'!J111=H!$ET$23,"CASO3",IF('1. CONTROL NORMATIVO'!J111=H!$ET$26,"CASO4",IF(J111=H!$ET$29,"CASO5",IF('1. CONTROL NORMATIVO'!J111=H!$ET$32,"CASO6",IF('1. CONTROL NORMATIVO'!J111=H!$ET$35,"CASO7",IF(J111=H!$ET$38,"CASO8",IF('1. CONTROL NORMATIVO'!J111=H!$ET$41,"CASO9",IF(J111=H!$ET$225,"CASO62",0)))))))))) -> 0
A112: 108 | N112: =IF(J112=H!$ET$3,"CASO1",IF('1. CONTROL NORMATIVO'!J112=H!$ET$10,"CASO2",IF('1. CONTROL NORMATIVO'!J112=H!$ET$23,"CASO3",IF('1. CONTROL NORMATIVO'!J112=H!$ET$26,"CASO4",IF(J112=H!$ET$29,"CASO5",IF('1. CONTROL NORMATIVO'!J112=H!$ET$32,"CASO6",IF('1. CONTROL NORMATIVO'!J112=H!$ET$35,"CASO7",IF(J112=H!$ET$38,"CASO8",IF('1. CONTROL NORMATIVO'!J112=H!$ET$41,"CASO9",IF(J112=H!$ET$225,"CASO62",0)))))))))) -> 0
A113: 109 | N113: =IF(J113=H!$ET$3,"CASO1",IF('1. CONTROL NORMATIVO'!J113=H!$ET$10,"CASO2",IF('1. CONTROL NORMATIVO'!J113=H!$ET$23,"CASO3",IF('1. CONTROL NORMATIVO'!J113=H!$ET$26,"CASO4",IF(J113=H!$ET$29,"CASO5",IF('1. CONTROL NORMATIVO'!J113=H!$ET$32,"CASO6",IF('1. CONTROL NORMATIVO'!J113=H!$ET$35,"CASO7",IF(J113=H!$ET$38,"CASO8",IF('1. CONTROL NORMATIVO'!J113=H!$ET$41,"CASO9",IF(J113=H!$ET$225,"CASO62",0)))))))))) -> 0
A114: 110 | N114: =IF(J114=H!$ET$3,"CASO1",IF('1. CONTROL NORMATIVO'!J114=H!$ET$10,"CASO2",IF('1. CONTROL NORMATIVO'!J114=H!$ET$23,"CASO3",IF('1. CONTROL NORMATIVO'!J114=H!$ET$26,"CASO4",IF(J114=H!$ET$29,"CASO5",IF('1. CONTROL NORMATIVO'!J114=H!$ET$32,"CASO6",IF('1. CONTROL NORMATIVO'!J114=H!$ET$35,"CASO7",IF(J114=H!$ET$38,"CASO8",IF('1. CONTROL NORMATIVO'!J114=H!$ET$41,"CASO9",IF(J114=H!$ET$225,"CASO62",0)))))))))) -> 0
A115: 111 | N115: =IF(J115=H!$ET$3,"CASO1",IF('1. CONTROL NORMATIVO'!J115=H!$ET$10,"CASO2",IF('1. CONTROL NORMATIVO'!J115=H!$ET$23,"CASO3",IF('1. CONTROL NORMATIVO'!J115=H!$ET$26,"CASO4",IF(J115=H!$ET$29,"CASO5",IF('1. CONTROL NORMATIVO'!J115=H!$ET$32,"CASO6",IF('1. CONTROL NORMATIVO'!J115=H!$ET$35,"CASO7",IF(J115=H!$ET$38,"CASO8",IF('1. CONTROL NORMATIVO'!J115=H!$ET$41,"CASO9",IF(J115=H!$ET$225,"CASO62",0)))))))))) -> 0
A116: 112 | N116: =IF(J116=H!$ET$3,"CASO1",IF('1. CONTROL NORMATIVO'!J116=H!$ET$10,"CASO2",IF('1. CONTROL NORMATIVO'!J116=H!$ET$23,"CASO3",IF('1. CONTROL NORMATIVO'!J116=H!$ET$26,"CASO4",IF(J116=H!$ET$29,"CASO5",IF('1. CONTROL NORMATIVO'!J116=H!$ET$32,"CASO6",IF('1. CONTROL NORMATIVO'!J116=H!$ET$35,"CASO7",IF(J116=H!$ET$38,"CASO8",IF('1. CONTROL NORMATIVO'!J116=H!$ET$41,"CASO9",IF(J116=H!$ET$225,"CASO62",0)))))))))) -> 0
A117: 113 | N117: =IF(J117=H!$ET$3,"CASO1",IF('1. CONTROL NORMATIVO'!J117=H!$ET$10,"CASO2",IF('1. CONTROL NORMATIVO'!J117=H!$ET$23,"CASO3",IF('1. CONTROL NORMATIVO'!J117=H!$ET$26,"CASO4",IF(J117=H!$ET$29,"CASO5",IF('1. CONTROL NORMATIVO'!J117=H!$ET$32,"CASO6",IF('1. CONTROL NORMATIVO'!J117=H!$ET$35,"CASO7",IF(J117=H!$ET$38,"CASO8",IF('1. CONTROL NORMATIVO'!J117=H!$ET$41,"CASO9",IF(J117=H!$ET$225,"CASO62",0)))))))))) -> 0
A118: 114 | N118: =IF(J118=H!$ET$3,"CASO1",IF('1. CONTROL NORMATIVO'!J118=H!$ET$10,"CASO2",IF('1. CONTROL NORMATIVO'!J118=H!$ET$23,"CASO3",IF('1. CONTROL NORMATIVO'!J118=H!$ET$26,"CASO4",IF(J118=H!$ET$29,"CASO5",IF('1. CONTROL NORMATIVO'!J118=H!$ET$32,"CASO6",IF('1. CONTROL NORMATIVO'!J118=H!$ET$35,"CASO7",IF(J118=H!$ET$38,"CASO8",IF('1. CONTROL NORMATIVO'!J118=H!$ET$41,"CASO9",IF(J118=H!$ET$225,"CASO62",0)))))))))) -> 0
A119: 115 | N119: =IF(J119=H!$ET$3,"CASO1",IF('1. CONTROL NORMATIVO'!J119=H!$ET$10,"CASO2",IF('1. CONTROL NORMATIVO'!J119=H!$ET$23,"CASO3",IF('1. CONTROL NORMATIVO'!J119=H!$ET$26,"CASO4",IF(J119=H!$ET$29,"CASO5",IF('1. CONTROL NORMATIVO'!J119=H!$ET$32,"CASO6",IF('1. CONTROL NORMATIVO'!J119=H!$ET$35,"CASO7",IF(J119=H!$ET$38,"CASO8",IF('1. CONTROL NORMATIVO'!J119=H!$ET$41,"CASO9",IF(J119=H!$ET$225,"CASO62",0)))))))))) -> 0
A120: 116 | N120: =IF(J120=H!$ET$3,"CASO1",IF('1. CONTROL NORMATIVO'!J120=H!$ET$10,"CASO2",IF('1. CONTROL NORMATIVO'!J120=H!$ET$23,"CASO3",IF('1. CONTROL NORMATIVO'!J120=H!$ET$26,"CASO4",IF(J120=H!$ET$29,"CASO5",IF('1. CONTROL NORMATIVO'!J120=H!$ET$32,"CASO6",IF('1. CONTROL NORMATIVO'!J120=H!$ET$35,"CASO7",IF(J120=H!$ET$38,"CASO8",IF('1. CONTROL NORMATIVO'!J120=H!$ET$41,"CASO9",IF(J120=H!$ET$225,"CASO62",0)))))))))) -> 0
A121: 117 | N121: =IF(J121=H!$ET$3,"CASO1",IF('1. CONTROL NORMATIVO'!J121=H!$ET$10,"CASO2",IF('1. CONTROL NORMATIVO'!J121=H!$ET$23,"CASO3",IF('1. CONTROL NORMATIVO'!J121=H!$ET$26,"CASO4",IF(J121=H!$ET$29,"CASO5",IF('1. CONTROL NORMATIVO'!J121=H!$ET$32,"CASO6",IF('1. CONTROL NORMATIVO'!J121=H!$ET$35,"CASO7",IF(J121=H!$ET$38,"CASO8",IF('1. CONTROL NORMATIVO'!J121=H!$ET$41,"CASO9",IF(J121=H!$ET$225,"CASO62",0)))))))))) -> 0
A122: 118 | N122: =IF(J122=H!$ET$3,"CASO1",IF('1. CONTROL NORMATIVO'!J122=H!$ET$10,"CASO2",IF('1. CONTROL NORMATIVO'!J122=H!$ET$23,"CASO3",IF('1. CONTROL NORMATIVO'!J122=H!$ET$26,"CASO4",IF(J122=H!$ET$29,"CASO5",IF('1. CONTROL NORMATIVO'!J122=H!$ET$32,"CASO6",IF('1. CONTROL NORMATIVO'!J122=H!$ET$35,"CASO7",IF(J122=H!$ET$38,"CASO8",IF('1. CONTROL NORMATIVO'!J122=H!$ET$41,"CASO9",IF(J122=H!$ET$225,"CASO62",0)))))))))) -> 0
A123: 119 | N123: =IF(J123=H!$ET$3,"CASO1",IF('1. CONTROL NORMATIVO'!J123=H!$ET$10,"CASO2",IF('1. CONTROL NORMATIVO'!J123=H!$ET$23,"CASO3",IF('1. CONTROL NORMATIVO'!J123=H!$ET$26,"CASO4",IF(J123=H!$ET$29,"CASO5",IF('1. CONTROL NORMATIVO'!J123=H!$ET$32,"CASO6",IF('1. CONTROL NORMATIVO'!J123=H!$ET$35,"CASO7",IF(J123=H!$ET$38,"CASO8",IF('1. CONTROL NORMATIVO'!J123=H!$ET$41,"CASO9",IF(J123=H!$ET$225,"CASO62",0)))))))))) -> 0
A124: 120 | N124: =IF(J124=H!$ET$3,"CASO1",IF('1. CONTROL NORMATIVO'!J124=H!$ET$10,"CASO2",IF('1. CONTROL NORMATIVO'!J124=H!$ET$23,"CASO3",IF('1. CONTROL NORMATIVO'!J124=H!$ET$26,"CASO4",IF(J124=H!$ET$29,"CASO5",IF('1. CONTROL NORMATIVO'!J124=H!$ET$32,"CASO6",IF('1. CONTROL NORMATIVO'!J124=H!$ET$35,"CASO7",IF(J124=H!$ET$38,"CASO8",IF('1. CONTROL NORMATIVO'!J124=H!$ET$41,"CASO9",IF(J124=H!$ET$225,"CASO62",0)))))))))) -> 0
A125: 121 | N125: =IF(J125=H!$ET$3,"CASO1",IF('1. CONTROL NORMATIVO'!J125=H!$ET$10,"CASO2",IF('1. CONTROL NORMATIVO'!J125=H!$ET$23,"CASO3",IF('1. CONTROL NORMATIVO'!J125=H!$ET$26,"CASO4",IF(J125=H!$ET$29,"CASO5",IF('1. CONTROL NORMATIVO'!J125=H!$ET$32,"CASO6",IF('1. CONTROL NORMATIVO'!J125=H!$ET$35,"CASO7",IF(J125=H!$ET$38,"CASO8",IF('1. CONTROL NORMATIVO'!J125=H!$ET$41,"CASO9",IF(J125=H!$ET$225,"CASO62",0)))))))))) -> 0
A126: 122 | N126: =IF(J126=H!$ET$3,"CASO1",IF('1. CONTROL NORMATIVO'!J126=H!$ET$10,"CASO2",IF('1. CONTROL NORMATIVO'!J126=H!$ET$23,"CASO3",IF('1. CONTROL NORMATIVO'!J126=H!$ET$26,"CASO4",IF(J126=H!$ET$29,"CASO5",IF('1. CONTROL NORMATIVO'!J126=H!$ET$32,"CASO6",IF('1. CONTROL NORMATIVO'!J126=H!$ET$35,"CASO7",IF(J126=H!$ET$38,"CASO8",IF('1. CONTROL NORMATIVO'!J126=H!$ET$41,"CASO9",IF(J126=H!$ET$225,"CASO62",0)))))))))) -> 0
A127: 123 | N127: =IF(J127=H!$ET$3,"CASO1",IF('1. CONTROL NORMATIVO'!J127=H!$ET$10,"CASO2",IF('1. CONTROL NORMATIVO'!J127=H!$ET$23,"CASO3",IF('1. CONTROL NORMATIVO'!J127=H!$ET$26,"CASO4",IF(J127=H!$ET$29,"CASO5",IF('1. CONTROL NORMATIVO'!J127=H!$ET$32,"CASO6",IF('1. CONTROL NORMATIVO'!J127=H!$ET$35,"CASO7",IF(J127=H!$ET$38,"CASO8",IF('1. CONTROL NORMATIVO'!J127=H!$ET$41,"CASO9",IF(J127=H!$ET$225,"CASO62",0)))))))))) -> 0
A128: 124 | N128: =IF(J128=H!$ET$3,"CASO1",IF('1. CONTROL NORMATIVO'!J128=H!$ET$10,"CASO2",IF('1. CONTROL NORMATIVO'!J128=H!$ET$23,"CASO3",IF('1. CONTROL NORMATIVO'!J128=H!$ET$26,"CASO4",IF(J128=H!$ET$29,"CASO5",IF('1. CONTROL NORMATIVO'!J128=H!$ET$32,"CASO6",IF('1. CONTROL NORMATIVO'!J128=H!$ET$35,"CASO7",IF(J128=H!$ET$38,"CASO8",IF('1. CONTROL NORMATIVO'!J128=H!$ET$41,"CASO9",IF(J128=H!$ET$225,"CASO62",0)))))))))) -> 0
A129: 125 | N129: =IF(J129=H!$ET$3,"CASO1",IF('1. CONTROL NORMATIVO'!J129=H!$ET$10,"CASO2",IF('1. CONTROL NORMATIVO'!J129=H!$ET$23,"CASO3",IF('1. CONTROL NORMATIVO'!J129=H!$ET$26,"CASO4",IF(J129=H!$ET$29,"CASO5",IF('1. CONTROL NORMATIVO'!J129=H!$ET$32,"CASO6",IF('1. CONTROL NORMATIVO'!J129=H!$ET$35,"CASO7",IF(J129=H!$ET$38,"CASO8",IF('1. CONTROL NORMATIVO'!J129=H!$ET$41,"CASO9",IF(J129=H!$ET$225,"CASO62",0)))))))))) -> 0
A130: 126 | N130: =IF(J130=H!$ET$3,"CASO1",IF('1. CONTROL NORMATIVO'!J130=H!$ET$10,"CASO2",IF('1. CONTROL NORMATIVO'!J130=H!$ET$23,"CASO3",IF('1. CONTROL NORMATIVO'!J130=H!$ET$26,"CASO4",IF(J130=H!$ET$29,"CASO5",IF('1. CONTROL NORMATIVO'!J130=H!$ET$32,"CASO6",IF('1. CONTROL NORMATIVO'!J130=H!$ET$35,"CASO7",IF(J130=H!$ET$38,"CASO8",IF('1. CONTROL NORMATIVO'!J130=H!$ET$41,"CASO9",IF(J130=H!$ET$225,"CASO62",0)))))))))) -> 0
A131: 127 | N131: =IF(J131=H!$ET$3,"CASO1",IF('1. CONTROL NORMATIVO'!J131=H!$ET$10,"CASO2",IF('1. CONTROL NORMATIVO'!J131=H!$ET$23,"CASO3",IF('1. CONTROL NORMATIVO'!J131=H!$ET$26,"CASO4",IF(J131=H!$ET$29,"CASO5",IF('1. CONTROL NORMATIVO'!J131=H!$ET$32,"CASO6",IF('1. CONTROL NORMATIVO'!J131=H!$ET$35,"CASO7",IF(J131=H!$ET$38,"CASO8",IF('1. CONTROL NORMATIVO'!J131=H!$ET$41,"CASO9",IF(J131=H!$ET$225,"CASO62",0)))))))))) -> 0
A132: 128 | N132: =IF(J132=H!$ET$3,"CASO1",IF('1. CONTROL NORMATIVO'!J132=H!$ET$10,"CASO2",IF('1. CONTROL NORMATIVO'!J132=H!$ET$23,"CASO3",IF('1. CONTROL NORMATIVO'!J132=H!$ET$26,"CASO4",IF(J132=H!$ET$29,"CASO5",IF('1. CONTROL NORMATIVO'!J132=H!$ET$32,"CASO6",IF('1. CONTROL NORMATIVO'!J132=H!$ET$35,"CASO7",IF(J132=H!$ET$38,"CASO8",IF('1. CONTROL NORMATIVO'!J132=H!$ET$41,"CASO9",IF(J132=H!$ET$225,"CASO62",0)))))))))) -> 0
A133: 129 | N133: =IF(J133=H!$ET$3,"CASO1",IF('1. CONTROL NORMATIVO'!J133=H!$ET$10,"CASO2",IF('1. CONTROL NORMATIVO'!J133=H!$ET$23,"CASO3",IF('1. CONTROL NORMATIVO'!J133=H!$ET$26,"CASO4",IF(J133=H!$ET$29,"CASO5",IF('1. CONTROL NORMATIVO'!J133=H!$ET$32,"CASO6",IF('1. CONTROL NORMATIVO'!J133=H!$ET$35,"CASO7",IF(J133=H!$ET$38,"CASO8",IF('1. CONTROL NORMATIVO'!J133=H!$ET$41,"CASO9",IF(J133=H!$ET$225,"CASO62",0)))))))))) -> 0
A134: 130 | N134: =IF(J134=H!$ET$3,"CASO1",IF('1. CONTROL NORMATIVO'!J134=H!$ET$10,"CASO2",IF('1. CONTROL NORMATIVO'!J134=H!$ET$23,"CASO3",IF('1. CONTROL NORMATIVO'!J134=H!$ET$26,"CASO4",IF(J134=H!$ET$29,"CASO5",IF('1. CONTROL NORMATIVO'!J134=H!$ET$32,"CASO6",IF('1. CONTROL NORMATIVO'!J134=H!$ET$35,"CASO7",IF(J134=H!$ET$38,"CASO8",IF('1. CONTROL NORMATIVO'!J134=H!$ET$41,"CASO9",IF(J134=H!$ET$225,"CASO62",0)))))))))) -> 0
A135: 131 | N135: =IF(J135=H!$ET$3,"CASO1",IF('1. CONTROL NORMATIVO'!J135=H!$ET$10,"CASO2",IF('1. CONTROL NORMATIVO'!J135=H!$ET$23,"CASO3",IF('1. CONTROL NORMATIVO'!J135=H!$ET$26,"CASO4",IF(J135=H!$ET$29,"CASO5",IF('1. CONTROL NORMATIVO'!J135=H!$ET$32,"CASO6",IF('1. CONTROL NORMATIVO'!J135=H!$ET$35,"CASO7",IF(J135=H!$ET$38,"CASO8",IF('1. CONTROL NORMATIVO'!J135=H!$ET$41,"CASO9",IF(J135=H!$ET$225,"CASO62",0)))))))))) -> 0
A136: 132 | N136: =IF(J136=H!$ET$3,"CASO1",IF('1. CONTROL NORMATIVO'!J136=H!$ET$10,"CASO2",IF('1. CONTROL NORMATIVO'!J136=H!$ET$23,"CASO3",IF('1. CONTROL NORMATIVO'!J136=H!$ET$26,"CASO4",IF(J136=H!$ET$29,"CASO5",IF('1. CONTROL NORMATIVO'!J136=H!$ET$32,"CASO6",IF('1. CONTROL NORMATIVO'!J136=H!$ET$35,"CASO7",IF(J136=H!$ET$38,"CASO8",IF('1. CONTROL NORMATIVO'!J136=H!$ET$41,"CASO9",IF(J136=H!$ET$225,"CASO62",0)))))))))) -> 0
A137: 133 | N137: =IF(J137=H!$ET$3,"CASO1",IF('1. CONTROL NORMATIVO'!J137=H!$ET$10,"CASO2",IF('1. CONTROL NORMATIVO'!J137=H!$ET$23,"CASO3",IF('1. CONTROL NORMATIVO'!J137=H!$ET$26,"CASO4",IF(J137=H!$ET$29,"CASO5",IF('1. CONTROL NORMATIVO'!J137=H!$ET$32,"CASO6",IF('1. CONTROL NORMATIVO'!J137=H!$ET$35,"CASO7",IF(J137=H!$ET$38,"CASO8",IF('1. CONTROL NORMATIVO'!J137=H!$ET$41,"CASO9",IF(J137=H!$ET$225,"CASO62",0)))))))))) -> 0
A138: 134 | N138: =IF(J138=H!$ET$3,"CASO1",IF('1. CONTROL NORMATIVO'!J138=H!$ET$10,"CASO2",IF('1. CONTROL NORMATIVO'!J138=H!$ET$23,"CASO3",IF('1. CONTROL NORMATIVO'!J138=H!$ET$26,"CASO4",IF(J138=H!$ET$29,"CASO5",IF('1. CONTROL NORMATIVO'!J138=H!$ET$32,"CASO6",IF('1. CONTROL NORMATIVO'!J138=H!$ET$35,"CASO7",IF(J138=H!$ET$38,"CASO8",IF('1. CONTROL NORMATIVO'!J138=H!$ET$41,"CASO9",IF(J138=H!$ET$225,"CASO62",0)))))))))) -> 0
A139: 135 | N139: =IF(J139=H!$ET$3,"CASO1",IF('1. CONTROL NORMATIVO'!J139=H!$ET$10,"CASO2",IF('1. CONTROL NORMATIVO'!J139=H!$ET$23,"CASO3",IF('1. CONTROL NORMATIVO'!J139=H!$ET$26,"CASO4",IF(J139=H!$ET$29,"CASO5",IF('1. CONTROL NORMATIVO'!J139=H!$ET$32,"CASO6",IF('1. CONTROL NORMATIVO'!J139=H!$ET$35,"CASO7",IF(J139=H!$ET$38,"CASO8",IF('1. CONTROL NORMATIVO'!J139=H!$ET$41,"CASO9",IF(J139=H!$ET$225,"CASO62",0)))))))))) -> 0
A140: 136 | N140: =IF(J140=H!$ET$3,"CASO1",IF('1. CONTROL NORMATIVO'!J140=H!$ET$10,"CASO2",IF('1. CONTROL NORMATIVO'!J140=H!$ET$23,"CASO3",IF('1. CONTROL NORMATIVO'!J140=H!$ET$26,"CASO4",IF(J140=H!$ET$29,"CASO5",IF('1. CONTROL NORMATIVO'!J140=H!$ET$32,"CASO6",IF('1. CONTROL NORMATIVO'!J140=H!$ET$35,"CASO7",IF(J140=H!$ET$38,"CASO8",IF('1. CONTROL NORMATIVO'!J140=H!$ET$41,"CASO9",IF(J140=H!$ET$225,"CASO62",0)))))))))) -> 0
A141: 137 | N141: =IF(J141=H!$ET$3,"CASO1",IF('1. CONTROL NORMATIVO'!J141=H!$ET$10,"CASO2",IF('1. CONTROL NORMATIVO'!J141=H!$ET$23,"CASO3",IF('1. CONTROL NORMATIVO'!J141=H!$ET$26,"CASO4",IF(J141=H!$ET$29,"CASO5",IF('1. CONTROL NORMATIVO'!J141=H!$ET$32,"CASO6",IF('1. CONTROL NORMATIVO'!J141=H!$ET$35,"CASO7",IF(J141=H!$ET$38,"CASO8",IF('1. CONTROL NORMATIVO'!J141=H!$ET$41,"CASO9",IF(J141=H!$ET$225,"CASO62",0)))))))))) -> 0
A142: 138 | N142: =IF(J142=H!$ET$3,"CASO1",IF('1. CONTROL NORMATIVO'!J142=H!$ET$10,"CASO2",IF('1. CONTROL NORMATIVO'!J142=H!$ET$23,"CASO3",IF('1. CONTROL NORMATIVO'!J142=H!$ET$26,"CASO4",IF(J142=H!$ET$29,"CASO5",IF('1. CONTROL NORMATIVO'!J142=H!$ET$32,"CASO6",IF('1. CONTROL NORMATIVO'!J142=H!$ET$35,"CASO7",IF(J142=H!$ET$38,"CASO8",IF('1. CONTROL NORMATIVO'!J142=H!$ET$41,"CASO9",IF(J142=H!$ET$225,"CASO62",0)))))))))) -> 0
A143: 139 | N143: =IF(J143=H!$ET$3,"CASO1",IF('1. CONTROL NORMATIVO'!J143=H!$ET$10,"CASO2",IF('1. CONTROL NORMATIVO'!J143=H!$ET$23,"CASO3",IF('1. CONTROL NORMATIVO'!J143=H!$ET$26,"CASO4",IF(J143=H!$ET$29,"CASO5",IF('1. CONTROL NORMATIVO'!J143=H!$ET$32,"CASO6",IF('1. CONTROL NORMATIVO'!J143=H!$ET$35,"CASO7",IF(J143=H!$ET$38,"CASO8",IF('1. CONTROL NORMATIVO'!J143=H!$ET$41,"CASO9",IF(J143=H!$ET$225,"CASO62",0)))))))))) -> 0
A144: 140 | N144: =IF(J144=H!$ET$3,"CASO1",IF('1. CONTROL NORMATIVO'!J144=H!$ET$10,"CASO2",IF('1. CONTROL NORMATIVO'!J144=H!$ET$23,"CASO3",IF('1. CONTROL NORMATIVO'!J144=H!$ET$26,"CASO4",IF(J144=H!$ET$29,"CASO5",IF('1. CONTROL NORMATIVO'!J144=H!$ET$32,"CASO6",IF('1. CONTROL NORMATIVO'!J144=H!$ET$35,"CASO7",IF(J144=H!$ET$38,"CASO8",IF('1. CONTROL NORMATIVO'!J144=H!$ET$41,"CASO9",IF(J144=H!$ET$225,"CASO62",0)))))))))) -> 0
A145: 141 | N145: =IF(J145=H!$ET$3,"CASO1",IF('1. CONTROL NORMATIVO'!J145=H!$ET$10,"CASO2",IF('1. CONTROL NORMATIVO'!J145=H!$ET$23,"CASO3",IF('1. CONTROL NORMATIVO'!J145=H!$ET$26,"CASO4",IF(J145=H!$ET$29,"CASO5",IF('1. CONTROL NORMATIVO'!J145=H!$ET$32,"CASO6",IF('1. CONTROL NORMATIVO'!J145=H!$ET$35,"CASO7",IF(J145=H!$ET$38,"CASO8",IF('1. CONTROL NORMATIVO'!J145=H!$ET$41,"CASO9",IF(J145=H!$ET$225,"CASO62",0)))))))))) -> 0
A146: 142 | N146: =IF(J146=H!$ET$3,"CASO1",IF('1. CONTROL NORMATIVO'!J146=H!$ET$10,"CASO2",IF('1. CONTROL NORMATIVO'!J146=H!$ET$23,"CASO3",IF('1. CONTROL NORMATIVO'!J146=H!$ET$26,"CASO4",IF(J146=H!$ET$29,"CASO5",IF('1. CONTROL NORMATIVO'!J146=H!$ET$32,"CASO6",IF('1. CONTROL NORMATIVO'!J146=H!$ET$35,"CASO7",IF(J146=H!$ET$38,"CASO8",IF('1. CONTROL NORMATIVO'!J146=H!$ET$41,"CASO9",IF(J146=H!$ET$225,"CASO62",0)))))))))) -> 0
A147: 143 | N147: =IF(J147=H!$ET$3,"CASO1",IF('1. CONTROL NORMATIVO'!J147=H!$ET$10,"CASO2",IF('1. CONTROL NORMATIVO'!J147=H!$ET$23,"CASO3",IF('1. CONTROL NORMATIVO'!J147=H!$ET$26,"CASO4",IF(J147=H!$ET$29,"CASO5",IF('1. CONTROL NORMATIVO'!J147=H!$ET$32,"CASO6",IF('1. CONTROL NORMATIVO'!J147=H!$ET$35,"CASO7",IF(J147=H!$ET$38,"CASO8",IF('1. CONTROL NORMATIVO'!J147=H!$ET$41,"CASO9",IF(J147=H!$ET$225,"CASO62",0)))))))))) -> 0
A148: 144 | N148: =IF(J148=H!$ET$3,"CASO1",IF('1. CONTROL NORMATIVO'!J148=H!$ET$10,"CASO2",IF('1. CONTROL NORMATIVO'!J148=H!$ET$23,"CASO3",IF('1. CONTROL NORMATIVO'!J148=H!$ET$26,"CASO4",IF(J148=H!$ET$29,"CASO5",IF('1. CONTROL NORMATIVO'!J148=H!$ET$32,"CASO6",IF('1. CONTROL NORMATIVO'!J148=H!$ET$35,"CASO7",IF(J148=H!$ET$38,"CASO8",IF('1. CONTROL NORMATIVO'!J148=H!$ET$41,"CASO9",IF(J148=H!$ET$225,"CASO62",0)))))))))) -> 0
A149: 145 | N149: =IF(J149=H!$ET$3,"CASO1",IF('1. CONTROL NORMATIVO'!J149=H!$ET$10,"CASO2",IF('1. CONTROL NORMATIVO'!J149=H!$ET$23,"CASO3",IF('1. CONTROL NORMATIVO'!J149=H!$ET$26,"CASO4",IF(J149=H!$ET$29,"CASO5",IF('1. CONTROL NORMATIVO'!J149=H!$ET$32,"CASO6",IF('1. CONTROL NORMATIVO'!J149=H!$ET$35,"CASO7",IF(J149=H!$ET$38,"CASO8",IF('1. CONTROL NORMATIVO'!J149=H!$ET$41,"CASO9",IF(J149=H!$ET$225,"CASO62",0)))))))))) -> 0
A150: 146 | N150: =IF(J150=H!$ET$3,"CASO1",IF('1. CONTROL NORMATIVO'!J150=H!$ET$10,"CASO2",IF('1. CONTROL NORMATIVO'!J150=H!$ET$23,"CASO3",IF('1. CONTROL NORMATIVO'!J150=H!$ET$26,"CASO4",IF(J150=H!$ET$29,"CASO5",IF('1. CONTROL NORMATIVO'!J150=H!$ET$32,"CASO6",IF('1. CONTROL NORMATIVO'!J150=H!$ET$35,"CASO7",IF(J150=H!$ET$38,"CASO8",IF('1. CONTROL NORMATIVO'!J150=H!$ET$41,"CASO9",IF(J150=H!$ET$225,"CASO62",0)))))))))) -> 0
A151: 147 | N151: =IF(J151=H!$ET$3,"CASO1",IF('1. CONTROL NORMATIVO'!J151=H!$ET$10,"CASO2",IF('1. CONTROL NORMATIVO'!J151=H!$ET$23,"CASO3",IF('1. CONTROL NORMATIVO'!J151=H!$ET$26,"CASO4",IF(J151=H!$ET$29,"CASO5",IF('1. CONTROL NORMATIVO'!J151=H!$ET$32,"CASO6",IF('1. CONTROL NORMATIVO'!J151=H!$ET$35,"CASO7",IF(J151=H!$ET$38,"CASO8",IF('1. CONTROL NORMATIVO'!J151=H!$ET$41,"CASO9",IF(J151=H!$ET$225,"CASO62",0)))))))))) -> 0
A152: 148 | N152: =IF(J152=H!$ET$3,"CASO1",IF('1. CONTROL NORMATIVO'!J152=H!$ET$10,"CASO2",IF('1. CONTROL NORMATIVO'!J152=H!$ET$23,"CASO3",IF('1. CONTROL NORMATIVO'!J152=H!$ET$26,"CASO4",IF(J152=H!$ET$29,"CASO5",IF('1. CONTROL NORMATIVO'!J152=H!$ET$32,"CASO6",IF('1. CONTROL NORMATIVO'!J152=H!$ET$35,"CASO7",IF(J152=H!$ET$38,"CASO8",IF('1. CONTROL NORMATIVO'!J152=H!$ET$41,"CASO9",IF(J152=H!$ET$225,"CASO62",0)))))))))) -> 0
A153: 149 | N153: =IF(J153=H!$ET$3,"CASO1",IF('1. CONTROL NORMATIVO'!J153=H!$ET$10,"CASO2",IF('1. CONTROL NORMATIVO'!J153=H!$ET$23,"CASO3",IF('1. CONTROL NORMATIVO'!J153=H!$ET$26,"CASO4",IF(J153=H!$ET$29,"CASO5",IF('1. CONTROL NORMATIVO'!J153=H!$ET$32,"CASO6",IF('1. CONTROL NORMATIVO'!J153=H!$ET$35,"CASO7",IF(J153=H!$ET$38,"CASO8",IF('1. CONTROL NORMATIVO'!J153=H!$ET$41,"CASO9",IF(J153=H!$ET$225,"CASO62",0)))))))))) -> 0
A154: 150 | N154: =IF(J154=H!$ET$3,"CASO1",IF('1. CONTROL NORMATIVO'!J154=H!$ET$10,"CASO2",IF('1. CONTROL NORMATIVO'!J154=H!$ET$23,"CASO3",IF('1. CONTROL NORMATIVO'!J154=H!$ET$26,"CASO4",IF(J154=H!$ET$29,"CASO5",IF('1. CONTROL NORMATIVO'!J154=H!$ET$32,"CASO6",IF('1. CONTROL NORMATIVO'!J154=H!$ET$35,"CASO7",IF(J154=H!$ET$38,"CASO8",IF('1. CONTROL NORMATIVO'!J154=H!$ET$41,"CASO9",IF(J154=H!$ET$225,"CASO62",0)))))))))) -> 0
A155: 151 | N155: =IF(J155=H!$ET$3,"CASO1",IF('1. CONTROL NORMATIVO'!J155=H!$ET$10,"CASO2",IF('1. CONTROL NORMATIVO'!J155=H!$ET$23,"CASO3",IF('1. CONTROL NORMATIVO'!J155=H!$ET$26,"CASO4",IF(J155=H!$ET$29,"CASO5",IF('1. CONTROL NORMATIVO'!J155=H!$ET$32,"CASO6",IF('1. CONTROL NORMATIVO'!J155=H!$ET$35,"CASO7",IF(J155=H!$ET$38,"CASO8",IF('1. CONTROL NORMATIVO'!J155=H!$ET$41,"CASO9",IF(J155=H!$ET$225,"CASO62",0)))))))))) -> 0
A156: 152 | N156: =IF(J156=H!$ET$3,"CASO1",IF('1. CONTROL NORMATIVO'!J156=H!$ET$10,"CASO2",IF('1. CONTROL NORMATIVO'!J156=H!$ET$23,"CASO3",IF('1. CONTROL NORMATIVO'!J156=H!$ET$26,"CASO4",IF(J156=H!$ET$29,"CASO5",IF('1. CONTROL NORMATIVO'!J156=H!$ET$32,"CASO6",IF('1. CONTROL NORMATIVO'!J156=H!$ET$35,"CASO7",IF(J156=H!$ET$38,"CASO8",IF('1. CONTROL NORMATIVO'!J156=H!$ET$41,"CASO9",IF(J156=H!$ET$225,"CASO62",0)))))))))) -> 0
A157: 153 | N157: =IF(J157=H!$ET$3,"CASO1",IF('1. CONTROL NORMATIVO'!J157=H!$ET$10,"CASO2",IF('1. CONTROL NORMATIVO'!J157=H!$ET$23,"CASO3",IF('1. CONTROL NORMATIVO'!J157=H!$ET$26,"CASO4",IF(J157=H!$ET$29,"CASO5",IF('1. CONTROL NORMATIVO'!J157=H!$ET$32,"CASO6",IF('1. CONTROL NORMATIVO'!J157=H!$ET$35,"CASO7",IF(J157=H!$ET$38,"CASO8",IF('1. CONTROL NORMATIVO'!J157=H!$ET$41,"CASO9",IF(J157=H!$ET$225,"CASO62",0)))))))))) -> 0
A158: 154 | N158: =IF(J158=H!$ET$3,"CASO1",IF('1. CONTROL NORMATIVO'!J158=H!$ET$10,"CASO2",IF('1. CONTROL NORMATIVO'!J158=H!$ET$23,"CASO3",IF('1. CONTROL NORMATIVO'!J158=H!$ET$26,"CASO4",IF(J158=H!$ET$29,"CASO5",IF('1. CONTROL NORMATIVO'!J158=H!$ET$32,"CASO6",IF('1. CONTROL NORMATIVO'!J158=H!$ET$35,"CASO7",IF(J158=H!$ET$38,"CASO8",IF('1. CONTROL NORMATIVO'!J158=H!$ET$41,"CASO9",IF(J158=H!$ET$225,"CASO62",0)))))))))) -> 0
A159: 155 | N159: =IF(J159=H!$ET$3,"CASO1",IF('1. CONTROL NORMATIVO'!J159=H!$ET$10,"CASO2",IF('1. CONTROL NORMATIVO'!J159=H!$ET$23,"CASO3",IF('1. CONTROL NORMATIVO'!J159=H!$ET$26,"CASO4",IF(J159=H!$ET$29,"CASO5",IF('1. CONTROL NORMATIVO'!J159=H!$ET$32,"CASO6",IF('1. CONTROL NORMATIVO'!J159=H!$ET$35,"CASO7",IF(J159=H!$ET$38,"CASO8",IF('1. CONTROL NORMATIVO'!J159=H!$ET$41,"CASO9",IF(J159=H!$ET$225,"CASO62",0)))))))))) -> 0
A160: 156 | N160: =IF(J160=H!$ET$3,"CASO1",IF('1. CONTROL NORMATIVO'!J160=H!$ET$10,"CASO2",IF('1. CONTROL NORMATIVO'!J160=H!$ET$23,"CASO3",IF('1. CONTROL NORMATIVO'!J160=H!$ET$26,"CASO4",IF(J160=H!$ET$29,"CASO5",IF('1. CONTROL NORMATIVO'!J160=H!$ET$32,"CASO6",IF('1. CONTROL NORMATIVO'!J160=H!$ET$35,"CASO7",IF(J160=H!$ET$38,"CASO8",IF('1. CONTROL NORMATIVO'!J160=H!$ET$41,"CASO9",IF(J160=H!$ET$225,"CASO62",0)))))))))) -> 0
A161: 157 | N161: =IF(J161=H!$ET$3,"CASO1",IF('1. CONTROL NORMATIVO'!J161=H!$ET$10,"CASO2",IF('1. CONTROL NORMATIVO'!J161=H!$ET$23,"CASO3",IF('1. CONTROL NORMATIVO'!J161=H!$ET$26,"CASO4",IF(J161=H!$ET$29,"CASO5",IF('1. CONTROL NORMATIVO'!J161=H!$ET$32,"CASO6",IF('1. CONTROL NORMATIVO'!J161=H!$ET$35,"CASO7",IF(J161=H!$ET$38,"CASO8",IF('1. CONTROL NORMATIVO'!J161=H!$ET$41,"CASO9",IF(J161=H!$ET$225,"CASO62",0)))))))))) -> 0
A162: 158 | N162: =IF(J162=H!$ET$3,"CASO1",IF('1. CONTROL NORMATIVO'!J162=H!$ET$10,"CASO2",IF('1. CONTROL NORMATIVO'!J162=H!$ET$23,"CASO3",IF('1. CONTROL NORMATIVO'!J162=H!$ET$26,"CASO4",IF(J162=H!$ET$29,"CASO5",IF('1. CONTROL NORMATIVO'!J162=H!$ET$32,"CASO6",IF('1. CONTROL NORMATIVO'!J162=H!$ET$35,"CASO7",IF(J162=H!$ET$38,"CASO8",IF('1. CONTROL NORMATIVO'!J162=H!$ET$41,"CASO9",IF(J162=H!$ET$225,"CASO62",0)))))))))) -> 0
A163: 159 | N163: =IF(J163=H!$ET$3,"CASO1",IF('1. CONTROL NORMATIVO'!J163=H!$ET$10,"CASO2",IF('1. CONTROL NORMATIVO'!J163=H!$ET$23,"CASO3",IF('1. CONTROL NORMATIVO'!J163=H!$ET$26,"CASO4",IF(J163=H!$ET$29,"CASO5",IF('1. CONTROL NORMATIVO'!J163=H!$ET$32,"CASO6",IF('1. CONTROL NORMATIVO'!J163=H!$ET$35,"CASO7",IF(J163=H!$ET$38,"CASO8",IF('1. CONTROL NORMATIVO'!J163=H!$ET$41,"CASO9",IF(J163=H!$ET$225,"CASO62",0)))))))))) -> 0
A164: 160 | N164: =IF(J164=H!$ET$3,"CASO1",IF('1. CONTROL NORMATIVO'!J164=H!$ET$10,"CASO2",IF('1. CONTROL NORMATIVO'!J164=H!$ET$23,"CASO3",IF('1. CONTROL NORMATIVO'!J164=H!$ET$26,"CASO4",IF(J164=H!$ET$29,"CASO5",IF('1. CONTROL NORMATIVO'!J164=H!$ET$32,"CASO6",IF('1. CONTROL NORMATIVO'!J164=H!$ET$35,"CASO7",IF(J164=H!$ET$38,"CASO8",IF('1. CONTROL NORMATIVO'!J164=H!$ET$41,"CASO9",IF(J164=H!$ET$225,"CASO62",0)))))))))) -> 0
A165: 161 | N165: =IF(J165=H!$ET$3,"CASO1",IF('1. CONTROL NORMATIVO'!J165=H!$ET$10,"CASO2",IF('1. CONTROL NORMATIVO'!J165=H!$ET$23,"CASO3",IF('1. CONTROL NORMATIVO'!J165=H!$ET$26,"CASO4",IF(J165=H!$ET$29,"CASO5",IF('1. CONTROL NORMATIVO'!J165=H!$ET$32,"CASO6",IF('1. CONTROL NORMATIVO'!J165=H!$ET$35,"CASO7",IF(J165=H!$ET$38,"CASO8",IF('1. CONTROL NORMATIVO'!J165=H!$ET$41,"CASO9",IF(J165=H!$ET$225,"CASO62",0)))))))))) -> 0
A166: 162 | N166: =IF(J166=H!$ET$3,"CASO1",IF('1. CONTROL NORMATIVO'!J166=H!$ET$10,"CASO2",IF('1. CONTROL NORMATIVO'!J166=H!$ET$23,"CASO3",IF('1. CONTROL NORMATIVO'!J166=H!$ET$26,"CASO4",IF(J166=H!$ET$29,"CASO5",IF('1. CONTROL NORMATIVO'!J166=H!$ET$32,"CASO6",IF('1. CONTROL NORMATIVO'!J166=H!$ET$35,"CASO7",IF(J166=H!$ET$38,"CASO8",IF('1. CONTROL NORMATIVO'!J166=H!$ET$41,"CASO9",IF(J166=H!$ET$225,"CASO62",0)))))))))) -> 0
A167: 163 | N167: =IF(J167=H!$ET$3,"CASO1",IF('1. CONTROL NORMATIVO'!J167=H!$ET$10,"CASO2",IF('1. CONTROL NORMATIVO'!J167=H!$ET$23,"CASO3",IF('1. CONTROL NORMATIVO'!J167=H!$ET$26,"CASO4",IF(J167=H!$ET$29,"CASO5",IF('1. CONTROL NORMATIVO'!J167=H!$ET$32,"CASO6",IF('1. CONTROL NORMATIVO'!J167=H!$ET$35,"CASO7",IF(J167=H!$ET$38,"CASO8",IF('1. CONTROL NORMATIVO'!J167=H!$ET$41,"CASO9",IF(J167=H!$ET$225,"CASO62",0)))))))))) -> 0
A168: 164 | N168: =IF(J168=H!$ET$3,"CASO1",IF('1. CONTROL NORMATIVO'!J168=H!$ET$10,"CASO2",IF('1. CONTROL NORMATIVO'!J168=H!$ET$23,"CASO3",IF('1. CONTROL NORMATIVO'!J168=H!$ET$26,"CASO4",IF(J168=H!$ET$29,"CASO5",IF('1. CONTROL NORMATIVO'!J168=H!$ET$32,"CASO6",IF('1. CONTROL NORMATIVO'!J168=H!$ET$35,"CASO7",IF(J168=H!$ET$38,"CASO8",IF('1. CONTROL NORMATIVO'!J168=H!$ET$41,"CASO9",IF(J168=H!$ET$225,"CASO62",0)))))))))) -> 0
A169: 165 | N169: =IF(J169=H!$ET$3,"CASO1",IF('1. CONTROL NORMATIVO'!J169=H!$ET$10,"CASO2",IF('1. CONTROL NORMATIVO'!J169=H!$ET$23,"CASO3",IF('1. CONTROL NORMATIVO'!J169=H!$ET$26,"CASO4",IF(J169=H!$ET$29,"CASO5",IF('1. CONTROL NORMATIVO'!J169=H!$ET$32,"CASO6",IF('1. CONTROL NORMATIVO'!J169=H!$ET$35,"CASO7",IF(J169=H!$ET$38,"CASO8",IF('1. CONTROL NORMATIVO'!J169=H!$ET$41,"CASO9",IF(J169=H!$ET$225,"CASO62",0)))))))))) -> 0
A170: 166 | N170: =IF(J170=H!$ET$3,"CASO1",IF('1. CONTROL NORMATIVO'!J170=H!$ET$10,"CASO2",IF('1. CONTROL NORMATIVO'!J170=H!$ET$23,"CASO3",IF('1. CONTROL NORMATIVO'!J170=H!$ET$26,"CASO4",IF(J170=H!$ET$29,"CASO5",IF('1. CONTROL NORMATIVO'!J170=H!$ET$32,"CASO6",IF('1. CONTROL NORMATIVO'!J170=H!$ET$35,"CASO7",IF(J170=H!$ET$38,"CASO8",IF('1. CONTROL NORMATIVO'!J170=H!$ET$41,"CASO9",IF(J170=H!$ET$225,"CASO62",0)))))))))) -> 0
A171: =A170+1 -> 167 | N171: =IF(J171=H!$ET$3,"CASO1",IF('1. CONTROL NORMATIVO'!J171=H!$ET$10,"CASO2",IF('1. CONTROL NORMATIVO'!J171=H!$ET$23,"CASO3",IF('1. CONTROL NORMATIVO'!J171=H!$ET$26,"CASO4",IF(J171=H!$ET$29,"CASO5",IF('1. CONTROL NORMATIVO'!J171=H!$ET$32,"CASO6",IF('1. CONTROL NORMATIVO'!J171=H!$ET$35,"CASO7",IF(J171=H!$ET$38,"CASO8",IF('1. CONTROL NORMATIVO'!J171=H!$ET$41,"CASO9",IF(J171=H!$ET$225,"CASO62",0)))))))))) -> 0
A172: 168 | N172: =IF(J172=H!$ET$3,"CASO1",IF('1. CONTROL NORMATIVO'!J172=H!$ET$10,"CASO2",IF('1. CONTROL NORMATIVO'!J172=H!$ET$23,"CASO3",IF('1. CONTROL NORMATIVO'!J172=H!$ET$26,"CASO4",IF(J172=H!$ET$29,"CASO5",IF('1. CONTROL NORMATIVO'!J172=H!$ET$32,"CASO6",IF('1. CONTROL NORMATIVO'!J172=H!$ET$35,"CASO7",IF(J172=H!$ET$38,"CASO8",IF('1. CONTROL NORMATIVO'!J172=H!$ET$41,"CASO9",IF(J172=H!$ET$225,"CASO62",0)))))))))) -> 0
A173: 169 | N173: =IF(J173=H!$ET$3,"CASO1",IF('1. CONTROL NORMATIVO'!J173=H!$ET$10,"CASO2",IF('1. CONTROL NORMATIVO'!J173=H!$ET$23,"CASO3",IF('1. CONTROL NORMATIVO'!J173=H!$ET$26,"CASO4",IF(J173=H!$ET$29,"CASO5",IF('1. CONTROL NORMATIVO'!J173=H!$ET$32,"CASO6",IF('1. CONTROL NORMATIVO'!J173=H!$ET$35,"CASO7",IF(J173=H!$ET$38,"CASO8",IF('1. CONTROL NORMATIVO'!J173=H!$ET$41,"CASO9",IF(J173=H!$ET$225,"CASO62",0)))))))))) -> 0
A174: 170 | N174: =IF(J174=H!$ET$3,"CASO1",IF('1. CONTROL NORMATIVO'!J174=H!$ET$10,"CASO2",IF('1. CONTROL NORMATIVO'!J174=H!$ET$23,"CASO3",IF('1. CONTROL NORMATIVO'!J174=H!$ET$26,"CASO4",IF(J174=H!$ET$29,"CASO5",IF('1. CONTROL NORMATIVO'!J174=H!$ET$32,"CASO6",IF('1. CONTROL NORMATIVO'!J174=H!$ET$35,"CASO7",IF(J174=H!$ET$38,"CASO8",IF('1. CONTROL NORMATIVO'!J174=H!$ET$41,"CASO9",IF(J174=H!$ET$225,"CASO62",0)))))))))) -> 0
A175: 171 | N175: =IF(J175=H!$ET$3,"CASO1",IF('1. CONTROL NORMATIVO'!J175=H!$ET$10,"CASO2",IF('1. CONTROL NORMATIVO'!J175=H!$ET$23,"CASO3",IF('1. CONTROL NORMATIVO'!J175=H!$ET$26,"CASO4",IF(J175=H!$ET$29,"CASO5",IF('1. CONTROL NORMATIVO'!J175=H!$ET$32,"CASO6",IF('1. CONTROL NORMATIVO'!J175=H!$ET$35,"CASO7",IF(J175=H!$ET$38,"CASO8",IF('1. CONTROL NORMATIVO'!J175=H!$ET$41,"CASO9",IF(J175=H!$ET$225,"CASO62",0)))))))))) -> 0
A176: 172 | N176: =IF(J176=H!$ET$3,"CASO1",IF('1. CONTROL NORMATIVO'!J176=H!$ET$10,"CASO2",IF('1. CONTROL NORMATIVO'!J176=H!$ET$23,"CASO3",IF('1. CONTROL NORMATIVO'!J176=H!$ET$26,"CASO4",IF(J176=H!$ET$29,"CASO5",IF('1. CONTROL NORMATIVO'!J176=H!$ET$32,"CASO6",IF('1. CONTROL NORMATIVO'!J176=H!$ET$35,"CASO7",IF(J176=H!$ET$38,"CASO8",IF('1. CONTROL NORMATIVO'!J176=H!$ET$41,"CASO9",IF(J176=H!$ET$225,"CASO62",0)))))))))) -> 0
A177: 173 | N177: =IF(J177=H!$ET$3,"CASO1",IF('1. CONTROL NORMATIVO'!J177=H!$ET$10,"CASO2",IF('1. CONTROL NORMATIVO'!J177=H!$ET$23,"CASO3",IF('1. CONTROL NORMATIVO'!J177=H!$ET$26,"CASO4",IF(J177=H!$ET$29,"CASO5",IF('1. CONTROL NORMATIVO'!J177=H!$ET$32,"CASO6",IF('1. CONTROL NORMATIVO'!J177=H!$ET$35,"CASO7",IF(J177=H!$ET$38,"CASO8",IF('1. CONTROL NORMATIVO'!J177=H!$ET$41,"CASO9",IF(J177=H!$ET$225,"CASO62",0)))))))))) -> 0
A178: 174 | N178: =IF(J178=H!$ET$3,"CASO1",IF('1. CONTROL NORMATIVO'!J178=H!$ET$10,"CASO2",IF('1. CONTROL NORMATIVO'!J178=H!$ET$23,"CASO3",IF('1. CONTROL NORMATIVO'!J178=H!$ET$26,"CASO4",IF(J178=H!$ET$29,"CASO5",IF('1. CONTROL NORMATIVO'!J178=H!$ET$32,"CASO6",IF('1. CONTROL NORMATIVO'!J178=H!$ET$35,"CASO7",IF(J178=H!$ET$38,"CASO8",IF('1. CONTROL NORMATIVO'!J178=H!$ET$41,"CASO9",IF(J178=H!$ET$225,"CASO62",0)))))))))) -> 0
A179: 175 | N179: =IF(J179=H!$ET$3,"CASO1",IF('1. CONTROL NORMATIVO'!J179=H!$ET$10,"CASO2",IF('1. CONTROL NORMATIVO'!J179=H!$ET$23,"CASO3",IF('1. CONTROL NORMATIVO'!J179=H!$ET$26,"CASO4",IF(J179=H!$ET$29,"CASO5",IF('1. CONTROL NORMATIVO'!J179=H!$ET$32,"CASO6",IF('1. CONTROL NORMATIVO'!J179=H!$ET$35,"CASO7",IF(J179=H!$ET$38,"CASO8",IF('1. CONTROL NORMATIVO'!J179=H!$ET$41,"CASO9",IF(J179=H!$ET$225,"CASO62",0)))))))))) -> 0
A180: 176 | N180: =IF(J180=H!$ET$3,"CASO1",IF('1. CONTROL NORMATIVO'!J180=H!$ET$10,"CASO2",IF('1. CONTROL NORMATIVO'!J180=H!$ET$23,"CASO3",IF('1. CONTROL NORMATIVO'!J180=H!$ET$26,"CASO4",IF(J180=H!$ET$29,"CASO5",IF('1. CONTROL NORMATIVO'!J180=H!$ET$32,"CASO6",IF('1. CONTROL NORMATIVO'!J180=H!$ET$35,"CASO7",IF(J180=H!$ET$38,"CASO8",IF('1. CONTROL NORMATIVO'!J180=H!$ET$41,"CASO9",IF(J180=H!$ET$225,"CASO62",0)))))))))) -> 0
A181: 177 | N181: =IF(J181=H!$ET$3,"CASO1",IF('1. CONTROL NORMATIVO'!J181=H!$ET$10,"CASO2",IF('1. CONTROL NORMATIVO'!J181=H!$ET$23,"CASO3",IF('1. CONTROL NORMATIVO'!J181=H!$ET$26,"CASO4",IF(J181=H!$ET$29,"CASO5",IF('1. CONTROL NORMATIVO'!J181=H!$ET$32,"CASO6",IF('1. CONTROL NORMATIVO'!J181=H!$ET$35,"CASO7",IF(J181=H!$ET$38,"CASO8",IF('1. CONTROL NORMATIVO'!J181=H!$ET$41,"CASO9",IF(J181=H!$ET$225,"CASO62",0)))))))))) -> 0
A182: 178 | N182: =IF(J182=H!$ET$3,"CASO1",IF('1. CONTROL NORMATIVO'!J182=H!$ET$10,"CASO2",IF('1. CONTROL NORMATIVO'!J182=H!$ET$23,"CASO3",IF('1. CONTROL NORMATIVO'!J182=H!$ET$26,"CASO4",IF(J182=H!$ET$29,"CASO5",IF('1. CONTROL NORMATIVO'!J182=H!$ET$32,"CASO6",IF('1. CONTROL NORMATIVO'!J182=H!$ET$35,"CASO7",IF(J182=H!$ET$38,"CASO8",IF('1. CONTROL NORMATIVO'!J182=H!$ET$41,"CASO9",IF(J182=H!$ET$225,"CASO62",0)))))))))) -> 0
A183: 179 | N183: =IF(J183=H!$ET$3,"CASO1",IF('1. CONTROL NORMATIVO'!J183=H!$ET$10,"CASO2",IF('1. CONTROL NORMATIVO'!J183=H!$ET$23,"CASO3",IF('1. CONTROL NORMATIVO'!J183=H!$ET$26,"CASO4",IF(J183=H!$ET$29,"CASO5",IF('1. CONTROL NORMATIVO'!J183=H!$ET$32,"CASO6",IF('1. CONTROL NORMATIVO'!J183=H!$ET$35,"CASO7",IF(J183=H!$ET$38,"CASO8",IF('1. CONTROL NORMATIVO'!J183=H!$ET$41,"CASO9",IF(J183=H!$ET$225,"CASO62",0)))))))))) -> 0
A184: 180 | N184: =IF(J184=H!$ET$3,"CASO1",IF('1. CONTROL NORMATIVO'!J184=H!$ET$10,"CASO2",IF('1. CONTROL NORMATIVO'!J184=H!$ET$23,"CASO3",IF('1. CONTROL NORMATIVO'!J184=H!$ET$26,"CASO4",IF(J184=H!$ET$29,"CASO5",IF('1. CONTROL NORMATIVO'!J184=H!$ET$32,"CASO6",IF('1. CONTROL NORMATIVO'!J184=H!$ET$35,"CASO7",IF(J184=H!$ET$38,"CASO8",IF('1. CONTROL NORMATIVO'!J184=H!$ET$41,"CASO9",IF(J184=H!$ET$225,"CASO62",0)))))))))) -> 0
A185: 181 | N185: =IF(J185=H!$ET$3,"CASO1",IF('1. CONTROL NORMATIVO'!J185=H!$ET$10,"CASO2",IF('1. CONTROL NORMATIVO'!J185=H!$ET$23,"CASO3",IF('1. CONTROL NORMATIVO'!J185=H!$ET$26,"CASO4",IF(J185=H!$ET$29,"CASO5",IF('1. CONTROL NORMATIVO'!J185=H!$ET$32,"CASO6",IF('1. CONTROL NORMATIVO'!J185=H!$ET$35,"CASO7",IF(J185=H!$ET$38,"CASO8",IF('1. CONTROL NORMATIVO'!J185=H!$ET$41,"CASO9",IF(J185=H!$ET$225,"CASO62",0)))))))))) -> 0
A186: 182 | N186: =IF(J186=H!$ET$3,"CASO1",IF('1. CONTROL NORMATIVO'!J186=H!$ET$10,"CASO2",IF('1. CONTROL NORMATIVO'!J186=H!$ET$23,"CASO3",IF('1. CONTROL NORMATIVO'!J186=H!$ET$26,"CASO4",IF(J186=H!$ET$29,"CASO5",IF('1. CONTROL NORMATIVO'!J186=H!$ET$32,"CASO6",IF('1. CONTROL NORMATIVO'!J186=H!$ET$35,"CASO7",IF(J186=H!$ET$38,"CASO8",IF('1. CONTROL NORMATIVO'!J186=H!$ET$41,"CASO9",IF(J186=H!$ET$225,"CASO62",0)))))))))) -> 0
A187: 183 | N187: =IF(J187=H!$ET$3,"CASO1",IF('1. CONTROL NORMATIVO'!J187=H!$ET$10,"CASO2",IF('1. CONTROL NORMATIVO'!J187=H!$ET$23,"CASO3",IF('1. CONTROL NORMATIVO'!J187=H!$ET$26,"CASO4",IF(J187=H!$ET$29,"CASO5",IF('1. CONTROL NORMATIVO'!J187=H!$ET$32,"CASO6",IF('1. CONTROL NORMATIVO'!J187=H!$ET$35,"CASO7",IF(J187=H!$ET$38,"CASO8",IF('1. CONTROL NORMATIVO'!J187=H!$ET$41,"CASO9",IF(J187=H!$ET$225,"CASO62",0)))))))))) -> 0
A188: 184 | N188: =IF(J188=H!$ET$3,"CASO1",IF('1. CONTROL NORMATIVO'!J188=H!$ET$10,"CASO2",IF('1. CONTROL NORMATIVO'!J188=H!$ET$23,"CASO3",IF('1. CONTROL NORMATIVO'!J188=H!$ET$26,"CASO4",IF(J188=H!$ET$29,"CASO5",IF('1. CONTROL NORMATIVO'!J188=H!$ET$32,"CASO6",IF('1. CONTROL NORMATIVO'!J188=H!$ET$35,"CASO7",IF(J188=H!$ET$38,"CASO8",IF('1. CONTROL NORMATIVO'!J188=H!$ET$41,"CASO9",IF(J188=H!$ET$225,"CASO62",0)))))))))) -> 0
A189: 185 | N189: =IF(J189=H!$ET$3,"CASO1",IF('1. CONTROL NORMATIVO'!J189=H!$ET$10,"CASO2",IF('1. CONTROL NORMATIVO'!J189=H!$ET$23,"CASO3",IF('1. CONTROL NORMATIVO'!J189=H!$ET$26,"CASO4",IF(J189=H!$ET$29,"CASO5",IF('1. CONTROL NORMATIVO'!J189=H!$ET$32,"CASO6",IF('1. CONTROL NORMATIVO'!J189=H!$ET$35,"CASO7",IF(J189=H!$ET$38,"CASO8",IF('1. CONTROL NORMATIVO'!J189=H!$ET$41,"CASO9",IF(J189=H!$ET$225,"CASO62",0)))))))))) -> 0
A190: 186 | N190: =IF(J190=H!$ET$3,"CASO1",IF('1. CONTROL NORMATIVO'!J190=H!$ET$10,"CASO2",IF('1. CONTROL NORMATIVO'!J190=H!$ET$23,"CASO3",IF('1. CONTROL NORMATIVO'!J190=H!$ET$26,"CASO4",IF(J190=H!$ET$29,"CASO5",IF('1. CONTROL NORMATIVO'!J190=H!$ET$32,"CASO6",IF('1. CONTROL NORMATIVO'!J190=H!$ET$35,"CASO7",IF(J190=H!$ET$38,"CASO8",IF('1. CONTROL NORMATIVO'!J190=H!$ET$41,"CASO9",IF(J190=H!$ET$225,"CASO62",0)))))))))) -> 0
A191: 187 | N191: =IF(J191=H!$ET$3,"CASO1",IF('1. CONTROL NORMATIVO'!J191=H!$ET$10,"CASO2",IF('1. CONTROL NORMATIVO'!J191=H!$ET$23,"CASO3",IF('1. CONTROL NORMATIVO'!J191=H!$ET$26,"CASO4",IF(J191=H!$ET$29,"CASO5",IF('1. CONTROL NORMATIVO'!J191=H!$ET$32,"CASO6",IF('1. CONTROL NORMATIVO'!J191=H!$ET$35,"CASO7",IF(J191=H!$ET$38,"CASO8",IF('1. CONTROL NORMATIVO'!J191=H!$ET$41,"CASO9",IF(J191=H!$ET$225,"CASO62",0)))))))))) -> 0
A192: 188 | N192: =IF(J192=H!$ET$3,"CASO1",IF('1. CONTROL NORMATIVO'!J192=H!$ET$10,"CASO2",IF('1. CONTROL NORMATIVO'!J192=H!$ET$23,"CASO3",IF('1. CONTROL NORMATIVO'!J192=H!$ET$26,"CASO4",IF(J192=H!$ET$29,"CASO5",IF('1. CONTROL NORMATIVO'!J192=H!$ET$32,"CASO6",IF('1. CONTROL NORMATIVO'!J192=H!$ET$35,"CASO7",IF(J192=H!$ET$38,"CASO8",IF('1. CONTROL NORMATIVO'!J192=H!$ET$41,"CASO9",IF(J192=H!$ET$225,"CASO62",0)))))))))) -> 0
A193: 189 | N193: =IF(J193=H!$ET$3,"CASO1",IF('1. CONTROL NORMATIVO'!J193=H!$ET$10,"CASO2",IF('1. CONTROL NORMATIVO'!J193=H!$ET$23,"CASO3",IF('1. CONTROL NORMATIVO'!J193=H!$ET$26,"CASO4",IF(J193=H!$ET$29,"CASO5",IF('1. CONTROL NORMATIVO'!J193=H!$ET$32,"CASO6",IF('1. CONTROL NORMATIVO'!J193=H!$ET$35,"CASO7",IF(J193=H!$ET$38,"CASO8",IF('1. CONTROL NORMATIVO'!J193=H!$ET$41,"CASO9",IF(J193=H!$ET$225,"CASO62",0)))))))))) -> 0
A194: 190 | N194: =IF(J194=H!$ET$3,"CASO1",IF('1. CONTROL NORMATIVO'!J194=H!$ET$10,"CASO2",IF('1. CONTROL NORMATIVO'!J194=H!$ET$23,"CASO3",IF('1. CONTROL NORMATIVO'!J194=H!$ET$26,"CASO4",IF(J194=H!$ET$29,"CASO5",IF('1. CONTROL NORMATIVO'!J194=H!$ET$32,"CASO6",IF('1. CONTROL NORMATIVO'!J194=H!$ET$35,"CASO7",IF(J194=H!$ET$38,"CASO8",IF('1. CONTROL NORMATIVO'!J194=H!$ET$41,"CASO9",IF(J194=H!$ET$225,"CASO62",0)))))))))) -> 0
A195: 191 | N195: =IF(J195=H!$ET$3,"CASO1",IF('1. CONTROL NORMATIVO'!J195=H!$ET$10,"CASO2",IF('1. CONTROL NORMATIVO'!J195=H!$ET$23,"CASO3",IF('1. CONTROL NORMATIVO'!J195=H!$ET$26,"CASO4",IF(J195=H!$ET$29,"CASO5",IF('1. CONTROL NORMATIVO'!J195=H!$ET$32,"CASO6",IF('1. CONTROL NORMATIVO'!J195=H!$ET$35,"CASO7",IF(J195=H!$ET$38,"CASO8",IF('1. CONTROL NORMATIVO'!J195=H!$ET$41,"CASO9",IF(J195=H!$ET$225,"CASO62",0)))))))))) -> 0
A196: 192 | N196: =IF(J196=H!$ET$3,"CASO1",IF('1. CONTROL NORMATIVO'!J196=H!$ET$10,"CASO2",IF('1. CONTROL NORMATIVO'!J196=H!$ET$23,"CASO3",IF('1. CONTROL NORMATIVO'!J196=H!$ET$26,"CASO4",IF(J196=H!$ET$29,"CASO5",IF('1. CONTROL NORMATIVO'!J196=H!$ET$32,"CASO6",IF('1. CONTROL NORMATIVO'!J196=H!$ET$35,"CASO7",IF(J196=H!$ET$38,"CASO8",IF('1. CONTROL NORMATIVO'!J196=H!$ET$41,"CASO9",IF(J196=H!$ET$225,"CASO62",0)))))))))) -> 0
A197: 193 | N197: =IF(J197=H!$ET$3,"CASO1",IF('1. CONTROL NORMATIVO'!J197=H!$ET$10,"CASO2",IF('1. CONTROL NORMATIVO'!J197=H!$ET$23,"CASO3",IF('1. CONTROL NORMATIVO'!J197=H!$ET$26,"CASO4",IF(J197=H!$ET$29,"CASO5",IF('1. CONTROL NORMATIVO'!J197=H!$ET$32,"CASO6",IF('1. CONTROL NORMATIVO'!J197=H!$ET$35,"CASO7",IF(J197=H!$ET$38,"CASO8",IF('1. CONTROL NORMATIVO'!J197=H!$ET$41,"CASO9",IF(J197=H!$ET$225,"CASO62",0)))))))))) -> 0
A198: 194 | N198: =IF(J198=H!$ET$3,"CASO1",IF('1. CONTROL NORMATIVO'!J198=H!$ET$10,"CASO2",IF('1. CONTROL NORMATIVO'!J198=H!$ET$23,"CASO3",IF('1. CONTROL NORMATIVO'!J198=H!$ET$26,"CASO4",IF(J198=H!$ET$29,"CASO5",IF('1. CONTROL NORMATIVO'!J198=H!$ET$32,"CASO6",IF('1. CONTROL NORMATIVO'!J198=H!$ET$35,"CASO7",IF(J198=H!$ET$38,"CASO8",IF('1. CONTROL NORMATIVO'!J198=H!$ET$41,"CASO9",IF(J198=H!$ET$225,"CASO62",0)))))))))) -> 0
A199: 195 | N199: =IF(J199=H!$ET$3,"CASO1",IF('1. CONTROL NORMATIVO'!J199=H!$ET$10,"CASO2",IF('1. CONTROL NORMATIVO'!J199=H!$ET$23,"CASO3",IF('1. CONTROL NORMATIVO'!J199=H!$ET$26,"CASO4",IF(J199=H!$ET$29,"CASO5",IF('1. CONTROL NORMATIVO'!J199=H!$ET$32,"CASO6",IF('1. CONTROL NORMATIVO'!J199=H!$ET$35,"CASO7",IF(J199=H!$ET$38,"CASO8",IF('1. CONTROL NORMATIVO'!J199=H!$ET$41,"CASO9",IF(J199=H!$ET$225,"CASO62",0)))))))))) -> 0
A200: 196 | N200: =IF(J200=H!$ET$3,"CASO1",IF('1. CONTROL NORMATIVO'!J200=H!$ET$10,"CASO2",IF('1. CONTROL NORMATIVO'!J200=H!$ET$23,"CASO3",IF('1. CONTROL NORMATIVO'!J200=H!$ET$26,"CASO4",IF(J200=H!$ET$29,"CASO5",IF('1. CONTROL NORMATIVO'!J200=H!$ET$32,"CASO6",IF('1. CONTROL NORMATIVO'!J200=H!$ET$35,"CASO7",IF(J200=H!$ET$38,"CASO8",IF('1. CONTROL NORMATIVO'!J200=H!$ET$41,"CASO9",IF(J200=H!$ET$225,"CASO62",0)))))))))) -> 0
... 2050 more rows

Sheet 2. PERSONAL Y JORNADA LABORAL
A1: MATRIZ DE FORMULACIÓN Y SEGUIMIENTO DEL POAIV 2023
A2: VISITAS, ACTUACIONES O INTERVENCIONES PROGRAMADAS | O2: RESULTADOS DE LAS ACTUACIONES REALIZADAS -Informes de Ejecución-
A3: NÚMERO DE ORDEN | B3: DEPARTAMENTO | C3: MUNICIPIO | D3: NOMBRE DEL ESTABLECIMIENTO | E3: SEDE ATENDIDA | F3: SECTOR DEL ESTABLECIMIENTO | G3: TIPO DE ESTABLECIMIENTO O SUJETO DE CONTROL | H3: FECHA DE INICIO PROGRAMADA | I3: FECHA FIN PROGRAMADA | J3: ACTIVIDAD A DESARROLLAR | K3: ¿CUÁL OTRA? | L3: FUNCIONARIO RESPONSABLE | M3: ÁREA | N3: CASOS | O3: FECHA REAL DE INICIO DE LA ACTUACIÓN | P3: FECHA REAL FIN DE LA ACTUACIÓN | Q3: SITUACIÓN ENCONTRADA | R3: ¿CUÁL OTRA? | S3: CONCLUSIONES Y/O COMPROMISOS ADQUIRIDOS | T3: ACTIVIDADES DE SEGUIMIENTO Y VERIFICACIÓN
A4: Enumere los EE que serán atendidos en el período. | B4: Incluya el nombre del departamento a la que pertenece el EE objeto de la actuación. | C4: Incluya el nombre del municipio al que pertenece el EE objeto de la actuación. | D4: Identifique el EE priorizado para visitar o para ejecutar otro tipo de actuación según los criterios aplicados para elaborar el POAIV. | E4: Indique el nombre de la sede del EE en donde se ejecutará la visita y/o actuación | F4: Oficial/No oficial | G4: Lista desplegable: EPBM ETDH Educación inicial Educación para Jóvenes y Adultos | H4: Agregue la fecha prevista para la realización de la actuación. | I4: Agregue la fecha prevista para la realización de la actuación. | J4: Seleccione la actividad a desarrollar de acuerdo con el tema diligenciado | K4: Si seleccionó la opción OTRA, indique cuál | L4: Incluya los nombres y apellidos de los funcionarios encargados de realizar la actuación. | M4: Incluya el nombre del área de los funcionarios encargados de realizar la actuación. | O4: Indique la fecha real en que se llevó a cabo la visita o actuación. | P4: Indique la fecha real en que se llevó a cabo la visita o actuación. | Q4: Seleccione la situación encontrada de acuerdo con la actividad realizada | R4: Si seleccionó la opción OTRA, indique cuál | S4: Relacione las acciones de mejora acordadas o los compromisos adquiridos por el EE y por la SE en aras de resolver la situación tratada. | T4: Informe qué acciones de seguimiento o de verificación ha adelantado la SE para verificar las acciones de mejora y/o el cumplimiento de los compromisos adquiridos
A5: 1 | B5: Nariño | C5: ALBÁN | D5: INSTITUCION EDUCATIVA POLITECNICO JUAN BOLAÑOS | E5: SEDE PRINCIPAL-INSTITUCION EDUCATIVA POLITECNICO JUAN BOLAÑOS | F5: Oficial | G5: Educación Preescolar, Básica Y Media - EPBM | H5: 2023-03-30 | I5: 2023-12-31 | J5: Verificar la asignación de la planta de personal docente y directivo-docente destinado a los EE Oficiales, teniendo en cuenta el PEI, las relaciones técnicas vigentes y sus perfiles o áreas de desempeño, incluyendo a los profesionales de apoyo. | L5: Vanesa Córdoba, Isabel Santacruz.Milena Bastidas | M5: Administrativa y Financiera - Recursos Humanos | N5: =IF(J5=H!$ET$44,"CASO10",IF('2. PERSONAL Y JORNADA LABORAL'!J5=H!$ET$48,"CASO11",IF('2. PERSONAL Y JORNADA LABORAL'!J5=H!$ET$51,"CASO12",IF('2. PERSONAL Y JORNADA LABORAL'!J5=H!$ET$54,"CASO13",IF('2. PERSONAL Y JORNADA LABORAL'!J5=H!$ET$57,"CASO14",IF(J5=H!$ET$225,"CASO62",0)))))) -> CASO10 | O5: 2023-03-30 | P5: 2023-03-30 | Q5: 1. Se evidencia que la planta de personal docente y directivo-docente asignada es la requerida para garantizar la prestacion del servicio en el EE y cumple los perfiles de desempeño fijados para cada área del conocimiento. | S5: Mantener proceso de reorganizacion, continua validacion de Planta y optimizacion del recurso humano de acuerdo a las necesidades del servicio de conformidad con el modelo educativo, acojiendo las directrices emanadas por el MEN. | T5: Validacion continua, con asistencia, personal, virtual ,electronica y telefonica, permanente interaccion con los directivos en registro de novedades y asistencia tecnicas programadas semanalmente los dias jueves.
A6: =A5+1 -> 2 | B6: Nariño | C6: ALBÁN | D6: INSTITUCION EDUCATIVA JUAN IGNACIO ORTIZ | E6: SEDE PRINCIPAL-INSTITUCION EDUCATIVA JUAN IGNACIO ORTIZ | F6: Oficial | G6: Educación Preescolar, Básica Y Media - EPBM | H6: 2023-03-30 | I6: 2023-12-31 | J6: Verificar la asignación de la planta de personal docente y directivo-docente destinado a los EE Oficiales, teniendo en cuenta el PEI, las relaciones técnicas vigentes y sus perfiles o áreas de desempeño, incluyendo a los profesionales de apoyo. | L6: Vanesa Córdoba, Isabel Santacruz.Milena Bastidas | M6: Administrativa y Financiera - Recursos Humanos | N6: =IF(J6=H!$ET$44,"CASO10",IF('2. PERSONAL Y JORNADA LABORAL'!J6=H!$ET$48,"CASO11",IF('2. PERSONAL Y JORNADA LABORAL'!J6=H!$ET$51,"CASO12",IF('2. PERSONAL Y JORNADA LABORAL'!J6=H!$ET$54,"CASO13",IF('2. PERSONAL Y JORNADA LABORAL'!J6=H!$ET$57,"CASO14",IF(J6=H!$ET$225,"CASO62",0)))))) -> CASO10 | O6: 2023-03-30 | P6: 2023-03-30 | Q6: 1. Se evidencia que la planta de personal docente y directivo-docente asignada es la requerida para garantizar la prestacion del servicio en el EE y cumple los perfiles de desempeño fijados para cada área del conocimiento. | S6: Mantener proceso de reorganizacion, continua validacion de Planta y optimizacion del recurso humano de acuerdo a las necesidades del servicio de conformidad con el modelo educativo, acojiendo las directrices emanadas por el MEN. | T6: Validacion continua, con asistencia, personal, virtual ,electronica y telefonica, permanente interaccion con los directivos en registro de novedades y asistencia tecnicas programadas semanalmente los dias jueves.
A7: =A6+1 -> 3 | B7: Nariño | C7: ALBÁN | D7: INSTITUCIÓN EDUCATIVA CHAPIURCO | E7: SEDE PRINCIPAL-INSTITUCIÓN EDUCATIVA CHAPIURCO | F7: Oficial | G7: Educación Preescolar, Básica Y Media - EPBM | H7: 2023-03-30 | I7: 2023-12-31 | J7: Verificar la asignación de la planta de personal docente y directivo-docente destinado a los EE Oficiales, teniendo en cuenta el PEI, las relaciones técnicas vigentes y sus perfiles o áreas de desempeño, incluyendo a los profesionales de apoyo. | L7: Vanesa Córdoba, Isabel Santacruz.Milena Bastidas | M7: Administrativa y Financiera - Recursos Humanos | N7: =IF(J7=H!$ET$44,"CASO10",IF('2. PERSONAL Y JORNADA LABORAL'!J7=H!$ET$48,"CASO11",IF('2. PERSONAL Y JORNADA LABORAL'!J7=H!$ET$51,"CASO12",IF('2. PERSONAL Y JORNADA LABORAL'!J7=H!$ET$54,"CASO13",IF('2. PERSONAL Y JORNADA LABORAL'!J7=H!$ET$57,"CASO14",IF(J7=H!$ET$225,"CASO62",0)))))) -> CASO10 | O7: 2023-03-30 | P7: 2023-03-30 | Q7: 1. Se evidencia que la planta de personal docente y directivo-docente asignada es la requerida para garantizar la prestacion del servicio en el EE y cumple los perfiles de desempeño fijados para cada área del conocimiento. | S7: Mantener proceso de reorganizacion, continua validacion de Planta y optimizacion del recurso humano de acuerdo a las necesidades del servicio de conformidad con el modelo educativo, acojiendo las directrices emanadas por el MEN. | T7: Validacion continua, con asistencia, personal, virtual ,electronica y telefonica, permanente interaccion con los directivos en registro de novedades y asistencia tecnicas programadas semanalmente los dias jueves.
A8: 4 | B8: Nariño | C8: ALDANA | D8: INSTITUCION EDUCATIVA NUESTRA SEÑORA DEL PILAR | E8: SEDE PRINCIPAL-INSTITUCION EDUCATIVA NUESTRA SEÑORA DEL PILAR | F8: Oficial | G8: Educación Preescolar, Básica Y Media - EPBM | H8: 2023-03-30 | I8: 2023-12-31 | J8: Verificar la asignación de la planta de personal docente y directivo-docente destinado a los EE Oficiales, teniendo en cuenta el PEI, las relaciones técnicas vigentes y sus perfiles o áreas de desempeño, incluyendo a los profesionales de apoyo. | L8: Vanesa Córdoba, Isabel Santacruz.Milena Bastidas | M8: Administrativa y Financiera - Recursos Humanos | N8: =IF(J8=H!$ET$44,"CASO10",IF('2. PERSONAL Y JORNADA LABORAL'!J8=H!$ET$48,"CASO11",IF('2. PERSONAL Y JORNADA LABORAL'!J8=H!$ET$51,"CASO12",IF('2. PERSONAL Y JORNADA LABORAL'!J8=H!$ET$54,"CASO13",IF('2. PERSONAL Y JORNADA LABORAL'!J8=H!$ET$57,"CASO14",IF(J8=H!$ET$225,"CASO62",0)))))) -> CASO10 | O8: 2023-03-30 | P8: 2023-03-30 | Q8: 1. Se evidencia que la planta de personal docente y directivo-docente asignada es la requerida para garantizar la prestacion del servicio en el EE y cumple los perfiles de desempeño fijados para cada área del conocimiento. | S8: Mantener proceso de reorganizacion, continua validacion de Planta y optimizacion del recurso humano de acuerdo a las necesidades del servicio de conformidad con el modelo educativo, acojiendo las directrices emanadas por el MEN. | T8: Validacion continua, con asistencia, personal, virtual ,electronica y telefonica, permanente interaccion con los directivos en registro de novedades y asistencia tecnicas programadas semanalmente los dias jueves.
A9: 5 | B9: Nariño | C9: ALDANA | D9: INSTITUCION EDUCATIVA COMERCIAL SAN LUIS | E9: SEDE PRINCIPAL-INSTITUCION EDUCATIVA COMERCIAL SAN LUIS | F9: Oficial | G9: Educación Preescolar, Básica Y Media - EPBM | H9: 2023-03-30 | I9: 2023-12-31 | J9: Verificar la asignación de la planta de personal docente y directivo-docente destinado a los EE Oficiales, teniendo en cuenta el PEI, las relaciones técnicas vigentes y sus perfiles o áreas de desempeño, incluyendo a los profesionales de apoyo. | L9: Vanesa Córdoba, Isabel Santacruz.Milena Bastidas | M9: Administrativa y Financiera - Recursos Humanos | N9: =IF(J9=H!$ET$44,"CASO10",IF('2. PERSONAL Y JORNADA LABORAL'!J9=H!$ET$48,"CASO11",IF('2. PERSONAL Y JORNADA LABORAL'!J9=H!$ET$51,"CASO12",IF('2. PERSONAL Y JORNADA LABORAL'!J9=H!$ET$54,"CASO13",IF('2. PERSONAL Y JORNADA LABORAL'!J9=H!$ET$57,"CASO14",IF(J9=H!$ET$225,"CASO62",0)))))) -> CASO10 | O9: 2023-03-30 | P9: 2023-03-30 | Q9: 1. Se evidencia que la planta de personal docente y directivo-docente asignada es la requerida para garantizar la prestacion del servicio en el EE y cumple los perfiles de desempeño fijados para cada área del conocimiento. | S9: Mantener proceso de reorganizacion, continua validacion de Planta y optimizacion del recurso humano de acuerdo a las necesidades del servicio de conformidad con el modelo educativo, acojiendo las directrices emanadas por el MEN. | T9: Validacion continua, con asistencia, personal, virtual ,electronica y telefonica, permanente interaccion con los directivos en registro de novedades y asistencia tecnicas programadas semanalmente los dias jueves.
A10: 6 | B10: Nariño | C10: ANCUYÁ | D10: INSTITUCION EDUCATIVA CARLOS ALBORNOZ ROSAS | E10: SEDE PRINCIPAL-INSTITUCION EDUCATIVA CARLOS ALBORNOZ ROSAS | F10: Oficial | G10: Educación Preescolar, Básica Y Media - EPBM | H10: 2023-03-30 | I10: 2023-12-31 | J10: Verificar la asignación de la planta de personal docente y directivo-docente destinado a los EE Oficiales, teniendo en cuenta el PEI, las relaciones técnicas vigentes y sus perfiles o áreas de desempeño, incluyendo a los profesionales de apoyo. | L10: Vanesa Córdoba, Isabel Santacruz.Milena Bastidas | M10: Administrativa y Financiera - Recursos Humanos | N10: =IF(J10=H!$ET$44,"CASO10",IF('2. PERSONAL Y JORNADA LABORAL'!J10=H!$ET$48,"CASO11",IF('2. PERSONAL Y JORNADA LABORAL'!J10=H!$ET$51,"CASO12",IF('2. PERSONAL Y JORNADA LABORAL'!J10=H!$ET$54,"CASO13",IF('2. PERSONAL Y JORNADA LABORAL'!J10=H!$ET$57,"CASO14",IF(J10=H!$ET$225,"CASO62",0)))))) -> CASO10 | O10: 2023-03-30 | P10: 2023-03-30 | Q10: 1. Se evidencia que la planta de personal docente y directivo-docente asignada es la requerida para garantizar la prestacion del servicio en el EE y cumple los perfiles de desempeño fijados para cada área del conocimiento. | S10: Mantener proceso de reorganizacion, continua validacion de Planta y optimizacion del recurso humano de acuerdo a las necesidades del servicio de conformidad con el modelo educativo, acojiendo las directrices emanadas por el MEN. | T10: Validacion continua, con asistencia, personal, virtual ,electronica y telefonica, permanente interaccion con los directivos en registro de novedades y asistencia tecnicas programadas semanalmente los dias jueves.
A11: 7 | B11: Nariño | C11: ANCUYÁ | D11: INSTITUCION EDUCATIVA SAN FRANCISCO DE ASIS | E11: SEDE PRINCIPAL-INSTITUCION EDUCATIVA SAN FRANCISCO DE ASIS | F11: Oficial | G11: Educación Preescolar, Básica Y Media - EPBM | H11: 2023-03-30 | I11: 2023-12-31 | J11: Verificar la asignación de la planta de personal docente y directivo-docente destinado a los EE Oficiales, teniendo en cuenta el PEI, las relaciones técnicas vigentes y sus perfiles o áreas de desempeño, incluyendo a los profesionales de apoyo. | L11: Vanesa Córdoba, Isabel Santacruz.Milena Bastidas | M11: Administrativa y Financiera - Recursos Humanos | N11: =IF(J11=H!$ET$44,"CASO10",IF('2. PERSONAL Y JORNADA LABORAL'!J11=H!$ET$48,"CASO11",IF('2. PERSONAL Y JORNADA LABORAL'!J11=H!$ET$51,"CASO12",IF('2. PERSONAL Y JORNADA LABORAL'!J11=H!$ET$54,"CASO13",IF('2. PERSONAL Y JORNADA LABORAL'!J11=H!$ET$57,"CASO14",IF(J11=H!$ET$225,"CASO62",0)))))) -> CASO10 | O11: 2023-03-30 | P11: 2023-03-30 | Q11: 1. Se evidencia que la planta de personal docente y directivo-docente asignada es la requerida para garantizar la prestacion del servicio en el EE y cumple los perfiles de desempeño fijados para cada área del conocimiento. | S11: Mantener proceso de reorganizacion, continua validacion de Planta y optimizacion del recurso humano de acuerdo a las necesidades del servicio de conformidad con el modelo educativo, acojiendo las directrices emanadas por el MEN. | T11: Validacion continua, con asistencia, personal, virtual ,electronica y telefonica, permanente interaccion con los directivos en registro de novedades y asistencia tecnicas programadas semanalmente los dias jueves.
A12: 8 | B12: Nariño | C12: ANCUYÁ | D12: INSTITUCION EDUCATIVA NUESTRA SEÑORA DE LAS LAJAS | E12: SEDE PRINCIPAL-INSTITUCION EDUCATIVA NUESTRA SEÑORA DE LAS LAJAS | F12: Oficial | G12: Educación Preescolar, Básica Y Media - EPBM | H12: 2023-03-30 | I12: 2023-12-31 | J12: Verificar la asignación de la planta de personal docente y directivo-docente destinado a los EE Oficiales, teniendo en cuenta el PEI, las relaciones técnicas vigentes y sus perfiles o áreas de desempeño, incluyendo a los profesionales de apoyo. | L12: Vanesa Córdoba, Isabel Santacruz.Milena Bastidas | M12: Administrativa y Financiera - Recursos Humanos | N12: =IF(J12=H!$ET$44,"CASO10",IF('2. PERSONAL Y JORNADA LABORAL'!J12=H!$ET$48,"CASO11",IF('2. PERSONAL Y JORNADA LABORAL'!J12=H!$ET$51,"CASO12",IF('2. PERSONAL Y JORNADA LABORAL'!J12=H!$ET$54,"CASO13",IF('2. PERSONAL Y JORNADA LABORAL'!J12=H!$ET$57,"CASO14",IF(J12=H!$ET$225,"CASO62",0)))))) -> CASO10 | O12: 2023-03-30 | P12: 2023-03-30 | Q12: 1. Se evidencia que la planta de personal docente y directivo-docente asignada es la requerida para garantizar la prestacion del servicio en el EE y cumple los perfiles de desempeño fijados para cada área del conocimiento. | S12: Mantener proceso de reorganizacion, continua validacion de Planta y optimizacion del recurso humano de acuerdo a las necesidades del servicio de conformidad con el modelo educativo, acojiendo las directrices emanadas por el MEN. | T12: Validacion continua, con asistencia, personal, virtual ,electronica y telefonica, permanente interaccion con los directivos en registro de novedades y asistencia tecnicas programadas semanalmente los dias jueves.
A13: 9 | B13: Nariño | C13: ARBOLEDA | D13: INSTITUCION EDUCATIVA DE DESARROLLO RURAL DE BERRUECOS | E13: SEDE PRINCIPAL-INSTITUCION EDUCATIVA DE DESARROLLO RURAL DE BERRUECOS | F13: Oficial | G13: Educación Preescolar, Básica Y Media - EPBM | H13: 2023-03-30 | I13: 2023-12-31 | J13: Verificar la asignación de la planta de personal docente y directivo-docente destinado a los EE Oficiales, teniendo en cuenta el PEI, las relaciones técnicas vigentes y sus perfiles o áreas de desempeño, incluyendo a los profesionales de apoyo. | L13: Vanesa Córdoba, Isabel Santacruz, Profesionales De Apoyo a planta y Apoyo a Personal | M13: Administrativa y Financiera - Recursos Humanos | N13: =IF(J13=H!$ET$44,"CASO10",IF('2. PERSONAL Y JORNADA LABORAL'!J13=H!$ET$48,"CASO11",IF('2. PERSONAL Y JORNADA LABORAL'!J13=H!$ET$51,"CASO12",IF('2. PERSONAL Y JORNADA LABORAL'!J13=H!$ET$54,"CASO13",IF('2. PERSONAL Y JORNADA LABORAL'!J13=H!$ET$57,"CASO14",IF(J13=H!$ET$225,"CASO62",0)))))) -> CASO10 | O13: 2023-03-30 | P13: 2023-03-30 | Q13: 1. Se evidencia que la planta de personal docente y directivo-docente asignada es la requerida para garantizar la prestacion del servicio en el EE y cumple los perfiles de desempeño fijados para cada área del conocimiento. | S13: Mantener proceso de reorganizacion, continua validacion de Planta y optimizacion del recurso humano de acuerdo a las necesidades del servicio de conformidad con el modelo educativo, acojiendo las directrices emanadas por el MEN. | T13: Validacion continua, con asistencia, personal, virtual ,electronica y telefonica, permanente interaccion con los directivos en registro de novedades y asistencia tecnicas programadas semanalmente los dias jueves.
A14: 10 | B14: Nariño | C14: ARBOLEDA | D14: INSTITUCION EDUCATIVA ROSAFLORIDA | E14: SEDE PRINCIPAL-INSTITUCION EDUCATIVA ROSAFLORIDA | F14: Oficial | G14: Educación Preescolar, Básica Y Media - EPBM | H14: 2023-03-30 | I14: 2023-12-31 | J14: Verificar la asignación de la planta de personal docente y directivo-docente destinado a los EE Oficiales, teniendo en cuenta el PEI, las relaciones técnicas vigentes y sus perfiles o áreas de desempeño, incluyendo a los profesionales de apoyo. | L14: Vanesa Córdoba, Isabel Santacruz, Profesionales De Apoyo a planta y Apoyo a Personal | M14: Administrativa y Financiera - Recursos Humanos | N14: =IF(J14=H!$ET$44,"CASO10",IF('2. PERSONAL Y JORNADA LABORAL'!J14=H!$ET$48,"CASO11",IF('2. PERSONAL Y JORNADA LABORAL'!J14=H!$ET$51,"CASO12",IF('2. PERSONAL Y JORNADA LABORAL'!J14=H!$ET$54,"CASO13",IF('2. PERSONAL Y JORNADA LABORAL'!J14=H!$ET$57,"CASO14",IF(J14=H!$ET$225,"CASO62",0)))))) -> CASO10 | O14: 2023-03-30 | P14: 2023-03-30 | Q14: 1. Se evidencia que la planta de personal docente y directivo-docente asignada es la requerida para garantizar la prestacion del servicio en el EE y cumple los perfiles de desempeño fijados para cada área del conocimiento. | S14: Mantener proceso de reorganizacion, continua validacion de Planta y optimizacion del recurso humano de acuerdo a las necesidades del servicio de conformidad con el modelo educativo, acojiendo las directrices emanadas por el MEN. | T14: Validacion continua, con asistencia, personal, virtual ,electronica y telefonica, permanente interaccion con los directivos en registro de novedades y asistencia tecnicas programadas semanalmente los dias jueves.
A15: 11 | B15: Nariño | C15: ARBOLEDA | D15: INSTITUCION EDUCATIVA ECOLOGICA LA COCHA | E15: SEDE PRINCIPAL-INSTITUCION EDUCATIVA ECOLOGICA LA COCHA | F15: Oficial | G15: Educación Preescolar, Básica Y Media - EPBM | H15: 2023-03-30 | I15: 2023-12-31 | J15: Verificar la asignación de la planta de personal docente y directivo-docente destinado a los EE Oficiales, teniendo en cuenta el PEI, las relaciones técnicas vigentes y sus perfiles o áreas de desempeño, incluyendo a los profesionales de apoyo. | L15: Vanesa Córdoba, Isabel Santacruz, Profesionales De Apoyo a planta y Apoyo a Personal | M15: Administrativa y Financiera - Recursos Humanos | N15: =IF(J15=H!$ET$44,"CASO10",IF('2. PERSONAL Y JORNADA LABORAL'!J15=H!$ET$48,"CASO11",IF('2. PERSONAL Y JORNADA LABORAL'!J15=H!$ET$51,"CASO12",IF('2. PERSONAL Y JORNADA LABORAL'!J15=H!$ET$54,"CASO13",IF('2. PERSONAL Y JORNADA LABORAL'!J15=H!$ET$57,"CASO14",IF(J15=H!$ET$225,"CASO62",0)))))) -> CASO10 | O15: 2023-03-30 | P15: 2023-03-30 | Q15: 1. Se evidencia que la planta de personal docente y directivo-docente asignada es la requerida para garantizar la prestacion del servicio en el EE y cumple los perfiles de desempeño fijados para cada área del conocimiento. | S15: Mantener proceso de reorganizacion, continua validacion de Planta y optimizacion del recurso humano de acuerdo a las necesidades del servicio de conformidad con el modelo educativo, acojiendo las directrices emanadas por el MEN. | T15: Validacion continua, con asistencia, personal, virtual ,electronica y telefonica, permanente interaccion con los directivos en registro de novedades y asistencia tecnicas programadas semanalmente los dias jueves.
A16: 12 | B16: Nariño | C16: BARBACOAS | D16: INSTITUCION EDUCATIVA LUIS IRIZAR SALAZAR | E16: SEDE PRINCIPAL-INSTITUCION EDUCATIVA LUIS IRIZAR SALAZAR | F16: Oficial | G16: Educación Preescolar, Básica Y Media - EPBM | H16: 2023-03-30 | I16: 2023-12-31 | J16: Verificar la asignación de la planta de personal docente y directivo-docente destinado a los EE Oficiales, teniendo en cuenta el PEI, las relaciones técnicas vigentes y sus perfiles o áreas de desempeño, incluyendo a los profesionales de apoyo. | L16: Vanesa Córdoba, Isabel Santacruz, Profesionales De Apoyo a planta y Apoyo a Personal | M16: Administrativa y Financiera - Recursos Humanos | N16: =IF(J16=H!$ET$44,"CASO10",IF('2. PERSONAL Y JORNADA LABORAL'!J16=H!$ET$48,"CASO11",IF('2. PERSONAL Y JORNADA LABORAL'!J16=H!$ET$51,"CASO12",IF('2. PERSONAL Y JORNADA LABORAL'!J16=H!$ET$54,"CASO13",IF('2. PERSONAL Y JORNADA LABORAL'!J16=H!$ET$57,"CASO14",IF(J16=H!$ET$225,"CASO62",0)))))) -> CASO10 | O16: 2023-03-30 | P16: 2023-03-30 | Q16: 1. El EE ha implementado el procedimiento establecido por la ETC para ejercer control sobre la asignación y el desempeño efectivo de las horas extras autorizadas. | S16: Mantener proceso de reorganizacion, continua validacion de Planta y optimizacion del recurso humano de acuerdo a las necesidades del servicio de conformidad con el modelo educativo, acojiendo las directrices emanadas por el MEN. | T16: Validacion continua, con asistencia, personal, virtual ,electronica y telefonica, permanente interaccion con los directivos en registro de novedades y asistencia tecnicas programadas semanalmente los dias jueves.
A17: 13 | B17: Nariño | C17: BARBACOAS | D17: INSTITUCION EDUCATIVA ESCUELA NORMAL SUPERIOR LA INMACULADA | E17: SEDE PRINCIPAL-INSTITUCION EDUCATIVA ESCUELA NORMAL SUPERIOR LA INMACULADA | F17: Oficial | G17: Educación Preescolar, Básica Y Media - EPBM | H17: 2023-03-30 | I17: 2023-12-31 | J17: Verificar la asignación de la planta de personal docente y directivo-docente destinado a los EE Oficiales, teniendo en cuenta el PEI, las relaciones técnicas vigentes y sus perfiles o áreas de desempeño, incluyendo a los profesionales de apoyo. | L17: Vanesa Córdoba, Isabel Santacruz, Profesionales De Apoyo a planta y Apoyo a Personal | M17: Administrativa y Financiera - Recursos Humanos | N17: =IF(J17=H!$ET$44,"CASO10",IF('2. PERSONAL Y JORNADA LABORAL'!J17=H!$ET$48,"CASO11",IF('2. PERSONAL Y JORNADA LABORAL'!J17=H!$ET$51,"CASO12",IF('2. PERSONAL Y JORNADA LABORAL'!J17=H!$ET$54,"CASO13",IF('2. PERSONAL Y JORNADA LABORAL'!J17=H!$ET$57,"CASO14",IF(J17=H!$ET$225,"CASO62",0)))))) -> CASO10 | O17: 2023-03-30 | P17: 2023-03-30 | Q17: 1. Se evidencia que la planta de personal docente y directivo-docente asignada es la requerida para garantizar la prestacion del servicio en el EE y cumple los perfiles de desempeño fijados para cada área del conocimiento. | S17: Mantener proceso de reorganizacion, continua validacion de Planta y optimizacion del recurso humano de acuerdo a las necesidades del servicio de conformidad con el modelo educativo, acojiendo las directrices emanadas por el MEN. | T17: Validacion continua, con asistencia, personal, virtual ,electronica y telefonica, permanente interaccion con los directivos en registro de novedades y asistencia tecnicas programadas semanalmente los dias jueves.
A18: 14 | B18: Nariño | C18: BARBACOAS | D18: INSTITUCION EDUCATIVA TERAIMBE | E18: SEDE PRINCIPAL-INSTITUCION EDUCATIVA TERAIMBE | F18: Oficial | G18: Educación Preescolar, Básica Y Media - EPBM | H18: 2023-03-30 | I18: 2023-12-31 | J18: Verificar la asignación de la planta de personal docente y directivo-docente destinado a los EE Oficiales, teniendo en cuenta el PEI, las relaciones técnicas vigentes y sus perfiles o áreas de desempeño, incluyendo a los profesionales de apoyo. | L18: Vanesa Córdoba, Isabel Santacruz, Profesionales De Apoyo a planta y Apoyo a Personal | M18: Administrativa y Financiera - Recursos Humanos | N18: =IF(J18=H!$ET$44,"CASO10",IF('2. PERSONAL Y JORNADA LABORAL'!J18=H!$ET$48,"CASO11",IF('2. PERSONAL Y JORNADA LABORAL'!J18=H!$ET$51,"CASO12",IF('2. PERSONAL Y JORNADA LABORAL'!J18=H!$ET$54,"CASO13",IF('2. PERSONAL Y JORNADA LABORAL'!J18=H!$ET$57,"CASO14",IF(J18=H!$ET$225,"CASO62",0)))))) -> CASO10 | O18: 2023-03-30 | P18: 2023-03-30 | Q18: 1. Se evidencia que la planta de personal docente y directivo-docente asignada es la requerida para garantizar la prestacion del servicio en el EE y cumple los perfiles de desempeño fijados para cada área del conocimiento. | S18: Mantener proceso de reorganizacion, continua validacion de Planta y optimizacion del recurso humano de acuerdo a las necesidades del servicio de conformidad con el modelo educativo, acojiendo las directrices emanadas por el MEN. | T18: Validacion continua, con asistencia, personal, virtual ,electronica y telefonica, permanente interaccion con los directivos en registro de novedades y asistencia tecnicas programadas semanalmente los dias jueves.
A19: 15 | B19: Nariño | C19: BARBACOAS | D19: INSTITUCION EDUCATIVA SANTA TERESITA DE ALTAQUER | E19: SEDE PRINCIPAL-INSTITUCION EDUCATIVA SANTA TERESITA DE ALTAQUER | F19: Oficial | G19: Educación Preescolar, Básica Y Media - EPBM | H19: 2023-03-30 | I19: 2023-12-31 | J19: Verificar la asignación de la planta de personal docente y directivo-docente destinado a los EE Oficiales, teniendo en cuenta el PEI, las relaciones técnicas vigentes y sus perfiles o áreas de desempeño, incluyendo a los profesionales de apoyo. | L19: Vanesa Córdoba, Isabel Santacruz, Profesionales De Apoyo a planta y Apoyo a Personal | M19: Administrativa y Financiera - Recursos Humanos | N19: =IF(J19=H!$ET$44,"CASO10",IF('2. PERSONAL Y JORNADA LABORAL'!J19=H!$ET$48,"CASO11",IF('2. PERSONAL Y JORNADA LABORAL'!J19=H!$ET$51,"CASO12",IF('2. PERSONAL Y JORNADA LABORAL'!J19=H!$ET$54,"CASO13",IF('2. PERSONAL Y JORNADA LABORAL'!J19=H!$ET$57,"CASO14",IF(J19=H!$ET$225,"CASO62",0)))))) -> CASO10 | O19: 2023-03-30 | P19: 2023-03-30 | Q19: 1. Se evidencia que la planta de personal docente y directivo-docente asignada es la requerida para garantizar la prestacion del servicio en el EE y cumple los perfiles de desempeño fijados para cada área del conocimiento. | S19: Mantener proceso de reorganizacion, continua validacion de Planta y optimizacion del recurso humano de acuerdo a las necesidades del servicio de conformidad con el modelo educativo, acojiendo las directrices emanadas por el MEN. | T19: Validacion continua, con asistencia, personal, virtual ,electronica y telefonica, permanente interaccion con los directivos en registro de novedades y asistencia tecnicas programadas semanalmente los dias jueves.
A20: 16 | B20: Nariño | C20: BARBACOAS | D20: INSTITUCION EDUCATIVA LA HUMILDAD | E20: SEDE PRINCIPAL-INSTITUCION EDUCATIVA LA HUMILDAD | F20: Oficial | G20: Educación Preescolar, Básica Y Media - EPBM | H20: 2023-03-30 | I20: 2023-12-31 | J20: Verificar la asignación de la planta de personal docente y directivo-docente destinado a los EE Oficiales, teniendo en cuenta el PEI, las relaciones técnicas vigentes y sus perfiles o áreas de desempeño, incluyendo a los profesionales de apoyo. | L20: Vanesa Córdoba, Isabel Santacruz, Profesionales De Apoyo a planta y Apoyo a Personal | M20: Administrativa y Financiera - Recursos Humanos | N20: =IF(J20=H!$ET$44,"CASO10",IF('2. PERSONAL Y JORNADA LABORAL'!J20=H!$ET$48,"CASO11",IF('2. PERSONAL Y JORNADA LABORAL'!J20=H!$ET$51,"CASO12",IF('2. PERSONAL Y JORNADA LABORAL'!J20=H!$ET$54,"CASO13",IF('2. PERSONAL Y JORNADA LABORAL'!J20=H!$ET$57,"CASO14",IF(J20=H!$ET$225,"CASO62",0)))))) -> CASO10 | O20: 2023-03-30 | P20: 2023-03-30 | Q20: 1. Se evidencia que la planta de personal docente y directivo-docente asignada es la requerida para garantizar la prestacion del servicio en el EE y cumple los perfiles de desempeño fijados para cada área del conocimiento. | S20: Mantener proceso de reorganizacion, continua validacion de Planta y optimizacion del recurso humano de acuerdo a las necesidades del servicio de conformidad con el modelo educativo, acojiendo las directrices emanadas por el MEN. | T20: Validacion continua, con asistencia, personal, virtual ,electronica y telefonica, permanente interaccion con los directivos en registro de novedades y asistencia tecnicas programadas semanalmente los dias jueves.
A21: 17 | B21: Nariño | C21: BARBACOAS | D21: INSTITUCION EDUCATIVA SAN MIGUEL DE ÑAMBI | E21: SEDE PRINCIPAL-INSTITUCION EDUCATIVA SAN MIGUEL DE ÑAMBI | F21: Oficial | G21: Educación Preescolar, Básica Y Media - EPBM | H21: 2023-03-30 | I21: 2023-12-31 | J21: Verificar la asignación de la planta de personal docente y directivo-docente destinado a los EE Oficiales, teniendo en cuenta el PEI, las relaciones técnicas vigentes y sus perfiles o áreas de desempeño, incluyendo a los profesionales de apoyo. | L21: Vanesa Córdoba, Isabel Santacruz, Profesionales De Apoyo a planta y Apoyo a Personal | M21: Administrativa y Financiera - Recursos Humanos | N21: =IF(J21=H!$ET$44,"CASO10",IF('2. PERSONAL Y JORNADA LABORAL'!J21=H!$ET$48,"CASO11",IF('2. PERSONAL Y JORNADA LABORAL'!J21=H!$ET$51,"CASO12",IF('2. PERSONAL Y JORNADA LABORAL'!J21=H!$ET$54,"CASO13",IF('2. PERSONAL Y JORNADA LABORAL'!J21=H!$ET$57,"CASO14",IF(J21=H!$ET$225,"CASO62",0)))))) -> CASO10 | O21: 2023-03-30 | P21: 2023-03-30 | Q21: 1. Se evidencia que la planta de personal docente y directivo-docente asignada es la requerida para garantizar la prestacion del servicio en el EE y cumple los perfiles de desempeño fijados para cada área del conocimiento. | S21: Mantener proceso de reorganizacion, continua validacion de Planta y optimizacion del recurso humano de acuerdo a las necesidades del servicio de conformidad con el modelo educativo, acojiendo las directrices emanadas por el MEN. | T21: Validacion continua, con asistencia, personal, virtual ,electronica y telefonica, permanente interaccion con los directivos en registro de novedades y asistencia tecnicas programadas semanalmente los dias jueves.
A22: 18 | B22: Nariño | C22: BARBACOAS | D22: INSTITUCION EDUCATIVA EL DIVISO | E22: SEDE PRINCIPAL-INSTITUCION EDUCATIVA EL DIVISO | F22: Oficial | G22: Educación Preescolar, Básica Y Media - EPBM | H22: 2023-03-30 | I22: 2023-12-31 | J22: Verificar la asignación de la planta de personal docente y directivo-docente destinado a los EE Oficiales, teniendo en cuenta el PEI, las relaciones técnicas vigentes y sus perfiles o áreas de desempeño, incluyendo a los profesionales de apoyo. | L22: Vanesa Córdoba, Isabel Santacruz, Profesionales De Apoyo a planta y Apoyo a Personal | M22: Administrativa y Financiera - Recursos Humanos | N22: =IF(J22=H!$ET$44,"CASO10",IF('2. PERSONAL Y JORNADA LABORAL'!J22=H!$ET$48,"CASO11",IF('2. PERSONAL Y JORNADA LABORAL'!J22=H!$ET$51,"CASO12",IF('2. PERSONAL Y JORNADA LABORAL'!J22=H!$ET$54,"CASO13",IF('2. PERSONAL Y JORNADA LABORAL'!J22=H!$ET$57,"CASO14",IF(J22=H!$ET$225,"CASO62",0)))))) -> CASO10 | O22: 2023-03-30 | P22: 2023-03-30 | Q22: 1. Se evidencia que la planta de personal docente y directivo-docente asignada es la requerida para garantizar la prestacion del servicio en el EE y cumple los perfiles de desempeño fijados para cada área del conocimiento. | S22: Mantener proceso de reorganizacion, continua validacion de Planta y optimizacion del recurso humano de acuerdo a las necesidades del servicio de conformidad con el modelo educativo, acojiendo las directrices emanadas por el MEN. | T22: Validacion continua, con asistencia, personal, virtual ,electronica y telefonica, permanente interaccion con los directivos en registro de novedades y asistencia tecnicas programadas semanalmente los dias jueves.
A23: 19 | B23: Nariño | C23: BARBACOAS | D23: INSTITUCION EDUCATIVA BUENAVISTA | E23: SEDE PRINCIPAL-INSTITUCION EDUCATIVA BUENAVISTA | F23: Oficial | G23: Educación Preescolar, Básica Y Media - EPBM | H23: 2023-03-30 | I23: 2023-12-31 | J23: Verificar la asignación de la planta de personal docente y directivo-docente destinado a los EE Oficiales, teniendo en cuenta el PEI, las relaciones técnicas vigentes y sus perfiles o áreas de desempeño, incluyendo a los profesionales de apoyo. | L23: Vanesa Córdoba, Isabel Santacruz, Profesionales De Apoyo a planta y Apoyo a Personal | M23: Administrativa y Financiera - Recursos Humanos | N23: =IF(J23=H!$ET$44,"CASO10",IF('2. PERSONAL Y JORNADA LABORAL'!J23=H!$ET$48,"CASO11",IF('2. PERSONAL Y JORNADA LABORAL'!J23=H!$ET$51,"CASO12",IF('2. PERSONAL Y JORNADA LABORAL'!J23=H!$ET$54,"CASO13",IF('2. PERSONAL Y JORNADA LABORAL'!J23=H!$ET$57,"CASO14",IF(J23=H!$ET$225,"CASO62",0)))))) -> CASO10 | O23: 2023-03-30 | P23: 2023-03-30 | Q23: 1. Se evidencia que la planta de personal docente y directivo-docente asignada es la requerida para garantizar la prestacion del servicio en el EE y cumple los perfiles de desempeño fijados para cada área del conocimiento. | S23: Mantener proceso de reorganizacion, continua validacion de Planta y optimizacion del recurso humano de acuerdo a las necesidades del servicio de conformidad con el modelo educativo, acojiendo las directrices emanadas por el MEN. | T23: Validacion continua, con asistencia, personal, virtual ,electronica y telefonica, permanente interaccion con los directivos en registro de novedades y asistencia tecnicas programadas semanalmente los dias jueves.
A24: 20 | B24: Nariño | C24: BARBACOAS | D24: CENTRO EDUCATIVO AWA EL GRAN SABALO | E24: SEDE PRINCIPAL-CENTRO EDUCATIVO AWA EL GRAN SABALO | F24: Oficial | G24: Educación Preescolar, Básica Y Media - EPBM | H24: 2023-03-30 | I24: 2023-12-31 | J24: Verificar la asignación de la planta de personal docente y directivo-docente destinado a los EE Oficiales, teniendo en cuenta el PEI, las relaciones técnicas vigentes y sus perfiles o áreas de desempeño, incluyendo a los profesionales de apoyo. | L24: Vanesa Córdoba, Isabel Santacruz, Profesionales De Apoyo a planta y Apoyo a Personal | M24: Administrativa y Financiera - Recursos Humanos | N24: =IF(J24=H!$ET$44,"CASO10",IF('2. PERSONAL Y JORNADA LABORAL'!J24=H!$ET$48,"CASO11",IF('2. PERSONAL Y JORNADA LABORAL'!J24=H!$ET$51,"CASO12",IF('2. PERSONAL Y JORNADA LABORAL'!J24=H!$ET$54,"CASO13",IF('2. PERSONAL Y JORNADA LABORAL'!J24=H!$ET$57,"CASO14",IF(J24=H!$ET$225,"CASO62",0)))))) -> CASO10 | O24: 2023-03-30 | P24: 2023-03-30 | Q24: 1. Se evidencia que la planta de personal docente y directivo-docente asignada es la requerida para garantizar la prestacion del servicio en el EE y cumple los perfiles de desempeño fijados para cada área del conocimiento. | S24: Mantener proceso de reorganizacion, continua validacion de Planta y optimizacion del recurso humano de acuerdo a las necesidades del servicio de conformidad con el modelo educativo, acojiendo las directrices emanadas por el MEN. | T24: Validacion continua, con asistencia, personal, virtual ,electronica y telefonica, permanente interaccion con los directivos en registro de novedades y asistencia tecnicas programadas semanalmente los dias jueves.
A25: 21 | B25: Nariño | C25: BARBACOAS | D25: CENTRO EDUCATIVO CHAPILAL | E25: SEDE PRINCIPAL-CENTRO EDUCATIVO CHAPILAL | F25: Oficial | G25: Educación Preescolar, Básica Y Media - EPBM | H25: 2023-03-30 | I25: 2023-12-31 | J25: Verificar la asignación de la planta de personal docente y directivo-docente destinado a los EE Oficiales, teniendo en cuenta el PEI, las relaciones técnicas vigentes y sus perfiles o áreas de desempeño, incluyendo a los profesionales de apoyo. | L25: Vanesa Córdoba, Isabel Santacruz, Profesionales De Apoyo a planta y Apoyo a Personal | M25: Administrativa y Financiera - Recursos Humanos | N25: =IF(J25=H!$ET$44,"CASO10",IF('2. PERSONAL Y JORNADA LABORAL'!J25=H!$ET$48,"CASO11",IF('2. PERSONAL Y JORNADA LABORAL'!J25=H!$ET$51,"CASO12",IF('2. PERSONAL Y JORNADA LABORAL'!J25=H!$ET$54,"CASO13",IF('2. PERSONAL Y JORNADA LABORAL'!J25=H!$ET$57,"CASO14",IF(J25=H!$ET$225,"CASO62",0)))))) -> CASO10 | O25: 2023-03-30 | P25: 2023-03-30 | Q25: 1. Se evidencia que la planta de personal docente y directivo-docente asignada es la requerida para garantizar la prestacion del servicio en el EE y cumple los perfiles de desempeño fijados para cada área del conocimiento. | S25: Mantener proceso de reorganizacion, continua validacion de Planta y optimizacion del recurso humano de acuerdo a las necesidades del servicio de conformidad con el modelo educativo, acojiendo las directrices emanadas por el MEN. | T25: Validacion continua, con asistencia, personal, virtual ,electronica y telefonica, permanente interaccion con los directivos en registro de novedades y asistencia tecnicas programadas semanalmente los dias jueves.
A26: 22 | B26: Nariño | C26: BARBACOAS | D26: CENTRO EDUCATIVO CANDILLAS | E26: SEDE PRINCIPAL-CENTRO EDUCATIVO CANDILLAS | F26: Oficial | G26: Educación Preescolar, Básica Y Media - EPBM | H26: 2023-03-30 | I26: 2023-12-31 | J26: Verificar la asignación de la planta de personal docente y directivo-docente destinado a los EE Oficiales, teniendo en cuenta el PEI, las relaciones técnicas vigentes y sus perfiles o áreas de desempeño, incluyendo a los profesionales de apoyo. | L26: Vanesa Córdoba, Isabel Santacruz, Profesionales De Apoyo a planta y Apoyo a Personal | M26: Administrativa y Financiera - Recursos Humanos | N26: =IF(J26=H!$ET$44,"CASO10",IF('2. PERSONAL Y JORNADA LABORAL'!J26=H!$ET$48,"CASO11",IF('2. PERSONAL Y JORNADA LABORAL'!J26=H!$ET$51,"CASO12",IF('2. PERSONAL Y JORNADA LABORAL'!J26=H!$ET$54,"CASO13",IF('2. PERSONAL Y JORNADA LABORAL'!J26=H!$ET$57,"CASO14",IF(J26=H!$ET$225,"CASO62",0)))))) -> CASO10 | O26: 2023-03-30 | P26: 2023-03-30 | Q26: 1. Se evidencia que la planta de personal docente y directivo-docente asignada es la requerida para garantizar la prestacion del servicio en el EE y cumple los perfiles de desempeño fijados para cada área del conocimiento. | S26: Mantener proceso de reorganizacion, continua validacion de Planta y optimizacion del recurso humano de acuerdo a las necesidades del servicio de conformidad con el modelo educativo, acojiendo las directrices emanadas por el MEN. | T26: Validacion continua, con asistencia, personal, virtual ,electronica y telefonica, permanente interaccion con los directivos en registro de novedades y asistencia tecnicas programadas semanalmente los dias jueves.
